{"text_format":"1","workbook":"xlsx","n_sheets":17,"sheets":[" ","General Instructions","All Contacts","Organization Information","Organization Profile","Data Dictionary","Definition of Key Terms","Executive Comp Governance","Position Descriptions","StateListing","Cash & Retirement Compensation","ExecutiveDirectorsMulti","ExecutiveDirectorsSingleSite","Benefits & Pension Plans","Paid Time Off","Comments","Data Checklist"],"not_rendered":{"charts":0,"images":3,"macros":1,"external_links":0,"defined_names":8404,"comments":1,"pivot_tables":0},"unopened":[],"bounds":{"document_bytes":16777216,"sheet_cells":100000,"rows_first":2000,"rows_last":500,"rows_between":2000,"halvings":0,"cell_chars":16384,"cell_head_chars":4096},"cells_cut":0,"cells_raw":0,"read":"whole","date_system":"1900"}

{"sheet":" ","index":0,"n_rows":35,"n_cols":1,"rows_kept":35,"cut":false,"hidden":false,"merged":[]}
[]
[]
["Confidential"]
[]
[]
[]
[]
[]
[]
[]
[]
[]
[]
[]
["For Chief Executives"]
["of Multi-Site"]
["Organizations (CEMO)"]
[]
[]
[]
[]
[]
[]
[]
[]
[]
[]
[]
[]
[]
[]
[]
["Conducted by:"]
["CLA"]
["©CliftonLarsonAllen LLP"]

{"sheet":"General Instructions","index":1,"n_rows":58,"n_cols":2,"rows_kept":58,"cut":false,"hidden":false,"merged":[]}
[]
[]
["Welcome!"]
[null,"Thank you for participating in the 26th annual LeadingAge Compensation Survey co-sponsored by LeadingAge/CEMO and CliftonLarsonAllen, LLP.  "]
[]
["Follow these steps to participate:"]
[null,"• Save this file (datakit) to a secure location BEFORE entering your data."]
[null,"• Begin with the Organization Information tab.  Work through the tabs from left to right (tabs listed below)."]
[null,"• Within each tab, work from top to bottom and left to right to avoid missing required fields."]
[null,"• Complete yellow and blue data fields; other cells are protected."]
[null,"• Report base salary and incentive/bonus data as of May 1, 2023."]
[null,"• Review your blank cells to ensure all required information is included."]
[null,"• Save a copy of your completed file."]
[null,"• Return your completed file along with  supporting documentation (financial statements, organization chart) via LEAPFILE (see below)."]
[null,"• Look for a return email from CLA to confirm receipt of your submission."]
[]
["CAUTIONS!!!"]
[null,"• Do not enter words in numerical fields (except \"unlimited\" PTO).  Use the Comments tab to note fields requiring explanation or email cathy.schweiger@claconnect.com for assistance."]
[null,"• You MUST update the Organization Profile tab data.  DO NOT copy prior year information."]
[]
["Tabs to complete:"]
[null,"• Organization Information → Enter contact information."]
[null,"• Organization Profile → Enter size scope, and structure information.  Data requested is critical for correct categorization."]
[null,"• Executive Comp Governance → Share information about your compensation management and strategic oversight."]
[null,"• Cash & Retirement Compensation → Enter data for senior executive (corporate) positions - including retirement and deferred compensation."]
[null,"• ExecutiveDirectorsMulti → Enter data for Executive Directors overseeing multiple communities/facilities and responsible for individual community/facility Exec Directors."]
[null,"• ExecutiveDirectorsSingleSite → Enter data for Executive Directors/Administrators responsible for an individual community/facility."]
[null,"• Benefits & Pension Plans → Enter information by leadership level."]
[null,"• Paid Time Off → Enter information by leadership level."]
[null,"• Comments → Enter additional information, comments, and suggestions."]
[]
["Tabs providing information and instructions:"]
[null,"• Definition of Key Terms"]
[null,"• Position Descriptions"]
[]
["For questions contact:"]
[null,"Cathy Schweiger at cathy.schweiger@claconnect.com or 267-419-1646."]
[null,"Mario Mckenzie at mario.mckenzie@claconnect.com or 704-998-5236."]
[]
["Submit your file:"]
[null,"Return your completed file along with the supporting documentation via secure LEAPFILE (refer to separate instructions or follow the link below)."]
[null,"http://claconnect.leapfile.net"]
[null,"Address to cathy.schweiger@claconnect.com."]
[]
["Payment:"]
[null,"Refer to separate payment information."]
[]
["Confidentiality Agreement:"]
[null,"All data will be collected, analyzed, and reported by CliftonLarsonAllen, LLP.  All data will be maintained in complete confidence and no organization's or"]
[null,"individual's data or identifying information will be made available to any party."]
[]
["© CliftonLarsonAllen LLP"]
[null,"2023 CliftonLarsonAllen LLP."]
[null,"All rights reserved."]
[null,"The 2023 LeadingAge CEMO Leadership Compensation Survey report and all data herein are protected by copyright law and international treaties. All information in this"]
[null,"report is for the sole internal use of the participants and purchasers and may not be distributed, reproduced, or sold to other parties without the expressed written"]
[null,"permission of CliftonLarsonAllen LLP.  Unauthorized distribution or reproduction of this information or any portion thereof may result in severe civil and criminal"]
[null,"penalties and will be prosecuted to the maximum extent possible under the law."]

{"sheet":"All Contacts","index":2,"n_rows":682,"n_cols":14,"rows_kept":682,"cut":false,"hidden":true,"merged":[]}
[]
[]
[null,"Highlight Company IDs and press the Save&Send button to send out client copies to their listed emails"]
["Note","Company ID",null,null,null,null,null,null,"Company",null,"Name",null,"Email"]
[null,234567,null,null,null,null,null,null,"McKenzie Center for the Aging",null,"Mario McKenzie",null,"mario.mckenzie@claconnect.com"]
[null,123456,null,null,null,null,null,null,"No Covid Here Home",null,"Cathy Schweiger",null,"cathy.schweiger@claconnect.com"]
[null,987654,null,null,null,null,null,null,"Yvonnes House of Pain",null,"Yvonne Hinson",null,"yvonne.hinson@claconnect.com"]
[]
["PRIMARY CONTACTS:"]
[]
[null,131299,null,null,null,null,null,null,"Juliette Fowler Communities - Senior Living",null,"Erin Mason",null,"erinm@fowlercommunities.org"]
[null,135260,null,null,null,null,null,null,"2Life Communities",null,"Amy Schectman",null,"aschectman@2lifecommunities.org"]
[null,189524,null,null,null,null,null,null,"A.G. Rhodes Health & Rehab",null,"Deke Cateau",null,"dcateau@agrhodes.org"]
[null,690446,null,null,null,null,null,null,"AbbeHealth",null,"Kathy Horan",null,"khoran@abbehealth.org"]
[null,173298,null,null,null,null,null,null,"ACC Senior Services",null,"Darrick Lam",null,"dlam@accsv.org"]
[null,130248,null,null,null,null,null,null,"Acts Retirement-Life Communities, Inc.",null,"Gerald Grant",null,"jgrant@actslife.org"]
[null,678535,null,null,null,null,null,null,"Agnesian Health Care",null,"Doug Trost",null,"trostd3@agnesian.com"]
[null,185273,null,null,null,null,null,null,"AHEPA Management Company",null,"Arthur Poly",null,"Apoly@ahepahousing.org"]
[null,128447,null,null,null,null,null,null,"Albright Care Services",null,"Shaun Smith",null,"shaun.smith@albrightcare.org"]
[null,131296,null,null,null,null,null,null,"Allegheny Lutheran Social Ministries",null,"Patricia Savage",null,"patricia.savage@alsm.org"]
[null,639975,null,null,null,null,null,null,"Alliance Health Management Services, LLC",null,"Frank Grady",null,"frank.grady@alliancehhs.org"]
[null,132711,null,null,null,null,null,null,"American Baptist Homes of the Midwest",null,"Jeff Hongslo",null,"jhongslo@abhomes.org"]
[null,160045,null,null,null,null,null,null,"American Lutheran Homes, Inc.",null,"Kenneth King",null,"kking@americanlutheranhomes.com"]
[null,637096,null,null,null,null,null,null,"Amsterdam Continuing Care Health System, Inc.",null,"James Davis",null,"jdavis@amsterdamnh.org"]
[null,130748,null,null,null,null,null,null,"ArchCare",null,"Scott La Rue",null,"slarue@archcare.org"]
[null,223084,null,null,null,null,null,null,"Armed Forces Retirement Home",null,"Stephen Rippe",null,"stephen.rippe@afrh.gov"]
[null,140606,null,null,null,null,null,null,"Asbury Communities, Inc.",null,"Doug Leidig",null,"dleidig@asbury.org"]
[null,159953,null,null,null,null,null,null,"Asbury, Inc.",null,"Marjorie Shonnard",null,"mshonnard@asbury.org"]
[null,620266,null,null,null,null,null,null,"Ascension Living",null,"Danny Stricker",null,"dstricker@ascension.org"]
[null,128845,null,null,null,null,null,null,"Auburn Homes and Services",null,"Mike Senden",null,"mjsenden@auburnhomes.org"]
[null,142030,null,null,null,null,null,null,"Augustana Care",null,"Bob Dahl",null,"bob.dahl@cassialife.org"]
[null,133856,null,null,null,null,null,null,"Avera Health",null,"John Porter",null,"john.porter@avera.org"]
[null,131796,null,null,null,null,null,null,"Baptist Homes Society",null,"Alvin Allison Jr.",null,"aallison@baptisthomes.org"]
[null,162205,null,null,null,null,null,null,"Baptist Life Communities",null,"Robert Long",null,"drlong@blcnky.com"]
[null,120255,null,null,null,null,null,null,"Baptist Retirement Homes of North Carolina",null,"Reed Vander Slik",null,"rvanderslik@brh.org"]
[null,135072,null,null,null,null,null,null,"Baptist Village Communities",null,"Bill Pierce",null,"bpierce@baptistvillage.org"]
[null,579569,null,null,null,null,null,null,"Baruch Senior Ministries",null,"Thomas Nobel",null,"tom.nobel@baruchsls.org"]
[null,622251,null,null,null,null,null,null,"Beaver Dam Community Hospitals, Inc.",null,"Kim Miller",null,"kmiller@bdch.org"]
[null,135891,null,null,null,null,null,null,"Beechwood Continuing Care",null,"Daniel O'Neill",null,"doneill@beechwoodcare.org"]
[null,166504,null,null,null,null,null,null,"Benedictine Health System - Twin Cities office",null,"Jerry Carley",null,"jerry.carley@bhshealth.org"]
[null,135402,null,null,null,null,null,null,"Beth Sholom Lifecare Community",null,"Morris Funk",null,"mfunk@bslcc.org"]
[null,133670,null,null,null,null,null,null,"Bethany Community Services",null,"Jered Stewart",null,"jstewart@bethanycommunities.org"]
[null,159892,null,null,null,null,null,null,"Bethany Life",null,"Betsy Warburton",null,"betsy@bethanylife.org"]
[null,129213,null,null,null,null,null,null,"Bethany Lutheran Homes, Inc.",null,"Todd Wilson",null,"twilson@eaglecrestlife.org"]
[null,129248,null,null,null,null,null,null,"Bethany of the Northwest",null,"Matthew Todd",null,"matthewt@bethanynw.org"]
[null,160440,null,null,null,null,null,null,"Bethany St. Joseph Corporation",null,"Craig Ubbelohde",null,"cubbelohde@bsjcorp.com"]
[null,160454,null,null,null,null,null,null,"Bethel Homes and Services, Inc.",null,"Debra Stout-Tewalt",null,"dtewalt@bethelhome.org"]
[null,208935,null,null,null,null,null,null,"Bethesda Health & Housing",null,"Michelle Haefner",null,"michelleh@bethesdawillmar.com"]
[null,157009,null,null,null,null,null,null,"Bethesda Health Group, Inc",null,"Joe Brinker",null,"jjbrinker@bethesdahealth.org"]
[null,151689,null,null,null,null,null,null,"Bethesda Senior Living Communities",null,"Larry Smith",null,"lsmith@ba.org"]
[null,133001,null,null,null,null,null,null,"BHI Senior Living, Inc.",null,"John Dattilo",null,"jdattilo@bhiseniorliving.org"]
[null,130789,null,null,null,null,null,null,"BJC Health Care",null,"Richard Liekweg",null,"rkm7541@bjc.org"]
[null,128549,null,null,null,null,null,null,"Blue Skies of Texas",null,"Darrell Jones",null,"darrelljones@blueskiestx.org"]
[null,243676,null,null,null,null,null,null,"Bluestem Communities",null,"James Krehbiel",null,"jamesk@bluestemks.org"]
[null,131297,null,null,null,null,null,null,"Brazos Presbyterian Homes, Inc.",null,"Sheryl Callahan",null,"scallahan@houstonretirement.org"]
[null,132552,null,null,null,null,null,null,"Brethren Village",null,"John Snader",null,"jsnader@bv.org"]
[null,128241,null,null,null,null,null,null,"Brevillier Village",null,"Jeffrey Wieser",null,"jwieser@brevillier.org"]
[null,132701,null,null,null,null,null,null,"Buckner Retirement Services, Inc.",null,"Charlie Wilson",null,"cwilson@buckner.org"]
[null,133739,null,null,null,null,null,null,"California-Nevada Methodist Homes",null,"Robert Hubbard",null,"bobhubbard@cnmh.org"]
[null,234640,null,null,null,null,null,null,"Campbell-Stone Retirement Living",null,"Ellen Dunn",null,"edunn@campbellstone.org"]
[null,127904,null,null,null,null,null,null,"CARING Housing Ministries",null,"Soraya Diaz",null,"sdiaz@frontporch.net"]
[null,704564,null,null,null,null,null,null,"Cassia",null,"Bob Dahl",null,"bob.dahl@cassialife.org"]
[null,132945,null,null,null,null,null,null,"Cathedral Square Corporation",null,"Kim Fitzgerald",null,"fitzgerald@cathedralsquare.org"]
[null,198217,null,null,null,null,null,null,"Catholic Charities Diocese of St. Petersburg",null,"Pam Nolan",null,"pnolan@ccdosp.org"]
[null,133093,null,null,null,null,null,null,"Catholic Charities of Chicago",null,"Mary Ann Bibat",null,"mbibat@catholiccharities.net"]
[null,238689,null,null,null,null,null,null,"Catholic Charities Senior Communities",null,"Arnold Eppel",null,"aeppel@cc-md.org"]
[null,208936,null,null,null,null,null,null,"Catholic Eldercare",null,"Greg Baumberger",null,"gbaumberger@catholiceldercare.org"]
[null,119968,null,null,null,null,null,null,"Catholic Health Services of Florida",null,"Joe Catania",null,"jcatania@chsfla.com"]
[null,206093,null,null,null,null,null,null,"Catholic Health Services of Long Island",null,"Alan Guerci",null,"alan.guerci@chsli.org"]
[null,133019,null,null,null,null,null,null,"Catholic Health System",null,"Mark Sullivan",null,"msullivan@chsbuffalo.org"]
[null,179194,null,null,null,null,null,null,"Cedar Lake, Inc.",null,"Chris Stevenson",null,"cstevenson@cedarlake.org"]
[null,181379,null,null,null,null,null,null,"Cedar Sinai Park",null,"Julie Stewart",null,"julie.stewart@cedarsinaipark.org"]
[null,674246,null,null,null,null,null,null,"Centra Health Senior Care Services Division",null,"Tracey Jennings",null,"tracey.jennings@centrahealth.com"]
[null,231824,null,null,null,null,null,null,"CentraCare Health - Paynesville (Campus)",null,"Kenneth Holmen",null,"kholmen@centracare.com"]
[null,171858,null,null,null,null,null,null,"Chelsea Jewish Lifecare, Inc.",null,"Barry Berman",null,"bberman@chelseajewish.org"]
[null,162099,null,null,null,null,null,null,"CHI Living Communities",null,"Rick Ryan",null,"rryan@chilivingcomm.org"]
[null,133801,null,null,null,null,null,null,"Christian Care Communities",null,"Mary Lynn Spalding",null,"mary.spalding@ccc1884.org"]
[null,159989,null,null,null,null,null,null,"Christian Care Companies of AZ",null,"Alan Hieb",null,"alan.hieb@christiancare.org"]
[null,128025,null,null,null,null,null,null,"Christian Care Senior Living Communities",null,"Sabrina Porter",null,"sporter@cccinc.net"]
[null,133848,null,null,null,null,null,null,"Christian Church Homes of Northern California",null,"Syd Najeeb",null,"snajeeb@cchnc.org"]
[null,160479,null,null,null,null,null,null,"Christian Community Homes & Services, Inc.",null,"Dan Goodier",null,"dan.goodier@cchhudson.org"]
[null,134464,null,null,null,null,null,null,"Christian Health Care Center",null,"Douglas Struyk",null,"dstruyk@chccnj.org"]
[null,239640,null,null,null,null,null,null,"Christian Horizons, Inc. - Missouri",null,"Jake Bell",null,"jbell@chliving.org"]
[null,131713,null,null,null,null,null,null,"Christian Living Communities",null,"Terry Rogers",null,"terryrogers@clcmail.org","cburke@clcmail.org"]
[null,186237,null,null,null,null,null,null,"Christian Village Communities",null,"Larry Monroe",null,"larry.monroe@christianvillages.org"]
[null,136477,null,null,null,null,null,null,"Christopher Community, Inc.",null,"Douglas Reicher",null,"dreicher@christopher-community.org"]
[null,133953,null,null,null,null,null,null,"Christopher Homes, Inc.",null,"Dennis F Adams",null,"dfadams@chi-ano.org"]
[null,127868,null,null,null,null,null,null,"Church Homes, Inc.",null,"Patrick Gilland",null,"pgilland@churchhomes.org"]
[null,135300,null,null,null,null,null,null,"CJE SeniorLife - Housing Management Service",null,"David Guthridge",null,"david.guthridge@cje.net"]
[null,196640,null,null,null,null,null,null,"Clairmont Oaks, Inc.",null,"Andy Landrum",null,"alandrum@clairmontoaks.org"]
[null,135837,null,null,null,null,null,null,"Cokato Charitable Trust",null,"Patrick Rafferty",null,"prafferty@cokatoseniorcare.com"]
[null,144351,null,null,null,null,null,null,"Community First Solutions",null,"Brett Kirkpatrick",null,"bkirkpatrick@community-first.org"]
[null,620725,null,null,null,null,null,null,"Community Home of Lebanon County",null,"Charles Rush",null,"crush@communityhomesonline.org"]
[null,159865,null,null,null,null,null,null,"Community Long Term Care",null,"Beth Harpe",null,"eharpe2@ecommunity.com"]
[null,624743,null,null,null,null,null,null,"Concordia Lutheran Health and Human Care",null,"Keith Frndak",null,"kfrndak@concordialm.org"]
[null,132550,null,null,null,null,null,null,"Concordia Lutheran Ministries",null,"Keith Frndak",null,"kfrndak@concordialm.org"]
[null,132359,null,null,null,null,null,null,"Covenant Health",null,"David Lincoln",null,"david_lincoln@covenanths.org"]
[null,157997,null,null,null,null,null,null,"Covenant Living at Inverness",null,"Mike Mitchell",null,"mgmitchell@asbury.org"]
[null,133738,null,null,null,null,null,null,"Covenant Living Communities and Services",null,"Terri Cunliffe",null,"tscunliffe@covliving.org"]
[null,132698,null,null,null,null,null,null,"Covia Communities",null,"Kevin Gerber",null,"kgerber@covia.org"]
[null,129700,null,null,null,null,null,null,"Creative Housing and Services",null,"Christina Cerrato",null,"ccerrato@ecsforseniors.org"]
[null,129583,null,null,null,null,null,null,"Crest View Senior Communities",null,"Shirley Barnes",null,"sbarnes@crestviewcares.org"]
[null,127901,null,null,null,null,null,null,"CRISTA Senior Living",null,"Robert Lonac",null,"rlonac@crista.net"]
[null,688570,null,null,null,null,null,null,"CSI Support & Development COOP (California)",null,"Diane Smith",null,"diane.smith@csi.coop"]
[null,676912,null,null,null,null,null,null,"CSI Support & Development COOP (Maryland)",null,"Brandon Moss",null,"brandon.moss@csi.coop"]
[null,688569,null,null,null,null,null,null,"CSI Support & Development COOP (Massachusetts)",null,"Diane Smith",null,"diane.smith@csi.coop"]
[null,635921,null,null,null,null,null,null,"CSI Support & Development COOP (Michigan)",null,"Diane Smith",null,"diane.smith@csi.coop"]
[null,617098,null,null,null,null,null,null,"CSJ Initiatives, Inc.",null,"Margaret O'Brien",null,"mobrien@csjoseph.org"]
[null,238319,null,null,null,null,null,null,"D?Youville Life & Wellness Community",null,"Naomi Prendergast",null,"nprendergast@dyouville.org"]
[null,159984,null,null,null,null,null,null,"Daily Living Centers, Inc.",null,"Brian Rush",null,"brianrush@dailylivingcenters.org"]
[null,129915,null,null,null,null,null,null,"Deaconess Abundant Life Communities",null,"Christopher Sintros",null,"csintros@nedeaconess.org"]
[null,127943,null,null,null,null,null,null,"DePaul Housing Management Corporation",null,"Mary Beth Purcell",null,"marybeth.purcell@rcda.org"]
[null,134351,null,null,null,null,null,null,"Diakon Lutheran Social Ministries, Inc.",null,"Mark Pile",null,"pilem@diakon.org"]
[null,186289,null,null,null,null,null,null,"Douglas Gardens Senior Housing",null,"Jason Pincus",null,"jpincus@miamijewishhealth.org"]
[null,144109,null,null,null,null,null,null,"Eaton Senior Communities, Inc.",null,"David Smart",null,"dsmart@eatonsenior.org"]
[null,140873,null,null,null,null,null,null,"Ebenezer",null,"Jon Lundberg",null,"jlundbe3@fairview.org"]
[null,132709,null,null,null,null,null,null,"Ecumen",null,"Shelley Kendrick",null,"shelleykendrick@ecumen.org"]
[null,131298,null,null,null,null,null,null,"EdenHill Communities",null,"Laurence Dahl",null,"larryd@edenhill.org"]
[null,132056,null,null,null,null,null,null,"EHM Senior Solutions",null,"Thomas Hosinski",null,"hosinskit@evangelicalhomes.org"]
[null,163343,null,null,null,null,null,null,"Elderly Housing Development and Operations Corporation",null,"Steve Protulis",null,"sprotulis@ehdoc.org"]
[null,184081,null,null,null,null,null,null,"Elderly Housing Management Corporation",null,"Melissa Gilreath",null,"mgilreath@ehmcorp.com"]
[null,129589,null,null,null,null,null,null,"Elim Care",null,"Bob Dahl",null,"bob.dahl@cassialife.org"]
[null,142171,null,null,null,null,null,null,"Eliza Jennings",null,"Rich Boyson",null,"rboyson@elizajen.org"]
[null,133691,null,null,null,null,null,null,"Embrace Living Communities",null,"Anne Oliva",null,"aoliva@embraceliving.org"]
[null,617122,null,null,null,null,null,null,"Emerald Communities",null,"Lisa Hardy",null,"lisah@emeraldcommunities.com"]
[null,685468,null,null,null,null,null,null,"Epiphany Senior Citizen Housing Corp.",null,"Jeanette Delich",null,"jdelich@epseniors.org"]
[null,161973,null,null,null,null,null,null,"Episcopal Communities & Services",null,"James Rothrock",null,"jrothrock@ecsforseniors.org"]
[null,130962,null,null,null,null,null,null,"Episcopal Homes of Minnesota",null,"Marvin Plakut",null,"mplakut@ehomesmn.org"]
[null,129177,null,null,null,null,null,null,"Episcopal Retirement Communities",null,"Beverly Maine",null,"erc-ceo@donobi.net"]
[null,131290,null,null,null,null,null,null,"Episcopal Retirement Services",null,"Laura Lamb",null,"llamb@erslife.org"]
[null,162406,null,null,null,null,null,null,"Episcopal SeniorLife Communities Inc.",null,"Loren Ranaletta",null,"ranaletta@episcopalseniorlife.org"]
[null,133849,null,null,null,null,null,null,"Eskaton",null,"Todd Murch",null,"todd.murch@eskaton.org"]
[null,171215,null,null,null,null,null,null,"Eventide Senior Living Communities",null,"Jon Riewer",null,"jriewer@eventide.org"]
[null,120019,null,null,null,null,null,null,"Evergreen Retirement Community, Inc.",null,"Ken Arneson",null,"karneson@evergreenoshkosh.com"]
[null,137620,null,null,null,null,null,null,"Fairfax County Health Dept. Adult-Day Health Care",null,"Jennifer Robinson",null,"jennifer.robinson@fairfaxcounty.gov"]
[null,130551,null,null,null,null,null,null,"Family Housing Management Company, Inc.",null,"Alma Ballard",null,"aballard@ccbjax.org"]
[null,685063,null,null,null,null,null,null,"Felician Services & Felician Sisters of North America",null,"Sister Noel Marie Gabriel",null,"snoelmarieg@feliciansisters.org"]
[null,134136,null,null,null,null,null,null,"Finger Lakes Health",null,"Bill Garrity",null,"bill.garrity@flhealth.org"]
[null,653724,null,null,null,null,null,null,"First Community Housing",null,"Geoffrey Morgan",null,"geoffreym@firsthousing.org"]
[null,622258,null,null,null,null,null,null,"Fort Hudson Health System",null,"Andrew Cruikshank",null,"acruikshank@forthudson.com"]
[null,137936,null,null,null,null,null,null,"Franciscan Ministries",null,"Judy Amiano",null,"jamiano@franciscanministries.org"]
[null,234182,null,null,null,null,null,null,"Franciscan Missionaries of Our Lady Health Services",null,"Karen Allen",null,"karen.allen@fmolhs.org"]
[null,181071,null,null,null,null,null,null,"Friendly Senior Living",null,"Glen Cooper",null,"gcooper@friendlyseniorliving.org"]
[null,130674,null,null,null,null,null,null,"Friends Homes, Inc.",null,"Arnie Thompson",null,"athompson@friendshomes.org"]
[null,198212,null,null,null,null,null,null,"Friendship Senior Options, Inc.",null,"Stephen Yenchek",null,"anju.goswami@myfso.org"]
[null,202187,null,null,null,null,null,null,"Friendship Village",null,"Lisa Gates",null,"lgates@fvrc.com"]
[null,708054,null,null,null,null,null,null,"Friendship Village Senior Living Communities",null,"Terry Walsh",null,"walshterry@friendshipvillagestl.com"]
[null,156787,null,null,null,null,null,null,"Front Porch",null,"Roberta Jacobsen",null,"rjacobsen@frontporch.net"]
[null,236616,null,null,null,null,null,null,"Full Life Care",null,"Scott Slater",null,"scotts@fulllifecare.org"]
[null,689379,null,null,null,null,null,null,"Garden Spot Communities",null,"Steve Lindsey",null,"slindsey@gardenspotcommunities.org"]
[null,133664,null,null,null,null,null,null,"Genacross Housing & Community Services",null,"Rick Marshall",null,"rmarshall@genacross.org"]
[null,155648,null,null,null,null,null,null,"Genacross Lutheran Services",null,"Amanda Schroeder",null,"aschroeder@genacross.org"]
[null,694798,null,null,null,null,null,null,"Givens Communities",null,"Ken Partin",null,"kpartin@givenscommunities.org"]
[null,228353,null,null,null,null,null,null,"Good Shepherd Communities",null,"Michael Keenan",null,"mkeenan@gsvillage.org"]
[null,155524,null,null,null,null,null,null,"Good Shepherd Community",null,"Bruce Glanzer",null,"bruceglanzer@gsc-mn.org"]
[null,160596,null,null,null,null,null,null,"Good Shepherd Services, Ltd.",null,"Deborah Captain",null,"dcaptain@gssltd.org"]
[null,677638,null,null,null,null,null,null,"Good Shepherd Society",null,"Bert Vigen",null,"bert@goodshepmc.org"]
[null,135230,null,null,null,null,null,null,"Goodwin House Incorporated",null,"Robert Liebreich",null,"rliebreich@goodwinhouse.org"]
[null,135373,null,null,null,null,null,null,"Grace Lutheran Communities",null,"Raymond Weiss",null,"raymond.weiss@graceluthfound.com"]
[null,137965,null,null,null,null,null,null,"Graceworks Lutheran Services",null,"Lisa Berkemeier",null,"lberkemeier@graceworks.org"]
[null,132724,null,null,null,null,null,null,"Greencroft Communities",null,"Mark King",null,"mark.king@greencroftcommunities.org"]
[null,129599,null,null,null,null,null,null,"Guardian Angels of Elk River, Inc.",null,"Daniel Dixon",null,"dandixon@ga-er.org"]
[null,159888,null,null,null,null,null,null,"Hartford HealthCare Senior Services",null,"Lisa Connolly",null,"lisa.connolly@hhchealth.org"]
[null,619120,null,null,null,null,null,null,"Haverland Carter Lifestyle Group",null,"DeAnn Eaton",null,"deaton@haverlandcarter.com"]
[null,195117,null,null,null,null,null,null,"Heartway Corporation",null,"Dan Carter",null,"dcarter@itgholdings.com"]
[null,131655,null,null,null,null,null,null,"Hebrew SeniorLife",null,"Louis Woolf",null,"louwoolf@hsl.harvard.edu"]
[null,228171,null,null,null,null,null,null,"Heritage Community of Kalamazoo",null,"Jay Prince",null,"jprince@heritagecommunity.com"]
[null,138976,null,null,null,null,null,null,"Heritage Ministries",null,"David Smeltzer",null,"dsmeltzer@heritage1886.org"]
[null,159861,null,null,null,null,null,null,"Hickory Creek Healthcare Foundation, Inc.",null,"Keith Yoder",null,"kyoder@hchfi.org"]
[null,134102,null,null,null,null,null,null,"Holland Home",null,"Mina Breuker",null,"mina.breuker@hollandhome.org"]
[null,133677,null,null,null,null,null,null,"Homewood Retirement Centers of the United Church of Christ, Inc.",null,"Thad Rothrock",null,"tdrothrock@hmwd.org"]
[null,131466,null,null,null,null,null,null,"HumanGood Inc.",null,"John Cochrane",null,"john.cochrane@humangood.org"]
[null,144456,null,null,null,null,null,null,"Immanuel",null,"Eric Gurley",null,"egurley@immanuel.com"]
[null,224931,null,null,null,null,null,null,"Ingleside",null,"Lynn O'Connor",null,"loconnor@inglesideonline.org"]
[null,180165,null,null,null,null,null,null,"Jefferson Area Board for Aging Adult Day Healthcare Center, Inc.",null,"Marta Keane",null,"mkeane@jabacares.org"]
[null,132786,null,null,null,null,null,null,"Jewish Community Housing Corporation of Metropolitan New Jersey",null,"Harold Colton-Max",null,"haroldc@jchcorp.org"]
[null,216750,null,null,null,null,null,null,"Jewish Home Family",null,"Carol Silver Elliott",null,"celliott@jewishhomefamily.org"]
[null,187232,null,null,null,null,null,null,"Jewish Senior Housing & Healthcare",null,"Susan Love",null,"slove@lionsgateccrc.org"]
[null,134360,null,null,null,null,null,null,"Jewish Senior Life",null,"Nancy Heinrich",null,"nheinrich@jslmi.org"]
[null,230879,null,null,null,null,null,null,"Jewish Senior Living Group",null,"Daniel Ruth",null,"druth@jslg.org"]
[null,229687,null,null,null,null,null,null,"Jewish Senior Services",null,"Andrew Banoff",null,"abanoff@jseniors.org"]
[null,162395,null,null,null,null,null,null,"Jewish SeniorLife",null,"Michael King",null,"mking@jewishseniorlife.org"]
[null,131178,null,null,null,null,null,null,"JGS Lifecare",null,"Barry Berman",null,"bberman@jgslifecare.org"]
[null,131299,null,null,null,null,null,null,"Juliette Fowler Communities - Senior Living",null,"Nicole Gann",null,"nicoleg@fowlercommunities.org"]
[null,236376,null,null,null,null,null,null,"Keiro Northwest",null,"Bryce Seidl",null,"bseidl@keironw.org"]
[null,133371,null,null,null,null,null,null,"Kendal- Crosslands Communities",null,"Kevin Jones",null,"kwjones@xlands.kendal.org"]
[null,156243,null,null,null,null,null,null,"Kline Galland Center",null,"Jeff Cohen",null,"jeffc@klinegalland.org"]
[null,671426,null,null,null,null,null,null,"Knute Nelson",null,"Mark Anderson",null,"mark.anderson@knutenelson.org"]
[null,134816,null,null,null,null,null,null,"Lakeview Health Center",null,"Wanda Plachecki",null,"wplachecki@lacrossecounty.org"]
[null,128069,null,null,null,null,null,null,"Landis Communities",null,"Larry Zook",null,"lzook@landiscommunities.org"]
[null,127902,null,null,null,null,null,null,"Lesley Senior Communities",null,"Catherine Evans",null,"cevans@lesleysc.org"]
[null,176706,null,null,null,null,null,null,"Liberty Lutheran",null,"Luanne Fisher",null,"lfisher@libertylutheran.org"]
[null,162334,null,null,null,null,null,null,"Life Enriching Communities",null,"Scott McQuinn",null,"scott.mcquinn@lec.org"]
[null,188532,null,null,null,null,null,null,"LIFE Senior Services and Affiliates",null,"Mike Fogle",null,"mfogle@lifeseniorservices.org"]
[null,662316,null,null,null,null,null,null,"LifeQuest",null,"Marinela Shqina",null,"mshqina@lq.org"]
[null,128530,null,null,null,null,null,null,"Lifespace Communities, Inc.",null,"Larry Smith",null,"larry.smith@lifespacecommunities.com"]
[null,133025,null,null,null,null,null,null,"LifeSpire of Virginia",null,"Jonathan Cook",null,"jcook@lifespireliving.org"]
[null,195551,null,null,null,null,null,null,"LifeStream Complete Senior Living, Inc.",null,"Ronald Estes",null,"restes@lifestreamliving.com"]
[null,654527,null,null,null,null,null,null,"LincolnHealth",null,"James Donovan",null,"james.donovan@lchcare.org"]
[null,131912,null,null,null,null,null,null,"LindenGrove, Inc.",null,"Linda Joel",null,"linda.joel@lindengrove.org"]
[null,132547,null,null,null,null,null,null,"Little Sisters of the Poor Brooklyn Province",null,"Genevieve Regina Nugent",null,"enmothersuperior@littlesistersofthepoor.org"]
[null,131277,null,null,null,null,null,null,"Living Branches",null,"Edward Brubaker",null,"edward.brubaker@livingbranches.org"]
[null,128937,null,null,null,null,null,null,"Loomis Communities, Inc.",null,"Lauren Scruggs",null,"lscruggs@loomiscommunities.org"]
[null,573109,null,null,null,null,null,null,"Loretto Health & Rehabilitation Center, Inc.",null,"Kimberly Townsend",null,"ktownsend@lorettosystem.org"]
[null,207509,null,null,null,null,null,null,"Los Angeles Jewish Home",null,"Molly Forrest",null,"molly.forrest@jha.org"]
[null,130033,null,null,null,null,null,null,"LSC Service Corporation",null,"Donnald Heckelmoser",null,"dheckelmoser@lscservice.com"]
[null,160583,null,null,null,null,null,null,"Lutheran Homes and Health Services",null,"Matt Mauthe",null,"mmauthe@marquardtmanagement.com"]
[null,130358,null,null,null,null,null,null,"Lutheran Homes of South Carolina, Inc.",null,"Frank Shepke",null,"fshepke@lhomes.org"]
[null,180774,null,null,null,null,null,null,"Lutheran Life Communities",null,"Jesse Jantzen",null,"jjantzen@lulife.org"]
[null,128243,null,null,null,null,null,null,"Lutheran Life Villages",null,"Alex Kiefer",null,"akiefer@lutheranlifevillages.org"]
[null,134531,null,null,null,null,null,null,"Lutheran Senior Services",null,"John Kotovsky",null,"john.kotovsky@lssliving.org"]
[null,128093,null,null,null,null,null,null,"Lutheran SeniorLife",null,"Dave Fenoglietto",null,"david.fenoglietto@lutheranseniorlife.org"]
[null,128037,null,null,null,null,null,null,"Lutheran Services Carolinas",null,"Ted Goins",null,"tgoins@lscarolinas.net"]
[null,701940,null,null,null,null,null,null,"Lutheran Social Ministries of Maryland",null,"Jeff Branch",null,"jbranch@lsmmd.org"]
[null,130951,null,null,null,null,null,null,"Lutheran Social Ministries of New Jersey",null,"Colleen Frankenfield",null,"cfrankenfield@lsmnj.org"]
[null,132039,null,null,null,null,null,null,"Lutheran Social Services Group, Inc.",null,"Tom Holt",null,"tholt@lutheran-jamestown.org"]
[null,132643,null,null,null,null,null,null,"Lutheran Social Services of Illinois",null,"Mark Stutrud",null,"mark.stutrud@lssi.org"]
[null,202432,null,null,null,null,null,null,"Lutheran Sunset Ministries",null,"Rodney Rueter",null,"rrueter@lutheransunset.org"]
[null,131765,null,null,null,null,null,null,"Luthercare",null,"Carl McAloose",null,"cmcaloose@luthercare.org"]
[null,131767,null,null,null,null,null,null,"MaineGeneral Rehabilitation and Nursing Care",null,"Paul Stein",null,"paul.stein@mainegeneral.org"]
[null,133305,null,null,null,null,null,null,"Maple Knoll Communities, Inc.",null,"Jim Formal",null,"jformal@mkcommunities.org"]
[null,637079,null,null,null,null,null,null,"Mary Ann Morse Healthcare Corp.",null,"Lisa Kubiak",null,"lkubiak@maryannmorse.org"]
[null,131300,null,null,null,null,null,null,"Mary E. Bivins Foundation",null,"Katharyn Wiegand",null,"katharyn@bivinsfoundation.org"]
[null,171417,null,null,null,null,null,null,"Masonic Homes Kentucky, Inc",null,"J Scott Judy",null,"jsjudy@mhky.com"]
[null,159948,null,null,null,null,null,null,"Masonic Homes of California",null,"Gary Charland",null,"gcharland@mhcuc.org"]
[null,146470,null,null,null,null,null,null,"Masonic Villages",null,"William Kingsbury",null,"wkingsbury@masonicvillages.org"]
[null,127845,null,null,null,null,null,null,"Masonicare",null,"Jon-Paul Venoit",null,"jvenoit@masonicare.org"]
[null,132593,null,null,null,null,null,null,"Mather LifeWays",null,"Mary Leary",null,"mleary@matherlifeways.com"]
[null,133817,null,null,null,null,null,null,"Mayflower Homes, Inc.",null,"Steve Langerud",null,"slangerud@mayflowerhomes.com"]
[null,131486,null,null,null,null,null,null,"McLean",null,"David Bordonaro",null,"david.bordonaro@mcleancare.org"]
[null,132551,null,null,null,null,null,null,"Menno Haven",null,"Hugh Davis",null,"hugh.davis@mennohaven.org"]
[null,135409,null,null,null,null,null,null,"Mennonite Home Communities of Ohio",null,"John Fischbach",null,"jfischbach@mhcoliving.org"]
[null,706298,null,null,null,null,null,null,"Mennonite Services Northwest",null,"William Sherer",null,"bills@mennoniteservicesnw.org"]
[null,167842,null,null,null,null,null,null,"Menorah Housing Foundation",null,"Anne Friedrich",null,"afriedrich@menorahhousing.org"]
[null,140871,null,null,null,null,null,null,"Mercy Community Health, Inc.",null,"Janice Hamilton-Crawford",null,"lgomez@mchct.org"]
[null,221157,null,null,null,null,null,null,"Mercy Housing California",null,"Jennifer Dolin",null,"jdolin@mercyhousing.org"]
[null,687059,null,null,null,null,null,null,"Messiah Lifeways",null,"Curt Stutzman",null,"cstutzman@messiahlifeways.org"]
[null,133414,null,null,null,null,null,null,"Methodist Retirement Communities",null,"Don Stephens",null,"dstephens@mrcaff.org"]
[null,133383,null,null,null,null,null,null,"Methodist Senior Services",null,"Steve McAlilly",null,"steve.mcalilly@mss.org"]
[null,228711,null,null,null,null,null,null,"MI Health/Care Services",null,"Jeanne Leydon",null,"jeanne_leydon@mihcs.com"]
[null,138931,null,null,null,null,null,null,"Midwest Geriatrics, Inc.",null,"Lois Jordan",null,"ljordan@shf.org"]
[null,130169,null,null,null,null,null,null,"Milton Residences for the Elderly, Inc.",null,"Sarah McLaren",null,"smclaren@mreinc.org"]
[null,133676,null,null,null,null,null,null,"Miravida Living",null,"Theresa Bertram",null,"tbertram@miravidaliving.com"]
[null,184696,null,null,null,null,null,null,"MJHS",null,"Alexander Balko",null,"abalko@mjhs.org"]
[null,127652,null,null,null,null,null,null,"Morningside Ministries",null,"Patrick Crump",null,"patrick.crump@mmliving.org"]
[null,133748,null,null,null,null,null,null,"National Church Residences",null,"Mark Ricketts",null,"mricketts@nationalchurchresidences.org"]
[null,209436,null,null,null,null,null,null,"National Lutheran Communities & Services",null,"Larry Bradshaw",null,"lbradshaw@nationallutheran.org"]
[null,390054,null,null,null,null,null,null,"National Senior Campuses, Inc.",null,"Cassandra Halyshyn",null,"nscadministrator@seniorcampuses.org"]
[null,694064,null,null,null,null,null,null,"Nazareth Home",null,"Mary Haynes",null,"mhaynes@nazhome.org"]
[null,159887,null,null,null,null,null,null,"New Horizons, Inc",null,"Robert Maher",null,"robert.maher@newhorizonsvillage.com"]
[null,132194,null,null,null,null,null,null,"New Samaritan Corporation",null,"Reginald Fairbairn",null,"bfairbairn@ehmchm.org"]
[null,133510,null,null,null,null,null,null,"New York City Health and Hospitals Corporation",null,"Mitchell Katz",null,"mitchell.katz@nychhc.org"]
[null,156751,null,null,null,null,null,null,"New York State Department of Health",null,"Howard Zucker",null,"howard.zucker@health.ny.gov"]
[null,202527,null,null,null,null,null,null,"Niagara Lutheran Health System, Inc.",null,"Jurgen Arndt",null,"jarndt@niagaralutheran.org"]
[null,208939,null,null,null,null,null,null,"Northfield Retirement Community",null,"Tom Nielsen",null,"tnielsen@northfieldretirement.org"]
[null,228335,null,null,null,null,null,null,"Notre Dame Health Care Center",null,"Karen Laganelli",null,"klaganelli@notredamehealthcare.org"]
[null,136868,null,null,null,null,null,null,"Oakwood Lutheran Senior Ministries",null,"Nelson Kling",null,"nelson.kling@oakwoodvillage.net"]
[null,132710,null,null,null,null,null,null,"Ohio Living",null,"Laurence Gumina",null,"lgumina@ohioliving.org"]
[null,186273,null,null,null,null,null,null,"Oklahoma City Housing Authority",null,"Mark Gillett",null,"mgillett@ochanet.org"]
[null,159897,null,null,null,null,null,null,"On With Life, Inc.",null,"Jean Shelton",null,"jean.shelton@onwithlife.org"]
[null,128481,null,null,null,null,null,null,"Otterbein SeniorLife",null,"Jill Wilson",null,"jwilson@otterbein.org"]
[null,128256,null,null,null,null,null,null,"Ovation Communities",null,"Michael Sattell",null,"msattell@ovation.org"]
[null,624318,null,null,null,null,null,null,"Overlook Masonic Health Center",null,"Tameryn Campbell",null,"tcampbell@mhs-mass.org"]
[null,132265,null,null,null,null,null,null,"Pacific Retirement Services",null,"Brian McLemore",null,"brian@retirement.org"]
[null,152446,null,null,null,null,null,null,"Palolo Chinese Home",null,"Darlene Nakayama",null,"dnakayama@palolohome.org"]
[null,128028,null,null,null,null,null,null,"Parker Health Group, Inc.",null,"Roberto Muñiz",null,"rmuniz@parkerlife.org"]
[null,161417,null,null,null,null,null,null,"PEP Housing",null,"Mary Stompe",null,"marys@pephousing.org"]
[null,132949,null,null,null,null,null,null,"Phoebe Ministries",null,"Scott Stevenson",null,"sstevenson@phoebe.org"]
[null,621713,null,null,null,null,null,null,"PierceCare",null,"Patricia Morse",null,"pmorse@ctbaptisthomes.org"]
[null,132702,null,null,null,null,null,null,"Pinnacle Living",null,"Christopher Henderson",null,"chenderson@pinnacleliving.org"]
[null,135768,null,null,null,null,null,null,"PioneerCare",null,"Nathan Johnson",null,"nathanj@pioneercare.org"]
[null,173763,null,null,null,null,null,null,"Plano Community Home, Inc.",null,"Lee Ann Hubanks",null,"lahubanks@planocommunityhome.org"]
[null,195759,null,null,null,null,null,null,"Porter Hills Retirement Communities and Services, Inc.",null,"Stephen Fetyko",null,"sfetyko@umrc.com"]
[null,132591,null,null,null,null,null,null,"Presby's Inspired Life",null,"John Cochrane",null,"john.cochrane@humangood.org"]
[null,132923,null,null,null,null,null,null,"Presbyterian Communities of South Carolina",null,"Katherine Ligon",null,"kligon@preshomesc.org"]
[null,145784,null,null,null,null,null,null,"Presbyterian Home & Services, Inc.",null,"Michael Sweeney",null,"msweeney@presbyterianhome.com"]
[null,163483,null,null,null,null,null,null,"Presbyterian Homes - Skokie",null,"Todd Swortzel",null,"tswortzel@presbyterianhomes.org"]
[null,160037,null,null,null,null,null,null,"Presbyterian Homes and Services",null,"Daniel Lindh",null,"dlindh@preshomes.org"]
[null,127939,null,null,null,null,null,null,"Presbyterian Homes and Services of Kentucky",null,"Hattie Wagner",null,"hattiewagner@phsk.org"]
[null,130322,null,null,null,null,null,null,"Presbyterian Homes in the Presbytery of Lake Erie",null,"Gary Sieb",null,"gsieb@presbyhomes.com"]
[null,131378,null,null,null,null,null,null,"Presbyterian Homes of Georgia, Inc.",null,"Frank McElroy",null,"fmcelroy@phgainc.org"]
[null,127852,null,null,null,null,null,null,"Presbyterian Homes, Inc.",null,"Tim Webster",null,"twebster@presbyhomesinc.org"]
[null,133022,null,null,null,null,null,null,"Presbyterian Manors of Mid-America, Inc.",null,"Bruce Shogren",null,"bshogren@pmma.org"]
[null,130454,null,null,null,null,null,null,"Presbyterian Senior Care of Western New York",null,"Karin Ziegler",null,"kziegler@pscwny.org"]
[null,132703,null,null,null,null,null,null,"Presbyterian Senior Living",null,"James Bernardo",null,"jbernardo@psl.org"]
[null,131018,null,null,null,null,null,null,"Presbyterian SeniorCare Network",null,"Paul Winkler",null,"pwinkler@srcare.org"]
[null,130602,null,null,null,null,null,null,"Presbyterian Villages of Michigan",null,"Roger Myers",null,"rmyers@pvm.org"]
[null,129363,null,null,null,null,null,null,"Presence Life Connections",null,"Michael Gordon",null,"michael.gordon@ascension.org"]
[null,239671,null,null,null,null,null,null,"Preservation of Affordable Housing, Inc.",null,"Aaron Gornstein",null,"agornstein@poah.org"]
[null,698015,null,null,null,null,null,null,"Primeplus Senior Center",null,"Bob Batcher",null,"rbatcher@primeplus.org"]
[null,129570,null,null,null,null,null,null,"Providence Life Services",null,"Rich Schutt",null,"richs@provlife.com"]
[null,234593,null,null,null,null,null,null,"Quality Living Services",null,"Irene Richardson",null,"qls1@co.fulton.ga.us"]
[null,242919,null,null,null,null,null,null,"Redstone Presbyterian Senior Care",null,"John Dickson IV",null,"jdickson@redstone.org"]
[null,183162,null,null,null,null,null,null,"Regional Health",null,"Brent Phillips",null,"bphillips@regionalhealth.com"]
[null,129345,null,null,null,null,null,null,"Resthaven Care Community",null,"Deedre Vriesman",null,"deedre.vriesman@resthaven.org"]
[null,133023,null,null,null,null,null,null,"Retirement Housing Foundation",null,"Laverne Joseph",null,"laverne.joseph@rhf.org"]
[null,676566,null,null,null,null,null,null,"Rise, Inc.",null,"Lynn Noren",null,"lnoren@rise.org"]
[null,142430,null,null,null,null,null,null,"Riverside Health System",null,"Jenny Greenwell",null,"jenny.greenwell@rivhs.com"]
[null,662341,null,null,null,null,null,null,"Riverside Senior Life Communities",null,"Michael Mutterer",null,"mmutterer@rhc.net"]
[null,134369,null,null,null,null,null,null,"RiverSpring Health",null,"Daniel Reingold",null,"daniel.reingold@riverspringhealth.org"]
[null,131962,null,null,null,null,null,null,"Riverview Retirement Community",null,"Charley Tirrell",null,"ctirrell@riverviewretirement.org"]
[null,161865,null,null,null,null,null,null,"Rochester Regional Health System",null,"Eric Bieber",null,"eric.bieber@rochesterregional.org"]
[null,161525,null,null,null,null,null,null,"Rockwood Retirement Communities",null,"Alan Curryer",null,"alan@rockwoodretirement.org"]
[null,131181,null,null,null,null,null,null,"Rogerson Communities",null,"Walter Ramos",null,"ramos@rogerson.org"]
[null,131740,null,null,null,null,null,null,"Saint Elizabeth Community",null,"Steve Horowitz",null,"shorowitz@stelizabethcommunity.org"]
[null,154587,null,null,null,null,null,null,"Saint Mary's Home of Erie",null,"Allen Bonace",null,"abonace@stmaryshome.org"]
[null,133018,null,null,null,null,null,null,"Saint Teresa's Mother House",null,"Mother Mark Randall",null,"mmark@stmhcs.org"]
[null,136724,null,null,null,null,null,null,"Saint Therese Foundation, Inc.",null,"Barbara Rode",null,"barbr@sttheresemn.org"]
[null,142031,null,null,null,null,null,null,"Samaritan Bethany, Inc.",null,"Sue Knutson",null,"sknutson@samaritanbethany.com"]
[null,132706,null,null,null,null,null,null,"Samaritas",null,"Sam Beals",null,"sbeal@samaritas.org"]
[null,146426,null,null,null,null,null,null,"Sanford Health Network",null,"Kelby Krabbenhoft",null,"kelby.krabbenhoft@sanfordhealth.org"]
[null,127906,null,null,null,null,null,null,"Santa Clara Methodist Retirement Foundation, Inc.",null,"Priscilla Haynes",null,"phaynes@scmrf.org"]
[null,186441,null,null,null,null,null,null,"SantaFe Senior Living",null,"Troy Hart",null,"troy.hart@sfsl.org"]
[null,133024,null,null,null,null,null,null,"Satellite Affordable Housing Associates",null,"Susan Friedland",null,"sfriedland@sahahomes.org"]
[null,176590,null,null,null,null,null,null,"Sayre Christian Village",null,"Karen Venis",null,"kvenis@sayre.us"]
[null,151084,null,null,null,null,null,null,"Selfhelp Community Services",null,"Stuart Kaplan",null,"skaplan@selfhelp.net"]
[null,127764,null,null,null,null,null,null,"Senior Housing Options, Inc.",null,"James Goddard",null,"jgoddard@seniorhousingoptions.org"]
[null,241132,null,null,null,null,null,null,"Seniority",null,"Joseph Anderson",null,"joe.anderson@sqlc-foundation.org"]
[null,175990,null,null,null,null,null,null,"Seniors' Resource Center",null,"Chris Lynn",null,"clynn@srcaging.org"]
[null,133021,null,null,null,null,null,null,"Sequoia Living",null,"Sara McVey",null,"smcvey@sequoialiving.org"]
[null,135846,null,null,null,null,null,null,"Shepherd of the Valley Lutheran Retirement Services",null,"Richard Limongi",null,"rlimongi@shepherdofthevalley.com"]
[null,130727,null,null,null,null,null,null,"Sholom",null,"Barbara Klick",null,"bklick@sholom.com"]
[null,228416,null,null,null,null,null,null,"Silverstone Living",null,"Brian Newman",null,"bnewman@silverstoneliving.org"]
[null,186937,null,null,null,null,null,null,"Simpson Memorial Home, Inc.",null,"Shelley Wicks",null,"swicks@simpsonhome.org"]
[null,153687,null,null,null,null,null,null,"Simpson Senior Services",null,"Carol McKinley",null,"cmckinley@simpsonsenior.org"]
[null,160709,null,null,null,null,null,null,"Skaalen Retirement Services",null,"Kris Krentz",null,"kkrentz@skaalen.com"]
[null,134975,null,null,null,null,null,null,"Smith Senior Living",null,"Kevin McGee",null,"kmcgee@smithseniorliving.org"]
[null,702230,null,null,null,null,null,null,"Solaris HealthCare",null,"John Helsel",null,"john@solarisfoundation.org"]
[null,130357,null,null,null,null,null,null,"South Carolina Baptist Ministries for the Aging",null,"Tom Turner",null,"tturner@scbma.com"]
[null,130753,null,null,null,null,null,null,"SpiriTrust Lutheran",null,"Robert Rundle",null,"brundle@spiritrustlutheran.org"]
[null,144364,null,null,null,null,null,null,"Spokane Baptist Association Homes",null,"Glen Pierce",null,"gpierce@sbah.org"]
[null,132697,null,null,null,null,null,null,"Springpoint Senior Living",null,"Anthony Argondizza",null,"aargondizza@springpointsl.org"]
[null,133033,null,null,null,null,null,null,"St. Andrew's Resources for Seniors (STARS)",null,"Mary Alice Ryan",null,"maryan@standrews1.com"]
[null,181008,null,null,null,null,null,null,"St. Ann's Community",null,"Michael McRae",null,"mmcrae@mystanns.com"]
[null,685609,null,null,null,null,null,null,"St. John's Lutheran Community",null,"Scot Spates",null,"scotspates@stjohnsofalbertlea.org"]
[null,189452,null,null,null,null,null,null,"St. Luke Lutheran Community",null,"John Spieler",null,"jspieler@stllc.org"]
[null,160585,null,null,null,null,null,null,"St. Paul Elder Services, Inc.",null,"Sondra Norder",null,"sondran@stpaulelders.org"]
[null,129857,null,null,null,null,null,null,"St. Paul's Senior Services",null,"Cheryl Wilson",null,"cheryl-amy@stpaulseniors.org"]
[null,181024,null,null,null,null,null,null,"St. Peter's Health Partners",null,"James Reed",null,"james.reed@sphp.com"]
[null,174726,null,null,null,null,null,null,"St. Simeon Properties",null,"Jennifer McEvoy-Riley",null,"jennmcr1234@gmail.com"]
[null,393017,null,null,null,null,null,null,"Stoddard Baptist Home Foundation, Inc.",null,"Steven Nash",null,"snash@sbhfdc.org"]
[null,181072,null,null,null,null,null,null,"Strong Memorial Hospital",null,"Steven Goldstein",null,"steven_goldstein@urmc.rochester.edu"]
[null,160004,null,null,null,null,null,null,"Sun Health",null,"Joseph LaRue",null,"joe.larue@sunhealth.org"]
[null,151102,null,null,null,null,null,null,"Sunnyside Communities",null,"Jack Broaddus",null,"jbroaddus@sunnyside.cc"]
[null,683235,null,null,null,null,null,null,"SunPorch Senior Living",null,"John Grace",null,"john@sunporch.org"]
[null,185536,null,null,null,null,null,null,"Sunset Communities, Inc.",null,"Victoria Bartlett",null,"vicky@sunset-communities.org"]
[null,215024,null,null,null,null,null,null,"Sustainable Housing for Ageless Generations",null,"Jay Woolford",null,"jayw@shag.org"]
[null,170873,null,null,null,null,null,null,"Tabitha Health Care Services",null,"Christie Hinrichs",null,"christieh@tabitha.org"]
[null,159876,null,null,null,null,null,null,"TELACU Residential Management",null,"Jasmine Borrego",null,"jborrego@telacu.com"]
[null,159931,null,null,null,null,null,null,"The Actors' Fund, for Everyone in Entertainment",null,"Joseph Benincasa",null,"jbeninca@actorsfund.org"]
[null,161851,null,null,null,null,null,null,"The Bethel Homes",null,"Beth Goldstein",null,"beth.goldstein@bethelwell.org"]
[null,214551,null,null,null,null,null,null,"The Carmelite System, Inc.",null,"Paul MacGiffert",null,"paulmacg@carmelitesystem.org"]
[null,130886,null,null,null,null,null,null,"The Christian and Missionary Alliance",null,"John Stikma",null,"lamendolad@cmalliance.org"]
[null,241054,null,null,null,null,null,null,"The Community Builders, Inc.",null,"Bart Mitchell",null,"bmitchell@tcbinc.org"]
[null,129553,null,null,null,null,null,null,"The Eddy Senior Living",null,"Kim Baker",null,"kim.baker2@sphp.com"]
[null,159866,null,null,null,null,null,null,"The Evangelical Lutheran Good Samaritan Society",null,"David Horazdovsky",null,"dhorazdo@good-sam.com"]
[null,127758,null,null,null,null,null,null,"The Kendal Corporation",null,"Sean Kelly",null,"skelly@kcorp.kendal.org"]
[null,241144,null,null,null,null,null,null,"The Legacy Senior Communities",null,"Melissa Orth",null,"morth@thelegacysc.org"]
[null,150446,null,null,null,null,null,null,"The Lutheran Home Association",null,"Chris Meyer",null,"cgmeyer@tlha.org"]
[null,127760,null,null,null,null,null,null,"The Lutheran Home for the Aged Association - East",null,"Diane Gloede",null,"d.gloede@lhaa-e.org"]
[null,160714,null,null,null,null,null,null,"The Lutheran Home, Inc.",null,"Scott McFadden",null,"REMOVE FROM DISTRIBUTION LIST"]
[null,131032,null,null,null,null,null,null,"The National Caucus and Center on Black Aged",null,"Karyne Jones",null,"kjones@ncba-aging.org"]
[null,134053,null,null,null,null,null,null,"The New Jewish Home",null,"Jeffrey Farber",null,"jfarber@jewishhome.org"]
[null,133505,null,null,null,null,null,null,"The Ohio Masonic Home",null,"Scott Buchanan",null,"scbuchanan@ohiomasonichome.org"]
[null,209454,null,null,null,null,null,null,"The Oscar and Ella Wilf Campus for Senior Living",null,"Bob Barry",null,"bbarry@wilfcampus.org"]
[null,176411,null,null,null,null,null,null,"The RiverWoods Group",null,"Justine Vogel",null,"jvogel@trwg.org"]
[null,132681,null,null,null,null,null,null,"The United Methodist Retirement Homes, Inc.",null,"Jonathan Erickson",null,"jonathane@umrh.org"]
[null,181353,null,null,null,null,null,null,"The Wesley Community",null,"J.Brian Nealon",null,"bnealon@wesleyhealth.com"]
[null,135832,null,null,null,null,null,null,"Three Links Corporate Office",null,"Mark Anderson",null,"mark.anderson@threelinks.org"]
[null,129755,null,null,null,null,null,null,"Three Pillars Senior Living Communities",null,"Mark Strautman",null,"mstrautman@threepillars.org"]
[null,695931,null,null,null,null,null,null,"TODCO",null,"Anna Yee",null,"ayee@todco.org"]
[null,129485,null,null,null,null,null,null,"Transforming Age",null,"Torsten Hirche",null,"thirche@transformingage.org"]
[null,134824,null,null,null,null,null,null,"Trempealeau County Health Care Center",null,"Jerry  Deetz",null,"jdeetz@tchcc.com"]
[null,658084,null,null,null,null,null,null,"Trinity Health PACE",null,"Kelly Hopkins",null,"kelly.hopkins@trinity-health.org"]
[null,129063,null,null,null,null,null,null,"Trinity Health Senior Communities",null,"Steven Kastner",null,"steven.kastner@trinity-health.org"]
[null,132655,null,null,null,null,null,null,"United Church Homes",null,"Kenneth Daniel",null,"kdaniel@uchinc.org"]
[null,127747,null,null,null,null,null,null,"United Church Homes and Services",null,"Lee Syria",null,"lsyria@uchas.org"]
[null,133409,null,null,null,null,null,null,"United Church of Christ Homes",null,"Stephen Horvath",null,"shorva@ucc-homes.org"]
[null,135687,null,null,null,null,null,null,"United Helpers Management Company, Inc.",null,"Steve Knight",null,"seknight@unitedhelpers.org"]
[null,130371,null,null,null,null,null,null,"United Lutheran Program for the Aging",null,"Stephanie Chedid",null,"schedid@luthermanor.org"]
[null,158754,null,null,null,null,null,null,"United Methodist Elder Care",null,"Rick Gamache",null,"rgamache@aldersbridge.org"]
[null,133311,null,null,null,null,null,null,"United Methodist Homes",null,"David Lawlor",null,"dlawlor@umh.org"]
[null,133747,null,null,null,null,null,null,"United Methodist Homes - NY",null,"Brian Picchini",null,"bpicchini@umhwc.org"]
[null,203554,null,null,null,null,null,null,"United Methodist Memorial Community",null,"David Souder",null,"dsouder@ummh.org"]
[null,128192,null,null,null,null,null,null,"United Methodist Retirement Communities, Inc.",null,"Stephen Fetyko",null,"sfetyko@umrc.com"]
[null,185287,null,null,null,null,null,null,"UPMC Senior Communities, Inc.",null,"Mark Bondi",null,"bondmd@upmc.edu"]
[null,699655,null,null,null,null,null,null,"UPMC Susquehanna",null,"Anne Holladay",null,"holladayae2@upmc.edu"]
[null,684718,null,null,null,null,null,null,"Veteran's Care Center of Oregon",null,"Van Moore",null,"van@westcaremgt.com"]
[null,131321,null,null,null,null,null,null,"Victory Housing, Inc.",null,"Leila A. Finucane",null,"lfinucane@victoryhousing.org"]
[null,154176,null,null,null,null,null,null,"VillageCare",null,"Emma DeVito",null,"emmad@villagecare.org"]
[null,153005,null,null,null,null,null,null,"Vincentian Collaborative System",null,"Nick Vizzoca",null,"nvizzoca@vcs.org"]
[null,133975,null,null,null,null,null,null,"Virginia Lutheran Homes, Inc.",null,"Heather Neff",null,"hneff@vlhnet.org"]
[null,201653,null,null,null,null,null,null,"Visiting Nurse Health System, Inc.",null,"Norene Mostkoff",null,"norene.mostkoff@vnhs.org"]
[null,618781,null,null,null,null,null,null,"Vista Prairie Communities",null,"Jim Bettendorf",null,"jimbettendorf@vistaprairie.org"]
[null,160715,null,null,null,null,null,null,"VMP Healthcare and Community Living",null,"Elizabeth Toohill",null,"elizabeth.toohill@vmp.org"]
[null,138874,null,null,null,null,null,null,"Volunteers of America",null,"Mike King",null,"mking@voa.org"]
[null,127680,null,null,null,null,null,null,"Volunteers of America Health Services",null,"Wayne Olson",null,"wolson@voa.org"]
[null,153273,null,null,null,null,null,null,"Voyage Senior Living (FKA River To River Residential Corp.)",null,"Sherry Barter Hamlin",null,"sbarter@rivertoriver.org"]
[null,129611,null,null,null,null,null,null,"Walker Methodist, Inc.",null,"Scott Riddle",null,"sriddle@walkermethodist.org"]
[null,135741,null,null,null,null,null,null,"Waveny LifeCare Network",null,"Russell Barksdale, Jr.",null,"rbarksdale@waveny.org"]
[null,131696,null,null,null,null,null,null,"Wellspring Lutheran Services",null,"Dave Gehm",null,"dgehm@wellspringlutheran.com"]
[null,153893,null,null,null,null,null,null,"WellStar West Georgia Medical Center",null,"Coleman Foss",null,"coleman.foss@wellstar.org"]
[null,230790,null,null,null,null,null,null,"Wesley",null,"Kevin Anderson",null,"kanderson@wesleyhomes.org"]
[null,134323,null,null,null,null,null,null,"Wesley Willows MSO",null,"William T. Pratt",null,"billp@wesleywillows.org"]
[null,132712,null,null,null,null,null,null,"Wesley Woods Senior Living, Inc.",null,"Terry Barcroft",null,"terry.barcroft@wesleywoods.org"]
[null,131306,null,null,null,null,null,null,"Wesleyan Homes, Inc.",null,"Mark Lenhard",null,"mark.lenhard@wesleyanhomes.org"]
[null,132707,null,null,null,null,null,null,"WesleyLife",null,"Rob Kretzinger",null,"rkretzinger@wesleylife.org"]
[null,130143,null,null,null,null,null,null,"Western Home Communities",null,"Kris Hansen",null,"kris.hansen@westernhome.org"]
[null,132973,null,null,null,null,null,null,"Westminster Communities of Florida",null,"Roger Stevens",null,"rstevens@wservices.org"]
[null,128389,null,null,null,null,null,null,"Willamette View, Inc.",null,"Craig Van Valkenburg",null,"craigv@willametteview.org"]
[null,185698,null,null,null,null,null,null,"Willow Brook Christian Communities",null,"Larry Harris",null,"lharris@willow-brook.org"]
[null,129708,null,null,null,null,null,null,"Willow Valley Communities",null,"John Swanson",null,"jswanson@willowvalley.org"]
[null,160051,null,null,null,null,null,null,"Woodside Senior Communities",null,"Scott Ross",null,"sross@woodsidelh.org"]
[null,130011,null,null,null,null,null,null,"WRC Senior Services",null,"Barbara Sepich",null,"bsepich@wrc.org"]
[]
[null,"END PRIMARY LIST"]
[]
[]
[]
[]
[]
[]
["HR DIRECTORS"]
[]
[null,690446,null,null,null,null,null,null,"AbbeHealth",null,"Denise Steggall",null,"dsteggall@abbehealth.org"]
[null,173298,null,null,null,null,null,null,"ACC Senior Services",null,"Tony Waterford",null,"twaterford@accsv.org"]
[null,185273,null,null,null,null,null,null,"AHEPA Management Company",null,"Kim  Gregory",null,"kgregory@ahepahousing.org"]
[null,128447,null,null,null,null,null,null,"Albright Care Services",null,"Jim  Lucy",null,"jim.lucy@albrightcare.org"]
[null,131296,null,null,null,null,null,null,"Allegheny Lutheran Social Ministries",null,"Becky  Young",null,"becky.young@alsm.org"]
[null,639975,null,null,null,null,null,null,"Alliance Health Management Services, LLC",null,"Shaun Doyle",null,"sdoyle@alliancehms.org"]
[null,132711,null,null,null,null,null,null,"American Baptist Homes of the Midwest",null,"Andrea Blatnick",null,"ablatnik@abhomes.org"]
[null,160045,null,null,null,null,null,null,"American Lutheran Homes, Inc.",null,"Terri Knutson",null,"tknutson@americanlutheranhomes.com"]
[null,140606,null,null,null,null,null,null,"Asbury Communities, Inc.",null,"Ana Rivera",null,"arivera@asbury.org"]
[null,620266,null,null,null,null,null,null,"Ascension Living",null,"Laurie Bova",null,"laurie.bova@ascension.org"]
[null,128845,null,null,null,null,null,null,"Auburn Homes and Services",null,"Jennifer Wulf",null,"jwulf@auburnhomes.org"]
[null,131796,null,null,null,null,null,null,"Baptist Homes Society",null,"Eric Conti",null,"elc@baptisthomes.org"]
[null,120255,null,null,null,null,null,null,"Baptist Retirement Homes of North Carolina",null,"Jeannine Richman",null,"jrichman@brh.org"]
[null,135072,null,null,null,null,null,null,"Baptist Village Communities",null,"Ken Mills",null,"kmills@baptistvillage.org"]
[null,579569,null,null,null,null,null,null,"Baruch Senior Ministries",null,"Chris Meengs",null,"chris.meengs@baruchsls.org"]
[null,135891,null,null,null,null,null,null,"Beechwood Continuing Care",null,"Kristin Anderson",null,"kanderson@beechwoodcare.org"]
[null,166504,null,null,null,null,null,null,"Benedictine Health System - Twin Cities office",null,"Patricia Nott",null,"patricia.nott@bhshealth.org"]
[null,159892,null,null,null,null,null,null,"Bethany Life",null,"Betsy Warburton",null,"betsy@bethanylife.org"]
[null,129213,null,null,null,null,null,null,"Bethany Lutheran Homes, Inc.",null,"Carin Myhre",null,"cmyhre@eaglecrestlife.org"]
[null,160440,null,null,null,null,null,null,"Bethany St. Joseph Corporation",null,"Jennifer Sass",null,"jsass@bsjcorp.com"]
[null,160454,null,null,null,null,null,null,"Bethel Homes and Services, Inc.",null,"Jeanne Barr",null,"jbarr@bethelhome.org"]
[null,208935,null,null,null,null,null,null,"Bethesda Health & Housing",null,"Baillee Hauser",null,"baillee.hauser@bethesdawillmar.com"]
[null,157009,null,null,null,null,null,null,"Bethesda Health Group, Inc",null,"Kathy Joslin",null,"kejoslin@bethesdahealth.org"]
[null,151689,null,null,null,null,null,null,"Bethesda Senior Living Communities",null,"Dana Rasic",null,"drasic@ba.org"]
[null,133001,null,null,null,null,null,null,"BHI Senior Living, Inc.",null,"Donna  Gould",null,"dgould@bhiseniorliving.org"]
[null,128549,null,null,null,null,null,null,"Blue Skies of Texas",null,"Ally Dees",null,"allydees@blueskiestx.org"]
[null,243676,null,null,null,null,null,null,"Bluestem Communities",null,"Clark Rothrock",null,"clarkr@bluestemks.org"]
[null,131297,null,null,null,null,null,null,"Brazos Presbyterian Homes, Inc.",null,"Angela  Bryant",null,"angela.bryant@houstonretirement.org"]
[null,132552,null,null,null,null,null,null,"Brethren Village",null,"Nancy Eshleman",null,"neshleman@bv.org"]
[null,132701,null,null,null,null,null,null,"Buckner Retirement Services, Inc.",null,"Karen Houston",null,"khouston@buckner.org"]
[null,133739,null,null,null,null,null,null,"California-Nevada Methodist Homes",null,"Jan Peacock",null,"peacockj@cmalliance.org"]
[null,704564,null,null,null,null,null,null,"Cassia",null,"Angela  Brown",null,"angela.brown@cassialife.org"]
[null,132945,null,null,null,null,null,null,"Cathedral Square Corporation",null,"Carmel Ewing",null,"ewing@cathedralsquare.org"]
[null,208936,null,null,null,null,null,null,"Catholic Eldercare",null,"Kelley Dickerson",null,"kdickerson@catholiceldercare.org"]
[null,119968,null,null,null,null,null,null,"Catholic Health Services of Florida",null,"Lori Fassler",null,"lfassler@chsfla.com"]
[null,181379,null,null,null,null,null,null,"Cedar Sinai Park",null,"Geneva Dougal",null,"geneva.dougal@cedarsinaipark.org"]
[null,674246,null,null,null,null,null,null,"Centra Health Senior Care Services Division",null,"Kristie Gregory",null,"kristie.gregory@centrahealth.com"]
[null,171858,null,null,null,null,null,null,"Chelsea Jewish Lifecare, Inc.",null,"Nancy Milewska",null,"nmilewska@chelseajewish.org"]
[null,133801,null,null,null,null,null,null,"Christian Care Communities",null,"Teri Popp",null,"teri.popp@ccc1884.org"]
[null,159989,null,null,null,null,null,null,"Christian Care Companies of AZ",null,"Edward Johnson",null,"ed.johnson@christiancare.org"]
[null,128025,null,null,null,null,null,null,"Christian Care Senior Living Communities",null,"Wendy  Scoggins",null,"wscoggins@cccinc.net"]
[null,133848,null,null,null,null,null,null,"Christian Church Homes of Northern California",null,"Vickie Gabriel",null,"vgabriel@cchnc.org"]
[null,134464,null,null,null,null,null,null,"Christian Health Care Center",null,"Bob Zierold",null,"bzierold@chccnj.org"]
[null,239640,null,null,null,null,null,null,"Christian Horizons, Inc. - Missouri",null,"Carol  Houle",null,"choule@chliving.org"]
[null,131713,null,null,null,null,null,null,"Christian Living Communities",null,"Rachael Kelly",null,"rkelly@clcmail.org"]
[null,133953,null,null,null,null,null,null,"Christopher Homes, Inc.",null,"Immaculata Taylor",null,"itaylor@chi-ano.org"]
[null,135300,null,null,null,null,null,null,"CJE SeniorLife - Housing Management Service",null,"Betsy Bauer",null,"betsy.bauer@cje.net"]
[null,144351,null,null,null,null,null,null,"Community First Solutions",null,"Stacey Andrews",null,"sandrews@community-first.org"]
[null,132550,null,null,null,null,null,null,"Concordia Lutheran Ministries",null,"Michael Falbo",null,"mfalbo@concordialm.org"]
[null,133738,null,null,null,null,null,null,"Covenant Living Communities and Services",null,"Aliza  Steinberg",null,"aksteinberg@covenantretirement.org"]
[null,132698,null,null,null,null,null,null,"Covia Communities",null,"Prab Brinton",null,"pbrinton@covia.org"]
[null,617098,null,null,null,null,null,null,"CSJ Initiatives, Inc.",null,"Rachel Prine",null,"rprine@csjinitiatives.org"]
[null,238319,null,null,null,null,null,null,"DYouville Life & Wellness Community",null,"Kathleen McCarthy",null,"kmccarthy@dyouville.org"]
[null,159984,null,null,null,null,null,null,"Daily Living Centers, Inc.",null,"Joie Schaefer",null,"joie@dlcok.org"]
[null,129915,null,null,null,null,null,null,"Deaconess Abundant Life Communities",null,"Nancy Marzilli",null,"nmarzilli@nedeaconess.org"]
[null,134351,null,null,null,null,null,null,"Diakon Lutheran Social Ministries, Inc.",null,"Jenn Rautzhan",null,"rautzhanj@diakon.org"]
[null,144109,null,null,null,null,null,null,"Eaton Senior Communities, Inc.",null,"Jessica Culey",null,"jculey@eatonsenior.org"]
[null,140873,null,null,null,null,null,null,"Ebenezer",null,"Steve Haack",null,"sdjaack@healtheast.org"]
[null,131298,null,null,null,null,null,null,"EdenHill Communities",null,"Jill Wilson",null,"jillw@edenhill.org"]
[null,163343,null,null,null,null,null,null,"Elderly Housing Development and Operations Corporation",null,"Irene Phillips",null,"iphillips@ehdoc.org"]
[null,133691,null,null,null,null,null,null,"Embrace Living Communities",null,"Cindy Westfall",null,"cwestfall@embracelivingcommunities.org"]
[null,617122,null,null,null,null,null,null,"Emerald Communities",null,"Michelle Wood ",null,"michellew@emeraldcommunities.com"]
[null,161973,null,null,null,null,null,null,"Episcopal Communities & Services",null,"Stacie Ocampo",null,"socampo@ecsforseniors.org"]
[null,130962,null,null,null,null,null,null,"Episcopal Homes of Minnesota",null,"Emilee Sames",null,"esames@episcopalhomes.org"]
[null,129177,null,null,null,null,null,null,"Episcopal Retirement Communities",null,"Anne Beighle",null,"abeighle@erslife.org"]
[null,131290,null,null,null,null,null,null,"Episcopal Retirement Services",null,"Joan Wetzel",null,"jwetzel@erslife.org"]
[null,162406,null,null,null,null,null,null,"Episcopal SeniorLife Communities Inc.",null,"Laura DeLuccio",null,"ldeluccio@episcopalseniorlife.org"]
[null,133849,null,null,null,null,null,null,"Eskaton",null,"Trish Bayless",null,"patricia.bayless@eskaton.org"]
[null,171215,null,null,null,null,null,null,"Eventide Senior Living Communities",null,"Jesse Stowman",null,"jess.stowman@eventide.org"]
[null,120019,null,null,null,null,null,null,"Evergreen Retirement Community, Inc.",null,"Erin Sanders",null,"esanders@evergreenoshkosh.com"]
[null,137936,null,null,null,null,null,null,"Franciscan Ministries",null,"Greg Belbeck",null,"gbelback@franciscanministries.org"]
[null,181071,null,null,null,null,null,null,"Friendly Senior Living",null,"Robin Shillington",null,"rshillington@friendlyhome.org"]
[null,130674,null,null,null,null,null,null,"Friends Homes, Inc.",null,"Pat Manuel",null,"pmanuel@friendshomes.org"]
[null,198212,null,null,null,null,null,null,"Friendship Senior Options, Inc.",null,"Josh Flaim",null,"josh.flaim@myfso.org"]
[null,708054,null,null,null,null,null,null,"Friendship Village Senior Living Communities",null,"Gayle Randa ",null,"randagayle@fvstl.com"]
[null,689379,null,null,null,null,null,null,"Garden Spot Communities",null,"Bryan Groff",null,"bgroff@gardenspotcommunities.org"]
[null,155648,null,null,null,null,null,null,"Genacross Lutheran Services",null,"Jeffrey Schulte",null,"jschulte@genacross.org"]
[null,694798,null,null,null,null,null,null,"Givens Communities",null,"Amy Staton",null,"astaton@givenscommunities.org"]
[null,228353,null,null,null,null,null,null,"Good Shepherd Communities",null,"Linka Parke",null,"lp@goodshepherdcommunities.org"]
[null,677638,null,null,null,null,null,null,"Good Shepherd Society",null,"Nancy Troe",null,"nancy@goodshepmc.org"]
[null,135230,null,null,null,null,null,null,"Goodwin House Incorporated",null,"Frank Casey",null,"fcasey@goodwinhouse.org"]
[null,137965,null,null,null,null,null,null,"Graceworks Lutheran Services",null,"Jennifer Wurzelbacher",null,"jwurzelbacher@graceworks.org"]
[null,132724,null,null,null,null,null,null,"Greencroft Communities",null,"Jinny Longbrake",null,"jinny.longbrake@greencroftcommunities.org"]
[null,129599,null,null,null,null,null,null,"Guardian Angels of Elk River, Inc.",null,"Nicole  Novotny",null,"nnovotny@ga-er.org"]
[null,159888,null,null,null,null,null,null,"Hartford HealthCare Senior Services",null,"Heather DePaolo",null,"heather.depaolo@hhchealth.org"]
[null,619120,null,null,null,null,null,null,"Haverland Carter Lifestyle Group",null,"Lynn Carlberg",null,"lcarlberg@haverlandcarter.com"]
[null,131655,null,null,null,null,null,null,"Hebrew SeniorLife",null,"Deborah Lemmerman",null,"deblemmerman@hsl.harvard.edu"]
[null,228171,null,null,null,null,null,null,"Heritage Community of Kalamazoo",null,"Myra Johnson",null,"mjohnson@heritagecommunity.com"]
[null,138976,null,null,null,null,null,null,"Heritage Ministries",null,"Tabitha Minadeo",null,"tminadeo@heritage1886.org"]
[null,134102,null,null,null,null,null,null,"Holland Home",null,"David Tiesenga",null,"david.tiesenga@hollandhome.org"]
[null,133677,null,null,null,null,null,null,"Homewood Retirement Centers of the United Church of Christ, Inc.",null,"Lin Yoder",null,"ljyoder@hmwd.org"]
[null,131466,null,null,null,null,null,null,"HumanGood Inc.",null,"Connie Dong",null,"connie.dong@humangood.org"]
[null,144456,null,null,null,null,null,null,"Immanuel",null,"Lindsay Wyant",null,"lwyant@immanuel.com"]
[null,224931,null,null,null,null,null,null,"Ingleside",null,"Allen Harris",null,"aharris@inglesideonline.org"]
[null,132786,null,null,null,null,null,null,"Jewish Community Housing Corporation of Metropolitan New Jersey",null,"Richard Weiner",null,"richardw@jchcorp.org"]
[null,216750,null,null,null,null,null,null,"Jewish Home Family",null,"Lauren Levant",null,"llevant@jewishhomefamily.org"]
[null,134360,null,null,null,null,null,null,"Jewish Senior Life",null,"Dianne Azzopardi",null,"dazzopardi@jslmi.org"]
[null,230879,null,null,null,null,null,null,"Jewish Senior Living Group",null,"Kevin Krueger",null,"kkrueger@jslg.org"]
[null,236376,null,null,null,null,null,null,"Keiro Northwest",null,"Theresa McLaughlin",null,"tmclaughlin@keironw.org"]
[null,133371,null,null,null,null,null,null,"Kendal- Crosslands Communities",null,"Wanda Whitted",null,"wwhitted@kcorp.kendal.org"]
[null,671426,null,null,null,null,null,null,"Knute Nelson",null,"Marnie Gugisberg",null,"marnie.gugisberg@knutenelson.org"]
[null,134816,null,null,null,null,null,null,"Lakeview Health Center",null,"Amy Stakston-Wiedemann",null,"astakston-wiedemann@lacrossecounty.org"]
[null,128069,null,null,null,null,null,null,"Landis Communities",null,"Allen Heinly",null,"aheinly@landishomes.org"]
[null,127902,null,null,null,null,null,null,"Lesley Senior Communities",null,"Juan Gonzalez",null,"jgonzalez@lesleysc.org"]
[null,176706,null,null,null,null,null,null,"Liberty Lutheran",null,"David Brown",null,"dbrown@libertylutheran.org"]
[null,162334,null,null,null,null,null,null,"Life Enriching Communities",null,"James Bowersox",null,"james.bowersox@lec.org"]
[null,128530,null,null,null,null,null,null,"Lifespace Communities, Inc.",null,"Gretchen Forristall",null,"gretchen.forristall@lifespacecommunities.com"]
[null,133025,null,null,null,null,null,null,"LifeSpire of Virginia",null,"Leslie Caldwell",null,"lcaldwell@lifespireliving.org"]
[null,195551,null,null,null,null,null,null,"LifeStream Complete Senior Living, Inc.",null,"Lea-Ann  Reikes",null,"lreikes@lifestreamliving.com"]
[null,131277,null,null,null,null,null,null,"Living Branches",null,"Kathy Shott",null,"kathy.shott@livingbranches.org"]
[null,128937,null,null,null,null,null,null,"Loomis Communities, Inc.",null,"Matthew Giroux",null,"mgiroux@loomiscommunities.org"]
[null,573109,null,null,null,null,null,null,"Loretto Health & Rehabilitation Center, Inc.",null,"Megan Sargeant",null,"msargeant@lorettosystem.org"]
[null,207509,null,null,null,null,null,null,"Los Angeles Jewish Home",null,"Alyssa Alderman",null,"alyssa.alderman@jha.org"]
[null,130033,null,null,null,null,null,null,"LSC Service Corporation",null,"debbie Edson",null,"dedson@lscservice.com"]
[null,160583,null,null,null,null,null,null,"Lutheran Homes and Health Services",null,"Gary Thorpe",null,"gthorpe@marquardtmanagement.com"]
[null,130358,null,null,null,null,null,null,"Lutheran Homes of South Carolina, Inc.",null,"Christina Moody",null,"cmoody@lhomes.org"]
[null,180774,null,null,null,null,null,null,"Lutheran Life Communities",null,"Kelly Stegall",null,"kelly.stegall@lulife.org"]
[null,128243,null,null,null,null,null,null,"Lutheran Life Villages",null,"Lindsey Wertz",null,"lwertz@lutheranlifevillages.org"]
[null,134531,null,null,null,null,null,null,"Lutheran Senior Services",null,"Denis Thien",null,"denis.thien@lssliving.org"]
[null,128093,null,null,null,null,null,null,"Lutheran SeniorLife",null,"Jody Ferranti",null,"jody.ferranti@lutheranseniorlife.org"]
[null,128037,null,null,null,null,null,null,"Lutheran Services Carolinas",null,"Brandy Downs",null,"bdowns@lscarolinas.net"]
[null,130951,null,null,null,null,null,null,"Lutheran Social Ministries of New Jersey",null,"Krista Jacobs  ",null,"kjacobs@lsmnj.org"]
[null,132039,null,null,null,null,null,null,"Lutheran Social Services Group, Inc.",null," Katrina Jones",null,"katrinaj@lutheran-jamestown.org"]
[null,202432,null,null,null,null,null,null,"Lutheran Sunset Ministries",null,"Amanda Allyn",null,"aallyn@lutheransunset.org"]
[null,131765,null,null,null,null,null,null,"Luthercare",null,"Blake Daub",null,"bdaub@luthercare.org"]
[null,133305,null,null,null,null,null,null,"Maple Knoll Communities, Inc.",null,"James Stahl",null,"jstahl@mkcommunities.org"]
[null,637079,null,null,null,null,null,null,"Mary Ann Morse Healthcare Corp.",null,"Robert Maguire",null,"rmaguire@maryannmorse.org"]
[null,171417,null,null,null,null,null,null,"Masonic Homes Kentucky, Inc",null,"Trasee Whitaker",null,"twhitaker@masonicky.com"]
[null,146470,null,null,null,null,null,null,"Masonic Villages",null,"Susan Gainer",null,"sgainer@masonicvillages.org"]
[null,132593,null,null,null,null,null,null,"Mather LifeWays",null,"Greg Pilafas",null,"gpilafas@matherlifeways.com"]
[null,133817,null,null,null,null,null,null,"Mayflower Homes, Inc.",null,"Christy Kaisand",null,"ckaisand@mayflowerhomes.org"]
[null,167842,null,null,null,null,null,null,"Menorah Housing Foundation",null,"Doug Cope",null,"dcope@mhfla.org"]
[null,140871,null,null,null,null,null,null,"Mercy Community Health, Inc.",null,"Philip Murray",null,"pmurray@mchct.org"]
[null,687059,null,null,null,null,null,null,"Messiah Lifeways",null,"Karl Brummer",null,"kbrummer@messiahlifeways.org"]
[null,133414,null,null,null,null,null,null,"Methodist Retirement Communities",null,"Frances Beltran",null,"fbeltran@mrcaff.org"]
[null,133383,null,null,null,null,null,null,"Methodist Senior Services",null,"Christie Vance",null,"christie.vance@mss.org"]
[null,138931,null,null,null,null,null,null,"Midwest Geriatrics, Inc.",null,"Paige Williamson",null,"pwilliamson@shf.org"]
[null,133676,null,null,null,null,null,null,"Miravida Living",null,"Kari  Hawkinson",null,"khawkinson@miravidaliving.com"]
[null,184696,null,null,null,null,null,null,"MJHS",null,"Susan Bornstein",null,"sbornste@mjhs.org"]
[null,127652,null,null,null,null,null,null,"Morningside Ministries",null,"Christine Nguyen",null,"christine.nguyen@mmliving.org"]
[null,133748,null,null,null,null,null,null,"National Church Residences",null,"Stacey Gates",null,"sgates@nationalchurchresidences.org"]
[null,208939,null,null,null,null,null,null,"Northfield Retirement Community",null,"Tom Nielsen",null,"tnielsen@northfieldretirement.org"]
[null,136868,null,null,null,null,null,null,"Oakwood Lutheran Senior Ministries",null,"Kathy Groth",null,"kathy.groth@oakwoodvillage.net"]
[null,132710,null,null,null,null,null,null,"Ohio Living",null,"Sharon Cox",null,"scox@ohioliving.org"]
[null,684718,null,null,null,null,null,null,"Oregon Veterans' Home",null,"Suzanne Steinhebel",null,"suzanne.steinhebel@ovhlebanon.org"]
[null,128481,null,null,null,null,null,null,"Otterbein SeniorLife",null,"Emily Lovely",null,"emily.lovely@otterbein.org"]
[null,624318,null,null,null,null,null,null,"Overlook Masonic Health Center",null,"Susan Ehrlich",null,"sehrlich@overlook-mass.org"]
[null,132265,null,null,null,null,null,null,"Pacific Retirement Services",null,"Emily Perry",null,"eeperry@retirement.org"]
[null,152446,null,null,null,null,null,null,"Palolo Chinese Home",null,"Lauren Kagihara",null,"lkagihara@palolohome.org"]
[null,128028,null,null,null,null,null,null,"Parker Health Group, Inc.",null,"Dawn Kellerman",null,"dkellerman@parkerlife.org"]
[null,132949,null,null,null,null,null,null,"Phoebe Ministries",null,"Lisa Fichera",null,"lfichera@phoebe.org"]
[null,135768,null,null,null,null,null,null,"PioneerCare",null,"Patti Fandrich",null,"pattif@pioneercare.org"]
[null,173763,null,null,null,null,null,null,"Plano Community Home, Inc.",null,"Michele Shevlin",null,"michele.shevlin@planocommunityhome.org"]
[null,132591,null,null,null,null,null,null,"Presby's Inspired Life",null,"Danielle Devlin",null,"danielle.devlin@presbysinspiredlife.org"]
[null,132923,null,null,null,null,null,null,"Presbyterian Communities of South Carolina",null,"Jessica Lowe",null,"jlowe@prescomm.org"]
[null,163483,null,null,null,null,null,null,"Presbyterian Homes - Skokie",null,"Andrew Wissel",null,"awissel@presbyterianhomes.org"]
[null,160037,null,null,null,null,null,null,"Presbyterian Homes and Services",null,"Summer Benoit",null,"sbenoit@preshomes.org"]
[null,131378,null,null,null,null,null,null,"Presbyterian Homes of Georgia, Inc.",null,"Gwen Hardy",null,"ghardy@phgainc.org"]
[null,127852,null,null,null,null,null,null,"Presbyterian Homes, Inc.",null,"Rhonda Cummons",null,"rcummons@presbyhomesinc.org"]
[null,133022,null,null,null,null,null,null,"Presbyterian Manors of Mid-America, Inc.",null,"Shari Rains",null,"srains@pmma.org"]
[null,130454,null,null,null,null,null,null,"Presbyterian Senior Care of Western New York",null,"Shaun Headley",null,"sheadley@srcare.org"]
[null,132703,null,null,null,null,null,null,"Presbyterian Senior Living",null,"MaryAnne Adamcyzk",null,"madamczyk@psl.org"]
[null,131018,null,null,null,null,null,null,"Presbyterian SeniorCare Network",null,"Tanya Ulrich",null,"tulrich@srcare.org"]
[null,130602,null,null,null,null,null,null,"Presbyterian Villages of Michigan",null,"LaDonna Holley",null,"lholley@pvm.org"]
[null,239671,null,null,null,null,null,null,"Preservation of Affordable Housing, Inc.",null,"Kathy Carpenter",null,"kcarpenter@poah.org"]
[null,129570,null,null,null,null,null,null,"Providence Life Services",null,"Bill  De Young",null,"billd@provlife.com"]
[null,242919,null,null,null,null,null,null,"Redstone Presbyterian Senior Care",null,"Kathie Brean",null,"kbrean@redstone.org"]
[null,183162,null,null,null,null,null,null,"Regional Health",null,"Tresha Moreland",null,"tmoreland@regionalhealth.org"]
[null,133023,null,null,null,null,null,null,"Retirement Housing Foundation",null,"Barbara Olivas",null,"barbara.olivas@rhf.org"]
[null,662341,null,null,null,null,null,null,"Riverside Senior Life Communities",null,"Becky Hinrichs",null,"bhinrichs@rhc.net"]
[null,134369,null,null,null,null,null,null,"RiverSpring Health",null,"JoAnne DeVito",null,"joanne.devito@riverspringhealth.org"]
[null,154587,null,null,null,null,null,null,"Saint Mary's Home of Erie",null,"Kim Figurski",null,"kfigurski@stmaryshome.org"]
[null,133018,null,null,null,null,null,null,"Saint Teresa's Mother House",null,"Paul MacGiffert",null,"pmacgiffert@carmelitesystem.org"]
[null,142031,null,null,null,null,null,null,"Samaritan Bethany, Inc.",null,"Sue Knutson",null,"sknutson@samaritanbethany.com"]
[null,132706,null,null,null,null,null,null,"Samaritas",null,"Wendy Lato",null,"wlato@samaritas.org"]
[null,186441,null,null,null,null,null,null,"SantaFe Senior Living",null,"Richard Hendrix",null,"rich.hendrix@sfsl.org"]
[null,176590,null,null,null,null,null,null,"Sayre Christian Village",null,"Blair Wood",null,"bwood@sayre.us"]
[null,151084,null,null,null,null,null,null,"Selfhelp Community Services",null,"Paula Yamakaitis",null,"pyamakaitis@selfhelp.net"]
[null,133021,null,null,null,null,null,null,"Sequoia Living",null,"Martha Atwood",null,"mau@ncphs.org"]
[null,130727,null,null,null,null,null,null,"Sholom",null,"Bethani Sidla",null,"bsidla@sholom.com"]
[null,153687,null,null,null,null,null,null,"Simpson Senior Services",null,"Bonnie Chandler",null,"bchandler@simpsonsenior.org"]
[null,160709,null,null,null,null,null,null,"Skaalen Retirement Services",null,"Nancy Martin",null,"nmartin@skaalen.com"]
[null,130753,null,null,null,null,null,null,"SpiriTrust Lutheran",null,"Robert Rundle",null,"brundle@spiritrustlutheran.org"]
[null,132697,null,null,null,null,null,null,"Springpoint Senior Living",null," Maria Talbot",null,"mtalbot@springpointsl.org"]
[null,133033,null,null,null,null,null,null,"St. Andrew's Resources for Seniors (STARS)",null,"Dawn Sargeant",null,"dsargent@standrews1.com"]
[null,181008,null,null,null,null,null,null,"St. Ann's Community",null,"Michelle Dwyer",null,"mdwyer@mystanns.com"]
[null,685609,null,null,null,null,null,null,"St. John's Lutheran Community",null,"MaChar Kingstrom",null,"machar@stjohnsofalbertlea.org"]
[null,160585,null,null,null,null,null,null,"St. Paul Elder Services, Inc.",null,"Kay Fitzgerald",null,"kayf@stpaulelders.org"]
[null,129857,null,null,null,null,null,null,"St. Paul's Senior Services",null,"Cory Fish  ",null,"cory@stpaulseniors.org"]
[null,160004,null,null,null,null,null,null,"Sun Health",null,"Yelitza Silva",null,"yelitza.silva@sunhealthsl.org"]
[null,151102,null,null,null,null,null,null,"Sunnyside Communities",null,"Paula Greenhagen",null,"pgreenhagaen@sunnyside.cc"]
[null,185536,null,null,null,null,null,null,"Sunset Communities, Inc.",null,"Victoria Bartlett",null,"vicky@sunset-communities.org"]
[null,215024,null,null,null,null,null,null,"Sustainable Housing for Ageless Generations",null,"Maurice Sharpe",null,"maurices@shag.org"]
[null,170873,null,null,null,null,null,null,"Tabitha Health Care Services",null,"Amanda Krohn",null,"amanda.krohn@tabitha.org"]
[null,159931,null,null,null,null,null,null,"The Actors' Fund, for Everyone in Entertainment",null,"Thomas Borchard",null,"tborchard@actorsfund.org"]
[null,161851,null,null,null,null,null,null,"The Bethel Homes",null,"Nicole Tangredi",null,"nicole.tangredi@bethelwell.org"]
[null,214551,null,null,null,null,null,null,"The Carmelite System, Inc.",null,"Walter Avis",null,"wavis@carmelitesystem.org"]
[null,127758,null,null,null,null,null,null,"The Kendal Corporation",null,"Wanda Whitted",null,"wwhitted@kcorp.kendal.org"]
[null,241144,null,null,null,null,null,null,"The Legacy Senior Communities",null,"Renee Anderson",null,"randerson@thelegacysc.org"]
[null,134053,null,null,null,null,null,null,"The New Jewish Home",null,"Audrey Wathen",null,"awathen@jewishhome.org"]
[null,209454,null,null,null,null,null,null,"The Oscar and Ella Wilf Campus for Senior Living",null,"Jennifer Duda",null,"jduda@wilfcampus.org"]
[null,176411,null,null,null,null,null,null,"The RiverWoods Group",null,"Dawn Barker",null,"dbarker@trwg.org"]
[null,132681,null,null,null,null,null,null,"The United Methodist Retirement Homes, Inc.",null,"Lisa Sealy",null,"lisas@umrh.org"]
[null,135832,null,null,null,null,null,null,"Three Links Corporate Office",null,"Sheri Priebe",null,"sheri.priebe@threelinks.org"]
[null,129755,null,null,null,null,null,null,"Three Pillars Senior Living Communities",null,"Kathy Bernaden",null,"kbernaden@threepillars.org"]
[null,129485,null,null,null,null,null,null,"Transforming Age",null,"Torsten Hirche",null,"thirche@transformingage.org"]
[null,129063,null,null,null,null,null,null,"Trinity Health Senior Communities",null,"Meg Reimer",null,"reimerm@trinity-health.org"]
[null,132655,null,null,null,null,null,null,"United Church Homes",null,"Julie Ward",null,"jward@uchinc.org"]
[null,127747,null,null,null,null,null,null,"United Church Homes and Services",null,"Cathy Cooper",null,"ccooper@uchas.org"]
[null,135687,null,null,null,null,null,null,"United Helpers Management Company, Inc.",null,"Michelle Matthews",null,"mrmatthews@unitedhelpers.org"]
[null,133747,null,null,null,null,null,null,"United Methodist Homes - NY",null,"James Silkworth",null,"jsilkworth@umhwc.org"]
[null,128192,null,null,null,null,null,null,"United Methodist Retirement Communities, Inc.",null,"Cathy Degen",null,"cdegen@umrc.com"]
[null,153005,null,null,null,null,null,null,"Vincentian Collaborative System",null,"Susan Black",null,"sblack@vcs.org"]
[null,618781,null,null,null,null,null,null,"Vista Prairie Communities",null,"Courtney Oliver",null,"hr@vistaprairie.org"]
[null,138874,null,null,null,null,null,null,"Volunteers of America",null,"Tia Smith",null,"tsmith@voa.org"]
[null,129611,null,null,null,null,null,null,"Walker Methodist, Inc.",null,"Veronica Barnas",null,"evbarnas@walkermethodist.org"]
[null,134323,null,null,null,null,null,null,"Wesley Willows MSO",null,"Jennifer O'Brien",null,"jennifero@wesleywillows.org"]
[null,132712,null,null,null,null,null,null,"Wesley Woods Senior Living, Inc.",null,"Traci Montgomery",null,"traci.montgomery@wesleywoods.org"]
[null,131306,null,null,null,null,null,null,"Wesleyan Homes, Inc.",null,"Dawn Snyder",null,"dawn.snyder@wesleyanhomes.org"]
[null,132707,null,null,null,null,null,null,"WesleyLife",null,"Kristy VanDerWiel",null,"kvanderwiel@wesleylife.org"]
[null,130143,null,null,null,null,null,null,"Western Home Communities",null,"Amanda McCormack",null,"amanda.mccormack@westernhome.org"]
[null,132973,null,null,null,null,null,null,"Westminster Communities of Florida",null,"Ginny Chase",null,"gchase@wservices.org"]
[null,128389,null,null,null,null,null,null,"Willamette View, Inc.",null,"Selene Andreasen",null,"selenea@willametteview.org"]
[]
[null,"END HR LIST"]
[]
["DUPLICATE LISTING"]
[null,234640,null,null,null,null,null,null,"Campbell-Stone Retirement Living",null,"Maria Manahan",null,"mmanahan@campbellstone.org"]
[null,130917,null,null,null,null,null,null,"Catholic Housing Management",null,"Juana Mejia",null,"jmejia@catholichealthservices.com"]
[null,181379,null,null,null,null,null,null,"Cedar Sinai Park",null,"Kimberly Fuson",null,"kimberly.fuson@cedarsinaipark.org"]
[null,132359,null,null,null,null,null,null,"Covenant Health",null,"Gerard Foley",null,"gerard_foley@covenanthealth.net"]
[null,676912,null,null,null,null,null,null,"CSI Support & Development COOP (Maryland)",null,"Diane Smith",null,"diane.smith@csi.coop"]
[null,133691,null,null,null,null,null,null,"Embrace Living Communities",null,"Susan Sinderson",null,"ssinderson@embraceliving.org"]
[null,685063,null,null,null,null,null,null,"Felician Services & Felician Sisters of North America",null,"David Ward",null,"djward@felicianservices.org"]
[null,156787,null,null,null,null,null,null,"Front Porch",null,"John Woodward",null,"jwoodward@frontporch.net"]
[null,133664,null,null,null,null,null,null,"Genacross Housing & Community Services",null,"Amanda Schroeder",null,"aschroeder@genacross.org"]
[null,155648,null,null,null,null,null,null,"Genacross Lutheran Services",null,"Rick Marshall",null,"rmarshall@genacross.org"]
[null,137965,null,null,null,null,null,null,"Graceworks Lutheran Services",null,"Judy Budi",null,"jbudi@graceworks.org"]
[null,134102,null,null,null,null,null,null,"Holland Home",null,"H. David Claus",null,"david.claus@hollandhome.org"]
[null,133677,null,null,null,null,null,null,"Homewood Retirement Centers of the United Church of Christ, Inc.",null,"Ernest Angell",null,"ewangell@hotmail.com"]
[null,131466,null,null,null,null,null,null,"HumanGood Inc.",null,"Ancel Romero",null,"ancel.romero@humangood.org"]
[null,229687,null,null,null,null,null,null,"Jewish Senior Services",null,"Linda Ciszkowski",null,"Lciszkowski@jseniors.org"]
[null,228711,null,null,null,null,null,null,"MI Health/Care Services",null,"Gerard Foley",null,"gerard_foley@covenanthealth.net"]
[null,184696,null,null,null,null,null,null,"MJHS",null,"Sean Cassimire",null,"scassimi@mjhs.org"]
[null,131378,null,null,null,null,null,null,"Presbyterian Homes of Georgia, Inc.",null,"Alex Patterson",null,"apatterson@phgainc.org"]
[null,132703,null,null,null,null,null,null,"Presbyterian Senior Living",null,"Kevin Jones",null,"kwjones@xlands.kendal.org"]
[null,132706,null,null,null,null,null,null,"Samaritas",null,"Vickie Thompson-Sandy",null,"vthom@samaritas.org"]
[null,146426,null,null,null,null,null,null,"Sanford Health Network",null,"Paul Hanson",null,"paul.hanson@sanfordhealth.org"]
[null,186441,null,null,null,null,null,null,"SantaFe Senior Living",null,"Randy Stuart",null,"randy.stuart@avmed.org"]
[null,129553,null,null,null,null,null,null,"The Eddy Senior Living",null,"James Reed",null,"james.reed@sphp.com"]
[null,159866,null,null,null,null,null,null,"The Evangelical Lutheran Good Samaritan Society",null,"Randy Bury",null,"rbury@good-sam.com"]
[null,185287,null,null,null,null,null,null,"UPMC Senior Communities, Inc.",null,"William Nigro",null,"nigrowa@upmc.edu"]
[null,130917,null,null,null,null,null,null,"Catholic Housing Management",null,"Joe Catania",null,"jcatania@catholichealthservices.com"]
[]
["DUPLICATE HR LISTING"]
[null,704564,null,null,null,null,null,null,"Cassia",null,"Cheri Almquist",null,"cheri.almquist@cassialife.org"]
[null,137965,null,null,null,null,null,null,"Graceworks Lutheran Services",null,"Dawn Barhorst",null,"dbarhorst@graceworks.org"]
[null,684718,null,null,null,null,null,null,"Veteran's Care Center of Oregon",null,"Robin Loomis",null,"robinl@oregonveteranshome.com"]

{"sheet":"Organization Information","index":3,"n_rows":23,"n_cols":2,"rows_kept":23,"cut":false,"hidden":false,"merged":[[18,0,18,1],[13,0,13,1]]}
[]
[]
["Organization Name:"]
["Survey/LeadingAge Org. ID #:","(Will be entered by CLA upon receipt)"]
["Name of CEO:"]
["CEO's E-mail:"]
[]
["Contact Name (person completing data kit):"]
["Title of Contact:"]
["Contact Phone:"]
["Contact Fax:"]
["Contact E-mail:"]
[]
["Contact for Financial Data (Sections highlighted in Blue)"]
["Name:"]
["Title:"]
["E-mail:"]
[]
["All reports will be sent electronically to the attention of the CEO"]
["Organization's Address:"]
["City:"]
["State: (enter two-letter abbreviation)"]
["Zip Code:"]

{"sheet":"Organization Profile","index":4,"n_rows":49,"n_cols":5,"rows_kept":49,"cut":false,"hidden":false,"merged":[[6,0,6,3],[48,0,48,3],[37,0,38,0]]}
["Governance Status - check only one"]
["Tax exempt (Not For Profit)",false]
["For profit"]
["Privately owned",false]
[" Publicly traded",false]
["Enter start of the fiscal year for financial data reported below (Month/Day/Year) >>","2019-09-09","to",{"$f":"IF(B6=0,\"\",B6+364)","v":"2020-09-07"},"<< Enter FY Start Date in CoL B ONLY"]
["Organizational Scope  - enter scope data separately for owned vs. managed operations.  NOTE - as you complete the revenue and expense data, the income/loss will automatically calculate.  If the calculated value is not accurate, manually overwrite the calculated value with the correct income/loss value(s) and attach an explanation."]
["Annual Operating Revenue (do not report Charitable Fund Development here)\n\nReport revenue from owned vs. managed facilities separately.  For any managed facilities (e.g., facilities you manage/operate for other owners or partners), report the actual operating revenue and expense for the facilities, not just fees collected for managing the facilities.","Owned facilities ONLY\n(include any \"captive\" subsidiaries) $",null,"Managed\n (non-owned)\nFacilities ONLY $"]
["Health Care Services (home health, pharmacy, etc.)"]
["Skilled Nursing Facilities"]
["LPCs (CCRCs) and Retirement Housing- total campus revenue, including rental/membership (ongoing fees only) revenue"]
["Entrance fee amortization"]
["HUD/Affordable Housing facilities"]
["Assisted Living revenue for freestanding ALCs only (if the ALC is on the LPC/CCRC campus, include in LPC/CCRC revenue above)"]
["Independent Living revenue for freestanding ILCs only  (if the ILC is on the LPC/CCRC campus, include in LPC/CCRC revenue above)"]
["Other operating revenue (do not enter Foundation/Charitable revenue here; enter on lines 22 and 23 below)"]
["Management fees collected for managing non-owned facilities (enter fees for operating non-owned facilities only; enter fees for development projects on line 18 below)"]
["Project management/development revenue (from developing projects for other owners/partners)"]
["Total Operating Revenue",{"$f":"IF((SUM(B9:B16))=0,\"Calculated Field\",SUM(B9:B16))","v":"Calculated Field"},null,{"$f":"IF((SUM(D9:D18))=0,\"Calculated Field\",SUM(D9:D18))","v":"Calculated Field"}]
["Total Annual Operating Expense",null,null,null,"<< FILL OUT OPERATING EXPENSE!!!"]
["Net Operating Income (Loss)\n(do not include Fund Development dollars)",{"$f":"IF(ISERROR(B19-B20),\"Calculated Field\",B19-B20)","v":"Calculated Field"},null,{"$f":"IF(ISERROR(D19-D20),\"Calculated Field\",D19-D20)","v":"Calculated Field"}]
["Non-Operating Foundation/Charitable Revenue/Funds (non-operating funds only such as for capital release)"]
["Foundation or other Charitable Funds used for annual operations"]
["Total Organizational Revenue (including all non-operating $)",{"$f":"IF((SUM(B22,B19,))=0,\"Calculated Field\",SUM(B19,B22))","v":"Calculated Field"},null,{"$f":"IF((SUM(D22,D19,))=0,\"Calculated Field\",SUM(D19,D22))","v":"Calculated Field"}]
[]
["Annual capital investment (report separately for owned vs. managed/contract facilities)"]
["Other Organizational Scope"]
["Total assets ($)",null,null,null,"<<MUST FILL OUT!!!"]
["Total number of full-time employees (FTEs)",null,null,null,"<<MUST FILL OUT!!!"]
["Total number of individual apartment, cottage, or living units (exclude HUDs)"]
["Total number of licensed and staffed nursing home beds"]
["Total number of individual Affordable (HUD) Housing apartments (individual units)"]
["Total number of management contracts for non-owned facilities"]
["Total number of projects you developed for other owners"]
["Total number of states in which you operate facilities"]
["Executive Reward Plan Administration - enter information for executive positions only"]
["Do you use a formal structure/salary range(s) for managing executive salaries? (Y/N)"]
["What is your compensation administration cycle? (e.g., January - December)","January",null,null,"<<Select appropriate months"]
[null,"December",null,null,"<<Select appropriate months"]
[" What is your projected executive salary increase budget for the current salary cycle as a Percent?","%"]
["What is your projected executive salary increase budget for the next salary cycle as a Percent?"]
["Do you have a formal annual cash incentive plan? (Y/N)"]
[" If so, what are the three primary measures used to determine payouts (Rank as  Most Important = '1', Second = '2', Third = '3'?)"," → → → → ",null,"Mission","<< Enter ranking in Column C"]
[null,null,null,"Quality"]
[null,null,null,"Revenue"]
[null,null,null,"Operating Margin"]
[null,null,null,"Debt Ratio"]
[null,null,null,"Other:                         "]
["Notes and explanations of any data here:   "]

{"sheet":"Data Dictionary","index":5,"n_rows":122,"n_cols":18,"rows_kept":122,"cut":false,"hidden":true,"merged":[]}
["ID",131299]
[]
[]
["Sheet","Description","Field Name","FieldType","Required","Value","Validation",null,null,null,null,null,"Field Types","List1","List2","List3","List4","List5"]
["Organization Information","Organization Name","OrganizationName","Text","x",{"$f":"OrganizationName","v":0},{"$f":"IF(E5=\"x\",IF(F5=0,B5&\" Required\",\"\"),\"\")","v":"Organization Name Required"},null,null,null,null,null,"Text","January",1,"Yes","Male","Funded"]
["Organization Information","Survey/LeadingAge ID #","SurveyLeadingAgeID","Text","x",{"$f":"SurveyLeadingAgeID","v":"(Will be entered by CLA upon receipt)"},{"$f":"IF(E6=\"x\",IF(F6=0,B6&\" Required\",\"\"),\"\")","v":""},null,null,null,null,null,"Checkmark","February",2,"No","Female","Unfunded"]
["Organization Information","Name of CEO","CEOName","Text","x",{"$f":"CEOName","v":0},"Name of CEO Required",null,null,null,null,null,"Phone","March",3]
["Organization Information","CEO's E-mail","CEOEmail","Text","x",{"$f":"CEOEmail","v":0},"CEO's E-mail Required",null,null,null,null,null,"Zip","April"]
["Organization Information","Contact Name (person completing data kit)","ContactName","Text","x",{"$f":"ContactName","v":0},"Contact Name (person completing data kit) Required",null,null,null,null,null,"Email","May"]
["Organization Information","Title of Contact","ContactTitle","Text","x",{"$f":"ContactTitle","v":0},"Title of Contact Required",null,null,null,null,null,"Integer","June"]
["Organization Information","Contact Phone","ContactPhone","Text","x",{"$f":"ContactPhone","v":0},"Contact Phone Required",null,null,null,null,null,"Decimal","July"]
["Organization Information","Contact Fax","ContactFax","Text","x",{"$f":"ContactFax","v":0},"Contact Fax Required",null,null,null,null,null,"Dollar","August"]
["Organization Information","Contact E-mail","ContactEmail","Text","x",{"$f":"ContactEmail","v":0},"Contact E-mail Required",null,null,null,null,null,"YesNo","September"]
["Organization Information","Financial Contact Name","FinancialContactName","Text","x",{"$f":"FinancialContactName","v":0},"Financial Contact Name Required",null,null,null,null,null,"Date","October"]
["Organization Information","Financial Contact Title","FinancialContactTitle","Text","x",{"$f":"FinancialContactTitle","v":0},"Financial Contact Title Required",null,null,null,null,null,"Calc","November"]
["Organization Information","Financial Contact E-mail","FinancialContactEmail","Text","x",{"$f":"FinancialContactEmail","v":0},"Financial Contact E-mail Required",null,null,null,null,null,"Memo","December"]
["Organization Information","Organization's Address","OrganizationsAddress","Text","x",{"$f":"OrganizationsAddress","v":0},"Organization's Address Required",null,null,null,null,null,"Gender"]
["Organization Information","City","OrganizationCity","Text","x",{"$f":"OrganizationCity","v":0},"City Required"]
["Organization Information","State","OrganizationState","Text","x",{"$f":"OrganizationState","v":0},"State Required"]
["Organization Information","Zip Code","OrganizationZipCode","Text","x",{"$f":"OrganizationZipCode","v":0},"Zip Code Required"]
[]
[]
["Sheet","Description","Field Name","FieldType","Required","Value","Validation","Field Name","FieldType","Required","Value","Validation"]
["Organization Profile","Tax exempt (Not For Profit)","IsTaxExemptNotForProfit","Checkmark","x",{"$f":"IsTaxExemptNotForProfit","v":false},{"$f":"IF(AND(OR(F24,F25,F26),NOT(AND(F24,F25,F26)),NOT(AND(F24,F25)),NOT(AND(F24,F26)),NOT(AND(F25,F26))),,\"Must Check One Option Required\")","v":"Must Check One Option Required"}]
["Organization Profile","For profit Privately owned","IsForProfitPrivatelyOwned","Checkmark","x",{"$f":"IsForProfitPrivatelyOwned","v":false},{"$f":"IF(AND(OR(F24,F25,F26),NOT(AND(F24,F25,F26)),NOT(AND(F24,F25)),NOT(AND(F24,F26)),NOT(AND(F25,F26))),,\"Must Check One Option Required\")","v":"Must Check One Option Required"}]
["Organization Profile","For profit Publicly traded","IsForProfitPubliclyTraded","Checkmark","x",{"$f":"IsForProfitPubliclyTraded","v":false},{"$f":"IF(AND(OR(F24,F25,F26),NOT(AND(F24,F25,F26)),NOT(AND(F24,F25)),NOT(AND(F24,F26)),NOT(AND(F25,F26))),,\"Must Check One Option Required\")","v":"Must Check One Option Required"}]
["Organization Profile","Fiscal Year","FiscalYearBegining","Date","x",{"$f":"FiscalYearBegining","v":"2019-09-09"},null,"FiscalYearEnd","Dollar","x",{"$f":"FiscalYearEnd","v":"2020-09-07"}]
["Organization Profile","Health Care Services (in facilities, home health, pharm., etc…):","OwnedHealthcareRevenue","Dollar",null,{"$f":"OwnedHealthcareRevenue","v":0},null,"ManagedHealthcareRevenue","Dollar",null,{"$f":"ManagedHealthcareRevenue","v":0}]
["Organization Profile","Skilled Nursing Facilities:","OwnedSNFRevenue","Dollar",null,{"$f":"OwnedSNFRevenue","v":0},null,"ManagedSNFRevenue","Dollar",null,{"$f":"ManagedSNFRevenue","v":0}]
["Organization Profile","CCRCs and Retirement Housing- total campus revenue, including rental/membership (ongoing fees only) revenue (enter new unit sales $ below):","OwnedCCRCRevenue","Dollar",null,{"$f":"OwnedCCRCRevenue","v":0},null,"ManagedCCRCRevenue","Dollar",null,{"$f":"ManagedCCRCRevenue","v":0}]
["Organization Profile","CCRCs - entrance or initial fees collected on new unit sales (enter the annual/first year amortized value only):","OwnedNewUnitSales","Dollar",null,{"$f":"OwnedNewUnitSales","v":0},null,"ManagedNewUnitSales","Dollar",null,{"$f":"ManagedNewUnitSales","v":0}]
["Organization Profile","HUD/Affordable Housing facilities:","OwnedHudRevenue","Dollar",null,{"$f":"OwnedHudRevenue","v":0},null,"ManagedHudRevenue","Dollar",null,{"$f":"ManagedHudRevenue","v":0}]
["Organization Profile","Assisted Living revenue for freestanding ALCs only (include in CCRC revenue (above) if the ALC is on the CCRC campus)","OwnedALRevenue","Dollar",null,{"$f":"OwnedALRevenue","v":0},null,"ManagedALRevenue","Dollar",null,{"$f":"ManagedALRevenue","v":0}]
["Organization Profile","Independent Living revenue for freestanding ILCs only  (include in CCRC revenue (above) if the ILC is on the CCRC campus)","OwnedILRevenue","Dollar",null,{"$f":"OwnedILRevenue","v":0},null,"ManagedILRevenue","Dollar",null,{"$f":"ManagedILRevenue","v":0}]
["Organization Profile","Other operating revenue--describe (enter Foundation/charitable $ below):","OwnedOtherOperatingRevenue","Dollar",null,{"$f":"OwnedOtherOperatingRevenue","v":0},null,"ManagedOtherOperatingRevenue","Dollar",null,{"$f":"ManagedOtherOperatingRevenue","v":0}]
["Organization Profile","Management fees collected for managing non-owned facilities (enter fees for operating non-owned facilities only; fees for development projects are entered below):",null,null,null,null,null,"ManagedManagementFeeRevenue","Dollar",null,{"$f":"ManagedManagementFeeRevenue","v":0}]
["Organization Profile","Project management/development revenue (from developing projects for other owners/partners):",null,null,null,null,null,"ManagedDevelopmentRevenue","Dollar",null,{"$f":"ManagedDevelopmentRevenue","v":0}]
["Organization Profile","Total Operating Revenue:",null,"Calc","x",{"$f":"'Organization Profile'!B19","v":"Calculated Field"},{"$f":"IF(E38=\"x\",IF(F38=\"Data Required\",B38&\" Required\",\"\"),\"\")","v":""},null,"Calc"]
["Organization Profile","Total annual Operating expense:","OwnedTotalOperatingExpense","Dollar","x",{"$f":"'Organization Profile'!B20","v":0},{"$f":"IF(E39=\"x\",IF(F39<>0,\"\",B39&\" Required\"),\"\")","v":"Total annual Operating expense: Required"},"ManagedTotalOperatingExpense","Dollar",null,{"$f":"ManagedTotalOperatingExpense","v":0}]
["Organization Profile","Net Operating Income (Loss):\n(do not include Fund Development dollars)",null,"Calc","x",{"$f":"'Organization Profile'!B21","v":"Calculated Field"},{"$f":"IF(E40=\"x\",IF(F40=\"Data Required\",B40&\" Required\",\"\"),\"\")","v":""},null,"Calc"]
["Organization Profile","Non-Operating Foundation/Charitable Revenue/Funds (non-operating funds only):","OwnedNonOperatingFoundationRevenue","Dollar",null,{"$f":"OwnedNonOperatingFoundationRevenue","v":0}]
["Organization Profile","Foundation or other Charitable Funds used for annual operations (this amount should be included above in \"other\" revenue (line 16):","OwnedOperatingFoundationRevenue","Dollar",null,{"$f":"OwnedOperatingFoundationRevenue","v":0},null,"ManagedOperatingFoundationRevenue","Dollar",null,{"$f":"ManagedOperatingFoundationRevenue","v":0}]
["Organization Profile","Total Organizational Revenue (including all non-operating $):",null,"CALC","x",{"$f":"'Organization Profile'!B24","v":"Calculated Field"},{"$f":"IF(E43=\"x\",IF(F43=\"Data Required\",B43&\" Required\",\"\"),\"\")","v":""},null,"CALC"]
["Organization Profile","Annual capital investment (i.e., report development budget separately for owned vs. managed/contract facilities):","OwnedAnnualCapEx","Dollar","x",{"$f":"'Organization Profile'!B25","v":0},{"$f":"IF(E44=\"x\",IF(F44<>0,\"\",B44&\" Required\"),\"\")","v":"Annual capital investment (i.e., report development budget separately for owned vs. managed/contract facilities): Required"},"ManagedAnnualCapEx","Dollar",null,{"$f":"ManagedAnnualCapEx","v":0}]
["Organization Profile","Total assets:","OwnedTotalAssets","Dollar",null,{"$f":"OwnedTotalAssets","v":0},null,"ManagedTotalAssets","Dollar",null,{"$f":"ManagedTotalAssets","v":0}]
["Organization Profile","Total number of full-time employees (FTEs):","OwnedFTE","Integer",null,{"$f":"OwnedFTE","v":0},null,"ManagedFTE","Integer",null,{"$f":"ManagedFTE","v":0}]
["Organization Profile","Total number of apartments or living quarters (exclude HUDs)","OwnedApartments","Integer",null,{"$f":"OwnedApartments","v":0},null,"ManagedApartments","Integer",null,{"$f":"ManagedApartments","v":0}]
["Organization Profile","Total number of licensed and staffed nursing home beds:","OwnedLicensedNursingBeds","Integer",null,{"$f":"OwnedLicensedNursingBeds","v":0},null,"ManagedLicensedNursingBeds","Integer",null,{"$f":"ManagedLicensedNursingBeds","v":0}]
["Organization Profile","Total number of Affordable (HUD) Housing Units:","OwnedHudUnits","Integer",null,{"$f":"OwnedHudUnits","v":0},null,"ManagedHudUnits","Integer",null,{"$f":"ManagedHudUnits","v":0}]
["Organization Profile","Total number of management contracts for non-owned facilities",null,null,null,null,null,"ManagedContracts","Integer",null,{"$f":"ManagedContracts","v":0}]
["Organization Profile","Total number of development projects you did for other owners",null,null,null,null,null,"ManagedProjects","Integer",null,{"$f":"ManagedProjects","v":0}]
["Organization Profile","Total number of states in which you operate facilities:","OwnedStateOperations","Integer",null,{"$f":"OwnedStateOperations","v":0},null,"ManagedStateOperations","Integer",null,{"$f":"ManagedStateOperations","v":0}]
["Organization Profile","Do you use a formal structure/salary ranges for managing executive salaries? (Y/N)","HasFormalExecutivePayStructure","YesNo",null,{"$f":"HasFormalExecutivePayStructure","v":0},null,null,null,null,"="]
["Organization Profile","What is your compensation administration cycle? (e.g., January - December)","CompensationAdministrationFrom","Text",null,{"$f":"CompensationAdministrationFrom","v":"January"},null,"CompensationAdministrationTo","Text",null,{"$f":"CompensationAdministrationTo","v":"December"}]
["Organization Profile","What is your projected executive salary increase budget for the current salary cycle?","ExecutiveSalaryIncreaseCurrent","Percent",null,{"$f":"ExecutiveSalaryIncreaseCurrent","v":"%"}]
["Organization Profile","What is your projected executive salary increase budget for the next salary cycle?","ExecutiveSalaryIncreaseFuture","Percent",null,{"$f":"ExecutiveSalaryIncreaseFuture","v":0}]
["Organization Profile","Do you have a formal annual cash incentive plan? (Y/N)","HasFormalExecutiveIncentive","YesNo",null,{"$f":"HasFormalExecutiveIncentive","v":0}]
["Organization Profile","Mission","PayoutMeasureMission","Range 1-3",null,{"$f":"PayoutMeasureMission","v":0}]
["Organization Profile","Quality","PayoutMeasureQuality","Range 1-3",null,{"$f":"PayoutMeasureQuality","v":0}]
["Organization Profile","Revenue","PayoutMeasureRevenue","Range 1-3",null,{"$f":"PayoutMeasureRevenue","v":0}]
["Organization Profile","Operating Margin","PayoutMeasureMargin","Range 1-3",null,{"$f":"PayoutMeasureMargin","v":0}]
["Organization Profile","Debt Ratio","PayoutMeasureDebtRatio","Range 1-3",null,{"$f":"PayoutMeasureDebtRatio","v":0}]
["Organization Profile","Other             ","PayoutMeasureOther","Range 1-3",null,{"$f":"PayoutMeasureOther","v":0}]
["Organization Profile","Notes and explanations of any data here:   ","PayoutMeasureOtherExplanation","Memo",null,{"$f":"PayoutMeasureOtherExplanation","v":"Notes and explanations of any data here:   "}]
[]
["Sheet","Description","Field Name","FieldType","Required","Value","Validation"]
["Executive Comp Governance","Who manages the CEO's compensation package?"]
["Executive Comp Governance","Board","WhoManagesCEOCompBoard","CheckMark",null,{"$f":"WhoManagesCEOCompBoard","v":false}]
["Executive Comp Governance","Compensation Committee (or Board-level Comm. assigned this responsibility)","WhoManagesCEOCompCompensationCommittee","CheckMark",null,{"$f":"WhoManagesCEOCompCompensationCommittee","v":false}]
["Executive Comp Governance","Human Resources executive/department","WhoManagesCEOCompHR","CheckMark",null,{"$f":"WhoManagesCEOCompHR","v":false}]
["Executive Comp Governance","Other (please describe): ","WhoManagesCEOCompOther","Memo",null,{"$f":"WhoManagesCEOCompOther","v":false}]
["Executive Comp Governance","Who manages the CEO's benefits package?"]
["Executive Comp Governance","Board","WhoManagesCEOBenefitBoard","CheckMark",null,{"$f":"WhoManagesCEOBenefitBoard","v":false}]
["Executive Comp Governance","Compensation Committee","WhoManagesCEOBenefitCommittee","CheckMark",null,{"$f":"WhoManagesCEOBenefitCommittee","v":false}]
["Executive Comp Governance","Human Resources executive/department","WhoManagesCEOBenefitHR","CheckMark",null,{"$f":"WhoManagesCEOBenefitHR","v":false}]
["Executive Comp Governance","Other (please describe): ","WhoManagesCEOBenefitOther","Memo",null,{"$f":"WhoManagesCEOBenefitOther","v":false}]
["Executive Comp Governance","If the CEO's compensation is managed by a compensation committee, how often do they meet?"]
["Executive Comp Governance","Monthly","CommitteeMeetsMonthly","CheckMark",null,{"$f":"CommitteeMeetsMonthly","v":false}]
["Executive Comp Governance","Quarterly","CommitteeMeetsQuarterly","CheckMark",null,{"$f":"CommitteeMeetsQuarterly","v":false}]
["Executive Comp Governance","Annually","CommitteeMeetsAnnually","CheckMark",null,{"$f":"CommitteeMeetsAnnually","v":false}]
["Executive Comp Governance","Varies (please describe):","CommitteeMeetsVaries","CheckMark",null,{"$f":"CommitteeMeetsVaries","v":false}]
["Executive Comp Governance","No regular meetings","CommitteeMeetsNotRegularly","CheckMark",null,{"$f":"CommitteeMeetsNotRegularly","v":false}]
["Executive Comp Governance","Does the board or compensation committee conduct an annual independent analysis?","ConductsAnnualCompAnalysis","YesNo",null,{"$f":"ConductsAnnualCompAnalysis","v":0}]
["Executive Comp Governance","Who manages the CEO's direct reports' compensation package?"]
["Executive Comp Governance","CEO","WhoManagesCEODirectRepsPackageCEO","CheckMark",null,{"$f":"WhoManagesCEODirectRepsPackageCEO","v":false}]
["Executive Comp Governance","Board","WhoManagesCEODirectRepsPackageBoard","CheckMark",null,{"$f":"WhoManagesCEODirectRepsPackageBoard","v":false}]
["Executive Comp Governance","Compensation Committee","WhoManagesCEODirectRepsPackageCompensationCommitee","CheckMark",null,{"$f":"WhoManagesCEODirectRepsPackageCompensationCommitee","v":false}]
["Executive Comp Governance","Human Resources","WhoManagesCEODirectRepsPackageHumanResources","CheckMark",null,{"$f":"WhoManagesCEODirectRepsPackageHumanResources","v":false}]
["Executive Comp Governance","Other (please describe): ","WhoManagesCEODirectRepsPackageOther","CheckMark",null,{"$f":"WhoManagesCEODirectRepsPackageOther","v":false}]
["Executive Comp Governance",null,"WhoManagesCEODirectRepsPackageMemo","Memo",null,{"$f":"WhoManagesCEODirectRepsPackageMemo","v":0}]
["Executive Comp Governance","Who manages other corporate executives' compensation package?"]
["Executive Comp Governance","CEO","WhoManagesExecutiveDirectRepPackageCEO","CheckMark",null,{"$f":"WhoManagesExecutiveDirectRepPackageCEO","v":false}]
["Executive Comp Governance","Board","WhoManagesExecutiveDirectRepPackageBoard","CheckMark",null,{"$f":"WhoManagesExecutiveDirectRepPackageBoard","v":false}]
["Executive Comp Governance","Compensation Committee","WhoManagesExecutiveDirectRepPackageCompensationCommitee","CheckMark",null,{"$f":"WhoManagesExecutiveDirectRepPackageCompensationCommitee","v":false}]
["Executive Comp Governance","Human Resources","WhoManagesExecutiveDirectRepPackageHumanResources","CheckMark",null,{"$f":"WhoManagesExecutiveDirectRepPackageHumanResources","v":false}]
["Executive Comp Governance","Other (please describe): ","WhoManagesExecutiveDirectRepPackageOther","CheckMark",null,{"$f":"WhoManagesExecutiveDirectRepPackageOther","v":false}]
["Executive Comp Governance",null,"WhoManagesExecutiveDirectRepPackageMemo","Memo",null,{"$f":"WhoManagesExecutiveDirectRepPackageMemo","v":0}]
["Executive Comp Governance","Who manages the facility administrators/executive directors' compensation package?"]
["Executive Comp Governance","CEO","WhoManagesAdminDirectRepPackageCEO","CheckMark",null,{"$f":"WhoManagesAdminDirectRepPackageCEO","v":false}]
["Executive Comp Governance","Board","WhoManagesAdminDirectRepPackageBoard","CheckMark",null,{"$f":"WhoManagesAdminDirectRepPackageBoard","v":false}]
["Executive Comp Governance","Compensation Committee","WhoManagesAdminDirectRepPackageCompensationCommitee","CheckMark",null,{"$f":"WhoManagesAdminDirectRepPackageCompensationCommitee","v":false}]
["Executive Comp Governance","COO or Other Operating Executive","WhoManagesAdminDirectRepPackageCOO","CheckMark",null,{"$f":"WhoManagesAdminDirectRepPackageCOO","v":false}]
["Executive Comp Governance","Human Resources","WhoManagesAdminDirectRepPackageHumanResources","CheckMark",null,{"$f":"WhoManagesAdminDirectRepPackageHumanResources","v":false}]
["Executive Comp Governance","Other (please describe): ","WhoManagesAdminDirectRepPackageOther","CheckMark",null,{"$f":"WhoManagesAdminDirectRepPackageOther","v":false}]
["Executive Comp Governance",null,"WhoManagesAdminDirectRepPackageMemo","Memo",null,{"$f":"WhoManagesAdminDirectRepPackageMemo","v":0}]
["Executive Comp Governance","Does your organization have a formal compensation philosophy?","OrgHasCompensationPhilosophy","YesNo",null,{"$f":"OrgHasCompensationPhilosophy","v":0}]
["Executive Comp Governance","Does your organization have formal succession plans for these jobs (check all that apply)?"]
["Executive Comp Governance","CEO","OrgHasSuccessionPlansCEO","CheckMark",null,{"$f":"OrgHasSuccessionPlansCEO","v":false}]
["Executive Comp Governance","Direct reports to CEO","OrgHasSuccessionPlansDirectReportsToCEO","CheckMark",null,{"$f":"OrgHasSuccessionPlansDirectReportsToCEO","v":false}]
["Executive Comp Governance","Other senior executives","OrgHasSuccessionPlansOtherSeniorExecutives","CheckMark",null,{"$f":"OrgHasSuccessionPlansOtherSeniorExecutives","v":false}]
["Executive Comp Governance","Does your organization compensate members of the Board of Directors (other than expense reimbursement)?","OrgCompensatesBoardOfDirectors","YesNo",null,{"$f":"OrgCompensatesBoardOfDirectors","v":0}]
[]
[]
[]
["Sheet","Description","Field Name","FieldType","Required","Value","Validation"]
["Comments","General Comments:  Please note any suggestions for improving the overall survey and collection process next year.\n","GeneralComments","Memo",null,{"$f":"GeneralComments","v":0}]
["Comments","Organization Profile:  Please note any suggestions for improving this specific section (is there other information you need?)\n","CommentsOrganizationProfile","Memo",null,{"$f":"CommentsOrganizationProfile","v":0}]
["Comments","Executive Comp Governance:  Please note any suggestions for improving this specific section (is there other information you need?)\n","CommentsExecutiveCompGovernance","Memo",null,{"$f":"CommentsExecutiveCompGovernance","v":0}]
["Comments","Cash Compensation:  Please note any suggestions for improving this specific section (is there other information you need?)\n","CommentsCashCompensation","Memo",null,{"$f":"CommentsCashCompensation","v":0}]
["Comments","Benefits:  Please note any suggestions for improving this specific section (are there other benefits we should report?)\n","CommentsBenefits","Memo",null,{"$f":"CommentsBenefits","v":0}]
["Comments","Retirement & Deferred Compensation:  Please note any suggestions for improving this specific section (are there other types of plans or information you need?)\n","CommentsRetirementsAndDeferredCompensation","Memo",null,{"$f":"CommentsRetirementsAndDeferredCompensation","v":0}]
["Comments","Paid Time Off:  Please note any suggestions for improving this specific section (is there other information you need?)\n","CommentsPaidTimeOff","Memo",null,{"$f":"CommentsPaidTimeOff","v":0}]

{"sheet":"Definition of Key Terms","index":6,"n_rows":20,"n_cols":1,"rows_kept":20,"cut":false,"hidden":false,"merged":[]}
["Definitions of Key Terms  Read the following definitions carefully.  If you have questions, please contact us.  Note that not all data elements are reported for every position."]
[" Full Time Equivalents (FTEs) - used to convert total hours worked to the equivalent number of full-time employees.  Calculate by dividing total hours worked by 2080 annual hours. "]
["Position Content – Indicate the extent to which the job in your company matches the standard description.  Bigger positions require 15% more (i.e., > 115%) than the standard description; smaller positions require 15% less (i.e., < 85%) than the standard.  Only check bigger or smaller if you believe the job in your company is significantly larger or smaller than the standard description."]
["Direct Reports - The total number of employees (do not include clerical) reporting directly to the incumbent."]
["Levels from the Chief Executive Officer (CEO) - The CEO is \"0\", and all direct reports are \"1\" (for example CFO or COO); the next level is 2 (for positions reporting to the COO or CFO), etc.  "]
["Annual Budget Responsibility (Enter if different from the organization's total operating revenue)."]
["Time Allocation – Indicate the relative amount of time spent in management of each functional area."]
["Current Annual Salary  - Regular fixed guaranteed cash compensation.  Exclude incentives, bonuses, expense reimbursements, car allowances, benefits, etc."]
["Last Year's Annual Salary-Please enter the fixed cash compensation the incumbent received last year. Exclude incentives, bonuses, expense reimbursements, car allowances, benefits, etc."]
["Incentive - Variable pay or bonus, typically paid annually based on performance."]
["Last Year's Incentives-Please enter the total amount of cash incentive/bonus payments the incumbent received last year. "]
["“Target” & “Maximum” Incentive - The Target incentive (expressed as a % of salary) may be set in line with the organization's annual budget or business plan;  the Maximum incentive is the highest incentive the position incumbent is eligible to receive."]
["Retirement Contributions Section – includes the four plan types described in rows 14 to 17.  For each of the plan types offered by your organization, enter employer contributions only for the prior full year. Do not include employee contributions/deferrals.  Do not include FICA.\nFor complex plans or those with multiple formulas be sure to check with the CFO and/or your plan administrator(s) to ensure accurate data."]
["Qualified Defined Benefit Plans – defined benefit plans structured to provide a pre-determined benefit (in $ or % of pay) in retirement.  Please enter data in only columns AH or AI."]
["Qualified Defined Contribution Plans – (403b or 401k) - Contributions to qualified plan(s) for the prior full year.  Include 401(k), 403(b).  Please enter data in only column AJ or AK."]
["Non-qualified Type Plans - 457b - employer sponsored deferred benefit plans generally used for employee voluntary pre-tax contributions or as ERISA offset contributions for highly paid individuals."]
["Non-qualified Type Plans - 457f - employer sponsored plans generally used to supplement executive retirement benefits or provide retention incentives; these plans require a 'risk of forfeiture' and may be very highly customized to individual needs."]
["Supplemental Life Insurance-Life insurance benefit in excess of coverage provided for all employees; express as % of salary."]
["Supplemental Long-Term Disability – LTD benefit provided to the executive in excess of the monthly cap set for all organizational employees; provide dollar amount of benefit, and % of salary."]
["Supplemental Medical – The annual dollar benefit amount provided to the executive to cover expenses in excess of the organization’s medical plan reimbursement."]

{"sheet":"Executive Comp Governance","index":7,"n_rows":55,"n_cols":2,"rows_kept":55,"cut":false,"hidden":false,"merged":[[22,0,22,1],[30,0,30,1],[38,0,38,1],[49,0,49,1],[0,0,0,1],[1,0,1,1],[7,0,7,1],[13,0,13,1]]}
["Instructions:  Check all items that apply to your executive compensation governance & management processes (rows 2 through 55)."]
["Who manages the CEO's compensation package?"]
["Board",false]
["Compensation Committee (or Board-level Committee assigned this responsibility)",false]
["Human Resources Executive/department",false]
["Other (please describe): ",false]
[]
["Who manages the CEO's benefits package?"]
["Board",false]
["Compensation Committee",false]
["Human Resources Executive/department",false]
["Other (please describe): ",false]
[]
["If the CEO's compensation is managed by a compensation committee, how often do they meet?"]
["Monthly",false]
["Quarterly",false]
["Annually",false]
["Varies (please describe):",false]
["No regular meetings",false]
[]
["Does the board or compensation committee conduct an annual independent compensation analysis? (Yes or No)"]
[]
["Who manages the compensation packages for the CEO's direct reports?"]
["CEO",false]
["Board",false]
["Compensation Committee",false]
["Human Resources",false]
["Other (please describe): ",false]
[]
[]
["Who manages compensation packages for other corporate executives?"]
["CEO",false]
["Board",false]
["Compensation Committee",false]
["Human Resources",false]
["Other (please describe): ",false]
[]
[]
["Who manages the compensation packages for the facility administrators/executive directors?"]
["CEO",false]
["Board",false]
["Compensation Committee",false]
["COO or Other Operating Executive",false]
["Human Resources",false]
["Other (please describe): ",false]
[]
[]
["Does your organization have a formal compensation philosophy? (Yes or No)"]
[]
["Does your organization have formal succession plans for these jobs (check all that apply)?"]
["CEO",false]
["Direct reports to CEO",false]
["Other senior executives",false]
[]
["Does your organization compensate members of the Board of Directors (other than expense reimbursement)? (Yes or No)"]

{"sheet":"Position Descriptions","index":8,"n_rows":19,"n_cols":1,"rows_kept":19,"cut":false,"hidden":false,"merged":[]}
[]
["Chief Executive Officer (this is \"Level 0\" in the organization level)- Develops and monitors organizational policy in conjunction with other management personnel and the Board of Directors.  Responsible for the overall operation of the organization. Oversees activities that relate to the future growth of the organization including strategic planning and marketing, etc..  Serves as a liaison between the organization and constituents such as staff members, businesses and individuals in the community.  Serves as the liaison between the organization and the Board of Directors.  Oversees a team of senior management personnel.  Usually reports to the governing body of the organization."]
["Top Operations Executive/Chief Operating Officer - Assists the CEO in the discharge of his/her duties.  Consults, advises and assists the CEO in providing leadership and direction in planning, directing and the coordination of organizational activities. Positions the organization to comply with all local, state, and federal regulations.  Ensures the achievement of short and long-range goals for operations, financial performance and growth.  Responsible for all day to day operations and (typically) all operations-support functions."]
["Top Financial Executive/Chief Financial Officer - Develops financial policies and oversees their implementation.  Monitors a variety of financial activities, including budgeting, analysis, accounting, billing, payer contracting, collections and preparation of tax returns for the organization.  Prepares or oversees the preparation of annual reports and long-term projections to ensure that the organization’s financial obligations are met.  Obtains funds for capital development. "]
["Chief Administrative Officer (CAO): plans, develops, and executes policies and objectives in accordance with the organization's overall mission and strategic long range plans. Coordinates multifunctional support staff (such as but not limited to administrative staff, human resources, facilities management, marketing, etc.) in a manner that aligns with an organization's objectives and policies. May oversee the development and execution of the organization's human resource strategy and procedures. May also provide assistance with organizational communications such as interpretation of company policy, general legal counsel, performance standards, etc. Provides assistance and support to other functions as the CEO deems necessary. "]
["Operations VP (or Director)- May or may not report to the COO (if reports to the CEO the \"reporting level\" would be 1; if reports to COO the \"reporting level\" would be 2). Oversees the operations of the organization's facility/facilities. Directs the operating activities of a region or functional set (SNF vs. CCRC, etc.) of facilities/sites.  Understands and is responsible for a variety of operations support functions and guides these functional activities within the scope of his/her accountability. Guides and leads other members of management. Develops short and long-range plans for his/her area of accountability. Is held accountable for operational and financial results. Please indicate if the position is regional or functional (corporate) and report different functional/regional areas separately and include description of functional/regional area in appropriate box (e.g., SNF, Housing, etc.). Do NOT report VP of HUD Housing here. Please use appropriate job listing. (Only include high level VPs, not Administrators)."]
["VP of HUD Housing -  operational responsibility for all HUD properties; ensures compliance with applicable regulations. Serves as primary contact (or superior of responsible party) for: regulatory compliance issues; initial project lease-ups including timely and accurate processing of applicants; maintenance/reporting of resident files; monitoring corrections as needed; managing annual re-certification process; developing and implementing compliance for all site staff; and all other affordable/HUD responsibilities for all facilities."]
["Top Marketing Executive - Responsible to the CEO and the Board of Directors for the development and implementation of the organization’s marketing programs.  Continually obtains and evaluates market data and develops strategies for meeting marketing objectives and revenue goals.  Provides marketing advice and guidance to corporate staff and facility staff to ensure occupancy goals are reached and to ensure overall marketing effectiveness."]
["Top Legal Executive - Acts as the Chief Legal Officer for the organization and as legal advisor to the CEO and Board of Directors.  Manages all legal affairs of the organization and obtains outside counsel as necessary.  Develops policies and procedures to minimize the organization’s legal exposure."]
["Top Human Resources Executive- Responsible for the development, implementation, and coordination of the organization’s policies and procedures to include, but not limited to: employment/recruitment, orientation and training, compensation, employee/labor relations, benefits, organizational development, safety, and worker’s compensation.  Monitors and maintains employee policy handbook and employee assistance programs."]
["Top Facilities/Construction Executive - Responsible for investigating, evaluating, and developing new and expanded opportunities associated with the organization's real estate and construction programs.  Directs the program design, architectural design, construction, and the opening of new facilities. Acts as the liaison with outside agencies to ensure all building codes are met. May work in conjunction with legal department."]
["Top Project/Business Development Executive - Responsible for project development, mergers, acquisitions, and joint ventures.  Also responsible for investigating, evaluating, and developing new and expanded opportunities for the organization. Acts as the liaison with outside agencies interested in pursuing opportunities with the organization. This is not the facilities/construction executive position."]
["Top Strategic/Long Range Planning Executive - identifies an organization's strengths and weaknesses and develops a strategic plan in order to achieve growth, financial profitability, and success."]
["Top Fund Development Executive- Responsible for the strategy, development, design, and implementation of all fundraising activities; special events; public relations; communications/publications; and community relations to promote business development.  Develops annual campaigns and maintains records of all donors."]
["Top MIS Executive/Chief Information Officer - Responsible for the overall direction, planning and coordination of an organization’s information system, including all phases of system design, programming, installation and operations.   This position is also responsible for an organization’s telecommunications system, Internet strategy, and the enterprise-wide information management strategy."]
["Top/Chief Compliance Officer - Responsible for ensuring the organization remains in compliance with all regulations and requirements. Coordinates the development, maintenance, implementation, and revision of policies and procedures and other documents for the operation of the organization's compliance program. Ensures that all departments are in compliance with all applicable federal, state, and industry laws, regulations, and standards."]
["Top Quality Assurance/Healthcare Executive - Responsible for the overall development, implementation and coordination of programs to ensure quality of care and healthcare related services provided to residents/members/patients. Evaluates effectiveness of quality assurance policies and procedures to enhance standards and quality of service. May also be responsible for overseeing policies, programs, and practices to ensure the organization is in compliance with federal, state, and/or local regulations and accreditation standards."]
["Executive Director (multi-facilities) - (enter average data if multiple incumbents). Oversees multiple facilities and is responsible for the supervision of each facility's Executive Director or Administrator. Directs all operational and budget planning. Directs the delivery of all residential, hospitality, and healthcare services with area of responsibility and is accountable for financial and budget compliance, quality services, resident occupancy levels, and resident satisfaction. Maintains policies and procedures for all facilities to include compliance with licensing and certification with appropriate accreditation organizations.  Also, acts as advisor to single facility Executive Directors on facility issues and programs. This position is also responsible for the direct management of at least one facility; if the incumbent does not directly manage a facility, use the \"VP, Operations\" position. Note: some organizations may use a different title for this position (such as \"Administrator\"). If the duties are the same as stated above, include them here."]
["Executive Director (single facility) - (enter average data if multiple incumbents.) Responsible for the daily operation of a single facility which include but are not limited to:  maintaining a safe and attractive  facility, providing in-service programs for the development of facility staff, directing the facility’s activities in accordance with appropriate guidelines and regulations, and assuring high level of resident satisfaction.  Prepares budgets and annual plans, including recommendations for capital expenditures for facility improvements and the purchase of new equipment. Responsible for the performance of all on site departments. Responsible for maintaining effective communications with staff, residents, and families. Note: some organizations may use a different title for this position (such as \"Administrator\"). If the duties are the same as stated above, include them here."]

{"sheet":"StateListing","index":9,"n_rows":53,"n_cols":3,"rows_kept":53,"cut":false,"hidden":true,"merged":[]}
[]
[]
[]
[null,null,"Alabama"]
[null,null,"Alaska"]
[null,null,"Arizona"]
[null,null,"Arkansas"]
[null,null,"California"]
[null,null,"Colorado"]
[null,null,"Connecticut"]
[null,null,"Delaware"]
[null,null,"Florida"]
[null,null,"Georgia"]
[null,null,"Hawaii"]
[null,null,"Idaho"]
[null,null,"Illinois"]
[null,null,"Indiana"]
[null,null,"Iowa"]
[null,null,"Kansas"]
[null,null,"Kentucky"]
[null,null,"Louisiana"]
[null,null,"Maine"]
[null,null,"Maryland"]
[null,null,"Massachusetts"]
[null,null,"Michigan"]
[null,null,"Minnesota"]
[null,null,"Mississippi"]
[null,null,"Missouri"]
[null,null,"Montana"]
[null,null,"Nebraska"]
[null,null,"Nevada"]
[null,null,"New Hampshire"]
[null,null,"New Jersey"]
[null,null,"New Mexico"]
[null,null,"New York"]
[null,null,"North Carolina"]
[null,null,"North Dakota"]
[null,null,"Ohio"]
[null,null,"Oklahoma"]
[null,null,"Oregon"]
[null,null,"Pennsylvania"]
[null,null,"Rhode Island"]
[null,null,"South Carolina"]
[null,null,"South Dakota"]
[null,null,"Tennessee"]
[null,null,"Texas"]
[null,null,"Utah"]
[null,null,"Vermont"]
[null,null,"Virginia"]
[null,null,"Washington"]
[null,null,"West Virginia"]
[null,null,"Wisconsin"]
[null,null,"Wyoming"]

{"sheet":"Cash & Retirement Compensation","index":10,"n_rows":42,"n_cols":59,"rows_kept":42,"cut":false,"hidden":false,"merged":[[1,31,1,34],[1,35,1,37],[1,38,1,41],[1,42,1,51],[0,31,0,34],[0,35,0,52],[0,17,0,28],[1,0,2,0],[1,1,1,3],[1,5,2,5],[1,8,2,8],[1,7,2,7],[1,4,2,4],[1,6,2,6],[1,23,1,28],[0,1,0,16],[1,19,2,19],[1,20,2,20],[1,21,2,21],[1,22,2,22],[1,9,2,9],[1,10,2,10],[1,17,2,17],[1,12,1,16],[1,11,2,11],[1,29,1,30],[1,18,2,18]]}
[null,"Instructions:  Enter all data items for every position; see Definitions of Key Terms for data elements and Position Descriptions for each position's scope.  Do not use the grey boxes. If there are multiple incumbents, you may enter an average within the row or enter individual information by copying and pasting the appropriate row to row 25 below. \nReport all data as of May 1, 2023.",null,null,null,null,null,null,null,null,null,null,null,null,null,null,null,"Instructions:  Enter all data items for every position; see Definitions of Key Terms for data elements and Position Descriptions for each position's scope.  Do not use the grey boxes. If there are multiple incumbents, you may enter an average within the row or enter individual information by copying and pasting the appropriate row to row 25 below. \nReport all data as of May 1, 2023.",null,null,null,null,null,null,null,null,null,null,null,null,null,"FIRST: review carefully; complete from left to right, entering data for all plans you provide; leave blanks only if you do not have that type of plan.",null,null,null,"Instructions:  Provide the dollar and/or percent of salary amounts for Qualified and Non-Qualified (or supplemental) retirement/benefits programs separately. Report all data as of May 1, 2023.  NOTE:  Non-Qualified deferred compensation plans include supplemental retirement plans, retention plans, or other types of plans; leave blank if no plan.",null,null,null,null,null,null,null,null,null,null,null,null,null,null,null,null,null,null,null,null,null,null,"Instructions:  Provide the dollar and/or percent of salary amounts for Qualified and Non-Qualified (or supplemental) retirement/benefits programs separately. Report all data as of May 1, 2021. NOTE:  Non-Qualified deferred compensation plans include supplemental retirement plans, retention plans, or other types of plans; leave blank if no plan."]
["Position/Title (see descriptions)","Compared to the standard position descriptions, our job is:",null,null,"Current Age (CEO, COO, and CFO Only)","Years in Position (Enter partial year as fraction:  8 months = 8/12 = .67)","Years with Organization (Enter partial year as fration:  3 months = 3/12 = .25)","Gender (Male/Female) Please report Male and Female on separate lines.  If entering multiple incumbents indicate how many of each (e.g., Male = 1, Female = 1)","# of Direct Reports","Annual Budget Responsibility (Enter if different from the organization's total operating revenue).","Reporting Levels from CEO (CEO is Level 0)","# of Employees in position being reported","Time (must sum to 100%) Spent Working In:",null,null,null,null,"Current Annual Salary","Prior Year's Salary","Most Recent Annual Cash Incentive","Prior Year's Incentive","\"Target\" annual incentive (% of salary)","\"Maximum\" annual incentive (% of salary)","For Operations VPs check the type of community/facility managed; :",null,null,null,null,null,"Management Scope for EDs: Mandatory (enter the scope of operations for the ED position, or the average scope of multiple incumbents.",null,"Qualified Defined Benefits Plans\n(Do not include 403b or 401k here, please use next section)",null,null,null,"Qualified Defined Contribution Plans\n(403b or 401k)",null,null,"Non-qualified 457b type Plans",null,null,null,"Non-qualified 457f type Plans",null,null,null,null,null,null,null,null,null,"All Plans"]
[null,"Bigger (>115%)","Same","Smaller\n(< 85%)",null,null,null,null,null,null,null,null,"Home Health","Skilled Nursing","CCRCs","Housing","Other",null,null,null,null,null,null,"Health Care Services","SNF","CCRC","Managed Contracts (non-owned)","Other","Is Op VP Regional (R) or Functional (F)?","Total Annual Revenue","Total Number of FTEs Managed","Plan has a Vesting Schedule (Y/N)",null,"Final Benefit as % of final pay (assume normal retirement age) \nOR →","Annual Benefit $ in Retirement (assume normal retirement age)","Amount Contributed Annually, \nOR →","Percent of Cash Comp Matched by Employer","Of the amounts entered in column AJ or AK, enter any Employer Contribution that does not require an Employee Match","Can the employee contribute directly to this plan? (Y/N)","Is this plan used to offset ERISA contribution limits to Qualified Plans? (Y/N)","Annual Employer Contribution ($), \nOR  →","Annual Employer Contribution as % of Cash Comp","Plan is funded or unfunded (F or U)","Funds are in Annuities, Insurance, or similar financial product (Y/N)","Is payout date same as normal retirement date? (Y/N)","Is plan structured as a \"Retention Plan\"\n(Y/N)","Funds are in Held in a Trust Account (Y/N)","Does Plan provide a guaranteed final benefit? (Y/N)","Annual Employer Contribution ($),\nOR  →","Annual Employer Contribution as % of Cash Comp","Final targeted replacement ratio (% of final pay) for this plan only","Are any non-qualified contributions variable and tied to performance? (Y/N)","What is the target replacement rate of the sum of all employer funded pension benefits?"]
["Chief Executive Officer",null,null,null,null,null,null,null,null,null,null,null,"%","%","%","%","%",null,"$",null,"$","%","%",null,null,null,null,null,null,null,null,null,null,"%","$","$","%","$",null,null,"$","%",null,null,null,null,null,null,"$","%","%",null,"%"]
["Top Operations Executive/COO",null,null,null,null,null,null,null,null,"$",null,null,"%","%","%","%","%","$","$","$","$","%","%",null,null,null,null,null,null,null,null,null,null,"%","$","$","%","$",null,null,"$","%",null,null,null,null,null,null,"$","%","%",null,"%"]
["Top Financial Executive/CFO",null,null,null,null,null,null,null,null,"$",null,null,null,null,null,null,null,"$","$","$","$","%","%",null,null,null,null,null,null,null,null,null,null,"%","$","$","%","$",null,null,"$","%",null,null,null,null,null,null,"$","%","%",null,"%"]
["Chief Administrative Officer/CAO",null,null,null,null,null,null,null,null,"$",null,null,null,null,null,null,null,"$","$","$","$",null,null,null,null,null,null,null,null,null,null,null,null,"%","$","$","%","$",null,null,"$","%",null,null,null,null,null,null,"$","%","%",null,"%"]
["Operations VP (or Director) #1\n(please enter different functional areas on separate lines e.g., VP of Housing separate from VP SNF, etc.) If more space is needed, please report below.",null,null,null,null,null,null,null,null,"$",null,null,"%","%","%","%","%","$","$","$","$","%","%",null,null,null,null,null,null,null,null,null,null,"%","$","$","%","$",null,null,"$","%",null,null,null,null,null,null,"$","%","%",null,"%"]
["Operations VP (or Director) #2\n(please enter different functional areas on separate lines e.g., VP of Housing separate from VP SNF, etc.) If more space is needed, please report below.",null,null,null,null,null,null,null,null,"$",null,null,"%","%","%","%","%","$","$","$","$","%","%",null,null,null,null,null,null,null,null,null,null,"%","$","$","%","$",null,null,"$","%",null,null,null,null,null,null,"$","%","%",null,"%"]
["Operations VP (or Director) #3\n(please enter different functional areas on separate lines e.g., VP of Housing separate from VP SNF, etc.) If more space is needed, please report below.",null,null,null,null,null,null,null,null,"$",null,null,"%","%","%","%","%","$","$","$","$","%","%",null,null,null,null,null,null,null,null,null,null,"%","$","$","%","$",null,null,"$","%",null,null,null,null,null,null,"$","%","%",null,"%"]
["VP of HUD Housing",null,null,null,null,null,null,null,null,"$",null,null,"%","%","%","%","%","$","$","$","$","%","%",null,null,null,null,null,null,null,null,null,null,"%","$","$","%","$",null,null,"$","%",null,null,null,null,null,null,"$","%","%",null,"%"]
["Top Marketing Executive",null,null,null,null,null,null,null,null,"$",null,null,null,null,null,null,null,"$","$","$","$","%","%",null,null,null,null,null,null,null,null,null,null,"%","$","$","%","$",null,null,"$","%",null,null,null,null,null,null,"$","%","%",null,"%"]
["Top Legal Executive",null,null,null,null,null,null,null,null,"$",null,null,null,null,null,null,null,"$","$","$","$","%","%",null,null,null,null,null,null,null,null,null,null,"%","$","$","%","$",null,null,"$","%",null,null,null,null,null,null,"$","%","%",null,"%"]
["Top Human Resources Exec",null,null,null,null,null,null,null,null,"$",null,null,null,null,null,null,null,"$","$","$","$","%","%",null,null,null,null,null,null,null,null,null,null,"%","$","$","%","$",null,null,"$","%",null,null,null,null,null,null,"$","%","%",null,"%"]
["Top Facilities/Construction Exec",null,null,null,null,null,null,null,null,"$",null,null,null,null,null,null,null,"$","$","$","$","%","%",null,null,null,null,null,null,null,null,null,null,"%","$","$","%","$",null,null,"$","%",null,null,null,null,null,null,"$","%","%",null,"%"]
["Top Project/Business Development Exec",null,null,null,null,null,null,null,null,"$",null,null,null,null,null,null,null,"$","$","$","$","%","%",null,null,null,null,null,null,null,null,null,null,"%","$","$","%","$",null,null,"$","%",null,null,null,null,null,null,"$","%","%",null,"%"]
["Top Strategic/Long Range Planning Exec",null,null,null,null,null,null,null,null,"$",null,null,null,null,null,null,null,"$","$","$","$","%","%",null,null,null,null,null,null,null,null,null,null,"%","$","$","%","$",null,null,"$","%",null,null,null,null,null,null,"$","%","%",null,"%"]
["Top Fund Development Exec",null,null,null,null,null,null,null,null,"$",null,null,null,null,null,null,null,"$","$","$","$","%","%",null,null,null,null,null,null,null,null,null,null,"%","$","$","%","$",null,null,"$","%",null,null,null,null,null,null,"$","%","%",null,"%"]
["Top MIS Executive",null,null,null,null,null,null,null,null,"$",null,null,null,null,null,null,null,"$","$","$","$","%","%",null,null,null,null,null,null,null,null,null,null,"%","$","$","%","$",null,null,"$","%",null,null,null,null,null,null,"$","%","%",null,"%"]
["Top/Chief Compliance Officer",null,null,null,null,null,null,null,null,"$",null,null,null,null,null,null,null,"$","$","$","$","%","%",null,null,null,null,null,null,null,null,null,null,"%","$","$","%","$",null,null,"$","%",null,null,null,null,null,null,"$","%","%",null,"%"]
["Top Quality Assur./Healthcare Exec.",null,null,null,null,null,null,null,null,"$",null,null,null,null,null,null,null,"$","$","$","$","%","%",null,null,null,null,null,null,null,null,null,null,"%","$","$","%","$",null,null,"$","%",null,null,null,null,null,null,"$","%","%",null,"%"]
["SEE MULTI SITE EXECUTIVE DIRECTOR INPUT FORM"]
["SEE SINGLE SITE EXECUTIVE DIRECTOR INPUT FORM"]
["MULTIPLE INCUMBENTS DATA ENTRY:\nIf you are entering multiple incumbents separately, please fill in appropriate title and information below."]
[null,null,null,null,null,null,null,null,null,"$",null,null,"%","%","%","%","%","$","$","$","$","%","%",null,null,null,null,null,null,"$","#",null,null,"%","$","$","%","$",null,null,"$","%",null,null,null,null,null,null,"$","%","%",null,"%"]
[null,null,null,null,null,null,null,null,null,"$",null,null,"%","%","%","%","%","$","$","$","$","%","%",null,null,null,null,null,null,"$","#",null,null,"%","$","$","%","$",null,null,"$","%",null,null,null,null,null,null,"$","%","%",null,"%"]
[null,null,null,null,null,null,null,null,null,"$",null,null,"%","%","%","%","%","$","$","$","$","%","%",null,null,null,null,null,null,"$","#",null,null,"%","$","$","%","$",null,null,"$","%",null,null,null,null,null,null,"$","%","%",null,"%"]
[null,null,null,null,null,null,null,null,null,"$",null,null,"%","%","%","%","%","$","$","$","$","%","%",null,null,null,null,null,null,"$","#",null,null,"%","$","$","%","$",null,null,"$","%",null,null,null,null,null,null,"$","%","%",null,"%"]
[null,null,null,null,null,null,null,null,null,"$",null,null,"%","%","%","%","%","$","$","$","$","%","%",null,null,null,null,null,null,"$","#",null,null,"%","$","$","%","$",null,null,"$","%",null,null,null,null,null,null,"$","%","%",null,"%"]
[null,null,null,null,null,null,null,null,null,"$",null,null,"%","%","%","%","%","$","$","$","$","%","%",null,null,null,null,null,null,"$","#",null,null,"%","$","$","%","$",null,null,"$","%",null,null,null,null,null,null,"$","%","%",null,"%"]
[null,null,null,null,null,null,null,null,null,"$",null,null,"%","%","%","%","%","$","$","$","$","%","%",null,null,null,null,null,null,"$","#",null,null,"%","$","$","%","$",null,null,"$","%",null,null,null,null,null,null,"$","%","%",null,"%"]
[null,null,null,null,null,null,null,null,null,"$",null,null,"%","%","%","%","%","$","$","$","$","%","%",null,null,null,null,null,null,"$","#",null,null,"%","$","$","%","$",null,null,"$","%",null,null,null,null,null,null,"$","%","%",null,"%"]
[null,null,null,null,null,null,null,null,null,"$",null,null,"%","%","%","%","%","$","$","$","$","%","%",null,null,null,null,null,null,"$","#",null,null,"%","$","$","%","$",null,null,"$","%",null,null,null,null,null,null,"$","%","%",null,"%"]
[null,null,null,null,null,null,null,null,null,"$",null,null,"%","%","%","%","%","$","$","$","$","%","%",null,null,null,null,null,null,"$","#",null,null,"%","$","$","%","$",null,null,"$","%",null,null,null,null,null,null,"$","%","%",null,"%"]
[null,null,null,null,null,null,null,null,null,"$",null,null,"%","%","%","%","%","$","$","$","$","%","%",null,null,null,null,null,null,"$","#",null,null,"%","$","$","%","$",null,null,"$","%",null,null,null,null,null,null,"$","%","%",null,"%"]
[null,null,null,null,null,null,null,null,null,"$",null,null,"%","%","%","%","%","$","$","$","$","%","%",null,null,null,null,null,null,"$","#",null,null,"%","$","$","%","$",null,null,"$","%",null,null,null,null,null,null,"$","%","%",null,"%"]
[null,null,null,null,null,null,null,null,null,"$",null,null,"%","%","%","%","%","$","$","$","$","%","%",null,null,null,null,null,null,"$","#",null,null,"%","$","$","%","$",null,null,"$","%",null,null,null,null,null,null,"$","%","%",null,"%"]
[null,null,null,null,null,null,null,null,null,"$",null,null,"%","%","%","%","%","$","$","$","$","%","%",null,null,null,null,null,null,"$","#",null,null,"%","$","$","%","$",null,null,"$","%",null,null,null,null,null,null,"$","%","%",null,"%"]
[null,null,null,null,null,null,null,null,null,"$",null,null,"%","%","%","%","%","$","$","$","$","%","%",null,null,null,null,null,null,"$","#",null,null,"%","$","$","%","$",null,null,"$","%",null,null,null,null,null,null,"$","%","%",null,"%"]
[null,null,null,null,null,null,null,null,null,"$",null,null,"%","%","%","%","%","$","$","$","$","%","%",null,null,null,null,null,null,"$","#",null,null,"%","$","$","%","$",null,null,"$","%",null,null,null,null,null,null,"$","%","%",null,"%"]
[null,null,null,null,null,null,null,null,null,"$",null,null,"%","%","%","%","%","$","$","$","$","%","%",null,null,null,null,null,null,"$","#",null,null,"%","$","$","%","$",null,null,"$","%",null,null,null,null,null,null,"$","%","%",null,"%"]
[null,null,null,null,null,null,null,null,null,"$",null,null,"%","%","%","%","%","$","$","$","$","%","%",null,null,null,null,null,null,"$","#",null,null,"%","$","$","%","$",null,null,"$","%",null,null,null,null,null,null,"$","%","%",null,"%"]

{"sheet":"ExecutiveDirectorsMulti","index":11,"n_rows":50,"n_cols":54,"rows_kept":50,"cut":false,"hidden":false,"merged":[[0,36,0,54],[0,32,0,35],[1,0,2,0],[1,1,1,3],[1,4,2,4],[1,5,2,5],[1,6,2,6],[0,1,0,17],[0,18,0,31],[1,22,2,22],[1,7,2,7],[1,8,2,8],[1,9,2,9],[1,10,2,10],[1,11,2,11],[1,12,2,12],[1,13,1,17],[1,18,2,18],[1,19,2,19],[1,20,2,20],[1,21,2,21],[1,43,1,52],[1,23,2,23],[1,24,1,29],[1,30,1,31],[1,32,1,35],[1,36,1,38],[1,39,1,42]]}
["Be sure to complete columns AE and AF!","Instructions:  Enter all data items for every position; see Definitions of Key Terms for data elements and Position Descriptions for each position's scope.  Do not use the grey boxes.  If there are multiple incumbents, you may enter an average within the row or enter individual information by copying and pasting the appropriate row to row 25 below. \nReport all data as of May 1, 2023.",null,null,null,null,null,null,null,null,null,null,null,null,null,null,null,null,"Instructions:  Enter all data items for every position; see Definitions of Key Terms for data elements and Position Descriptions for each position's scope.  Do not use the grey boxes.  If there are multiple incumbents, you may enter an average within the row or enter individual information by copying and pasting the appropriate row to row 25 below. \nReport all data as of May 1, 2023.",null,null,null,null,null,null,null,null,null,null,null,null,null,"FIRST: review carefully; complete from left to right, entering data for all plans you provide; leave blanks only if you do not have that type of plan.",null,null,null,"Instructions:  Provide the dollar and/or percent of salary amounts for Qualified and Non-Qualified (or supplemental) retirement/benefits programs separately. Report all data as of May 1, 2023.  NOTE:  Non-Qualified deferred compensation plans include supplemental retirement plans, retention plans, or other types of plans; leave blank if no plan."]
["Executive Director","Compared to the standard position descriptions, our job is:",null,null,"State","City","Years in Position (Enter partial year as fraction:  8 months = 8/12 = .67)","Years with Organization (Enter partial year as fration:  3 months = 3/12 = .25)","Gender (Male/Female) Please report Male and Female on separate lines.  If entering multiple incumbents indicate how many of each (e.g., Male = 1, Female = 1)","# of Direct Reports","Annual Budget Responsibility (Enter if different from the organization's total operating revenue).","Reporting Levels from CEO (CEO is Level 0)","# of Employees in position being reported","Time (must sum to 100%) Spent Working In:",null,null,null,null,"Current Annual Salary","Prior Year's Salary","Most Recent Annual Cash Incentive","Prior Year's Incentive","\"Target\" annual incentive (% of salary)","\"Maximum\" annual incentive (% of salary)","Enter the number of each facility type overseen by the Multi-Site Executive Director",null,null,null,null,null,"Management Scope for EDs: Mandatory (enter the scope of operations for the ED position, or the average scope of multiple incumbents.",null,"Qualified Defined Benefits Plans\n(Do not include 403b or 401k here, please use next section)",null,null,null,"Qualified Defined Contribution Plans\n(403b or 401k)",null,null,"Non-qualified 457b type Plans",null,null,null,"Non-qualified 457f type Plans",null,null,null,null,null,null,null,null,null,"All Plans"]
[null,"Bigger (>115%)","Same","Smaller\n(< 85%)","State",null,null,null,null,null,null,null,null,"Home Health","Skilled Nursing","CCRCs","Housing","Other",null,null,null,null,null,null,"Health Care Services","SNF","CCRC","Managed Contracts (non-owned)","Other","Is Op VP Regional (R) or Functional (F)?","Total Annual Revenue","Total Number of FTEs Managed","Plan has a Vesting Schedule (Y/N)",null,"Final Benefit as % of final pay (assume normal retirement age) \nOR →","Annual Benefit $ in Retirement (assume normal retirement age)","Amount Contributed Annually, \nOR →","Percent of Cash Comp Matched by Employer","Of the amounts entered in column AJ or AK, enter any Employer Contribution that does not require an Employee Match","Can the employee contribute directly to this plan? (Y/N)","Is this plan used to offset ERISA contribution limits to Qualified Plans? (Y/N)","Annual Employer Contribution ($), \nOR  →","Annual Employer Contribution as % of Cash Comp","Plan is funded or unfunded (F or U)","Funds are in Annuities, Insurance, or similar financial product (Y/N)","Is payout date same as normal retirement date? (Y/N)","Is plan structured as a \"Retention Plan\"\n(Y/N)","Funds are in Held in a Trust Account (Y/N)","Does Plan provide a guaranteed final benefit? (Y/N)","Annual Employer Contribution ($),\nOR  →","Annual Employer Contribution as % of Cash Comp","Final targeted replacement ratio (% of final pay) for this plan only","Are any non-qualified contributions variable and tied to performance? (Y/N)","What is the target replacement rate of the sum of all employer funded pension benefits?"]
["Please enter each Multi-Site Executive Director Below"]
[null,null,null,null,null,null,null,null,null,null,"$",null,null,"%","%","%","%","%","$","$","$","$","%","%",null,null,null,null,null,null,"$","#",null,null,"%","$","$","%","$",null,null,"$","%",null,null,null,null,null,null,"$","%","%",null,"%"]
[null,null,null,null,null,null,null,null,null,null,"$",null,null,"%","%","%","%","%","$","$","$","$","%","%",null,null,null,null,null,null,"$","#",null,null,"%","$","$","%","$",null,null,"$","%",null,null,null,null,null,null,"$","%","%",null,"%"]
[null,null,null,null,null,null,null,null,null,null,"$",null,null,"%","%","%","%","%","$","$","$","$","%","%",null,null,null,null,null,null,"$","#",null,null,"%","$","$","%","$",null,null,"$","%",null,null,null,null,null,null,"$","%","%",null,"%"]
[null,null,null,null,null,null,null,null,null,null,"$",null,null,"%","%","%","%","%","$","$","$","$","%","%",null,null,null,null,null,null,"$","#",null,null,"%","$","$","%","$",null,null,"$","%",null,null,null,null,null,null,"$","%","%",null,"%"]
[null,null,null,null,null,null,null,null,null,null,"$",null,null,"%","%","%","%","%","$","$","$","$","%","%",null,null,null,null,null,null,"$","#",null,null,"%","$","$","%","$",null,null,"$","%",null,null,null,null,null,null,"$","%","%",null,"%"]
[null,null,null,null,null,null,null,null,null,null,"$",null,null,"%","%","%","%","%","$","$","$","$","%","%",null,null,null,null,null,null,"$","#",null,null,"%","$","$","%","$",null,null,"$","%",null,null,null,null,null,null,"$","%","%",null,"%"]
[null,null,null,null,null,null,null,null,null,null,"$",null,null,"%","%","%","%","%","$","$","$","$","%","%",null,null,null,null,null,null,"$","#",null,null,"%","$","$","%","$",null,null,"$","%",null,null,null,null,null,null,"$","%","%",null,"%"]
[null,null,null,null,null,null,null,null,null,null,"$",null,null,"%","%","%","%","%","$","$","$","$","%","%",null,null,null,null,null,null,"$","#",null,null,"%","$","$","%","$",null,null,"$","%",null,null,null,null,null,null,"$","%","%",null,"%"]
[null,null,null,null,null,null,null,null,null,null,"$",null,null,"%","%","%","%","%","$","$","$","$","%","%",null,null,null,null,null,null,"$","#",null,null,"%","$","$","%","$",null,null,"$","%",null,null,null,null,null,null,"$","%","%",null,"%"]
[null,null,null,null,null,null,null,null,null,null,"$",null,null,"%","%","%","%","%","$","$","$","$","%","%",null,null,null,null,null,null,"$","#",null,null,"%","$","$","%","$",null,null,"$","%",null,null,null,null,null,null,"$","%","%",null,"%"]
[null,null,null,null,null,null,null,null,null,null,"$",null,null,"%","%","%","%","%","$","$","$","$","%","%",null,null,null,null,null,null,"$","#",null,null,"%","$","$","%","$",null,null,"$","%",null,null,null,null,null,null,"$","%","%",null,"%"]
[null,null,null,null,null,null,null,null,null,null,"$",null,null,"%","%","%","%","%","$","$","$","$","%","%",null,null,null,null,null,null,"$","#",null,null,"%","$","$","%","$",null,null,"$","%",null,null,null,null,null,null,"$","%","%",null,"%"]
[null,null,null,null,null,null,null,null,null,null,"$",null,null,"%","%","%","%","%","$","$","$","$","%","%",null,null,null,null,null,null,"$","#",null,null,"%","$","$","%","$",null,null,"$","%",null,null,null,null,null,null,"$","%","%",null,"%"]
[null,null,null,null,null,null,null,null,null,null,"$",null,null,"%","%","%","%","%","$","$","$","$","%","%",null,null,null,null,null,null,"$","#",null,null,"%","$","$","%","$",null,null,"$","%",null,null,null,null,null,null,"$","%","%",null,"%"]
[null,null,null,null,null,null,null,null,null,null,"$",null,null,"%","%","%","%","%","$","$","$","$","%","%",null,null,null,null,null,null,"$","#",null,null,"%","$","$","%","$",null,null,"$","%",null,null,null,null,null,null,"$","%","%",null,"%"]
[null,null,null,null,null,null,null,null,null,null,"$",null,null,"%","%","%","%","%","$","$","$","$","%","%",null,null,null,null,null,null,"$","#",null,null,"%","$","$","%","$",null,null,"$","%",null,null,null,null,null,null,"$","%","%",null,"%"]
[null,null,null,null,null,null,null,null,null,null,"$",null,null,"%","%","%","%","%","$","$","$","$","%","%",null,null,null,null,null,null,"$","#",null,null,"%","$","$","%","$",null,null,"$","%",null,null,null,null,null,null,"$","%","%",null,"%"]
[null,null,null,null,null,null,null,null,null,null,"$",null,null,"%","%","%","%","%","$","$","$","$","%","%",null,null,null,null,null,null,"$","#",null,null,"%","$","$","%","$",null,null,"$","%",null,null,null,null,null,null,"$","%","%",null,"%"]
[null,null,null,null,null,null,null,null,null,null,"$",null,null,"%","%","%","%","%","$","$","$","$","%","%",null,null,null,null,null,null,"$","#",null,null,"%","$","$","%","$",null,null,"$","%",null,null,null,null,null,null,"$","%","%",null,"%"]
[null,null,null,null,null,null,null,null,null,null,"$",null,null,"%","%","%","%","%","$","$","$","$","%","%",null,null,null,null,null,null,"$","#",null,null,"%","$","$","%","$",null,null,"$","%",null,null,null,null,null,null,"$","%","%",null,"%"]
[null,null,null,null,null,null,null,null,null,null,"$",null,null,"%","%","%","%","%","$","$","$","$","%","%",null,null,null,null,null,null,"$","#",null,null,"%","$","$","%","$",null,null,"$","%",null,null,null,null,null,null,"$","%","%",null,"%"]
[null,null,null,null,null,null,null,null,null,null,"$",null,null,"%","%","%","%","%","$","$","$","$","%","%",null,null,null,null,null,null,"$","#",null,null,"%","$","$","%","$",null,null,"$","%",null,null,null,null,null,null,"$","%","%",null,"%"]
[null,null,null,null,null,null,null,null,null,null,"$",null,null,"%","%","%","%","%","$","$","$","$","%","%",null,null,null,null,null,null,"$","#",null,null,"%","$","$","%","$",null,null,"$","%",null,null,null,null,null,null,"$","%","%",null,"%"]
[null,null,null,null,null,null,null,null,null,null,"$",null,null,"%","%","%","%","%","$","$","$","$","%","%",null,null,null,null,null,null,"$","#",null,null,"%","$","$","%","$",null,null,"$","%",null,null,null,null,null,null,"$","%","%",null,"%"]
[null,null,null,null,null,null,null,null,null,null,"$",null,null,"%","%","%","%","%","$","$","$","$","%","%",null,null,null,null,null,null,"$","#",null,null,"%","$","$","%","$",null,null,"$","%",null,null,null,null,null,null,"$","%","%",null,"%"]
[null,null,null,null,null,null,null,null,null,null,"$",null,null,"%","%","%","%","%","$","$","$","$","%","%",null,null,null,null,null,null,"$","#",null,null,"%","$","$","%","$",null,null,"$","%",null,null,null,null,null,null,"$","%","%",null,"%"]
[null,null,null,null,null,null,null,null,null,null,"$",null,null,"%","%","%","%","%","$","$","$","$","%","%",null,null,null,null,null,null,"$","#",null,null,"%","$","$","%","$",null,null,"$","%",null,null,null,null,null,null,"$","%","%",null,"%"]
[null,null,null,null,null,null,null,null,null,null,"$",null,null,"%","%","%","%","%","$","$","$","$","%","%",null,null,null,null,null,null,"$","#",null,null,"%","$","$","%","$",null,null,"$","%",null,null,null,null,null,null,"$","%","%",null,"%"]
[null,null,null,null,null,null,null,null,null,null,"$",null,null,"%","%","%","%","%","$","$","$","$","%","%",null,null,null,null,null,null,"$","#",null,null,"%","$","$","%","$",null,null,"$","%",null,null,null,null,null,null,"$","%","%",null,"%"]
[null,null,null,null,null,null,null,null,null,null,"$",null,null,"%","%","%","%","%","$","$","$","$","%","%",null,null,null,null,null,null,"$","#",null,null,"%","$","$","%","$",null,null,"$","%",null,null,null,null,null,null,"$","%","%",null,"%"]
[null,null,null,null,null,null,null,null,null,null,"$",null,null,"%","%","%","%","%","$","$","$","$","%","%",null,null,null,null,null,null,"$","#",null,null,"%","$","$","%","$",null,null,"$","%",null,null,null,null,null,null,"$","%","%",null,"%"]
[null,null,null,null,null,null,null,null,null,null,"$",null,null,"%","%","%","%","%","$","$","$","$","%","%",null,null,null,null,null,null,"$","#",null,null,"%","$","$","%","$",null,null,"$","%",null,null,null,null,null,null,"$","%","%",null,"%"]
[null,null,null,null,null,null,null,null,null,null,"$",null,null,"%","%","%","%","%","$","$","$","$","%","%",null,null,null,null,null,null,"$","#",null,null,"%","$","$","%","$",null,null,"$","%",null,null,null,null,null,null,"$","%","%",null,"%"]
[null,null,null,null,null,null,null,null,null,null,"$",null,null,"%","%","%","%","%","$","$","$","$","%","%",null,null,null,null,null,null,"$","#",null,null,"%","$","$","%","$",null,null,"$","%",null,null,null,null,null,null,"$","%","%",null,"%"]
[null,null,null,null,null,null,null,null,null,null,"$",null,null,"%","%","%","%","%","$","$","$","$","%","%",null,null,null,null,null,null,"$","#",null,null,"%","$","$","%","$",null,null,"$","%",null,null,null,null,null,null,"$","%","%",null,"%"]
[null,null,null,null,null,null,null,null,null,null,"$",null,null,"%","%","%","%","%","$","$","$","$","%","%",null,null,null,null,null,null,"$","#",null,null,"%","$","$","%","$",null,null,"$","%",null,null,null,null,null,null,"$","%","%",null,"%"]
[null,null,null,null,null,null,null,null,null,null,"$",null,null,"%","%","%","%","%","$","$","$","$","%","%",null,null,null,null,null,null,"$","#",null,null,"%","$","$","%","$",null,null,"$","%",null,null,null,null,null,null,"$","%","%",null,"%"]
[null,null,null,null,null,null,null,null,null,null,"$",null,null,"%","%","%","%","%","$","$","$","$","%","%",null,null,null,null,null,null,"$","#",null,null,"%","$","$","%","$",null,null,"$","%",null,null,null,null,null,null,"$","%","%",null,"%"]
[null,null,null,null,null,null,null,null,null,null,"$",null,null,"%","%","%","%","%","$","$","$","$","%","%",null,null,null,null,null,null,"$","#",null,null,"%","$","$","%","$",null,null,"$","%",null,null,null,null,null,null,"$","%","%",null,"%"]
[null,null,null,null,null,null,null,null,null,null,"$",null,null,"%","%","%","%","%","$","$","$","$","%","%",null,null,null,null,null,null,"$","#",null,null,"%","$","$","%","$",null,null,"$","%",null,null,null,null,null,null,"$","%","%",null,"%"]
[null,null,null,null,null,null,null,null,null,null,"$",null,null,"%","%","%","%","%","$","$","$","$","%","%",null,null,null,null,null,null,"$","#",null,null,"%","$","$","%","$",null,null,"$","%",null,null,null,null,null,null,"$","%","%",null,"%"]
[null,null,null,null,null,null,null,null,null,null,"$",null,null,"%","%","%","%","%","$","$","$","$","%","%",null,null,null,null,null,null,"$","#",null,null,"%","$","$","%","$",null,null,"$","%",null,null,null,null,null,null,"$","%","%",null,"%"]
[null,null,null,null,null,null,null,null,null,null,"$",null,null,"%","%","%","%","%","$","$","$","$","%","%",null,null,null,null,null,null,"$","#",null,null,"%","$","$","%","$",null,null,"$","%",null,null,null,null,null,null,"$","%","%",null,"%"]
[null,null,null,null,null,null,null,null,null,null,"$",null,null,"%","%","%","%","%","$","$","$","$","%","%",null,null,null,null,null,null,"$","#",null,null,"%","$","$","%","$",null,null,"$","%",null,null,null,null,null,null,"$","%","%",null,"%"]
[null,null,null,null,null,null,null,null,null,null,"$",null,null,"%","%","%","%","%","$","$","$","$","%","%",null,null,null,null,null,null,"$","#",null,null,"%","$","$","%","$",null,null,"$","%",null,null,null,null,null,null,"$","%","%",null,"%"]
["CTRL Q",null,null,null,null,null,null,null,null,null,"$",null,null,"%","%","%","%","%","$","$","$","$","%","%",null,null,null,null,null,null,"$","#",null,null,"%","$","$","%","$",null,null,"$","%",null,null,null,null,null,null,"$","%","%",null,"%"]

{"sheet":"ExecutiveDirectorsSingleSite","index":12,"n_rows":50,"n_cols":55,"rows_kept":50,"cut":false,"hidden":false,"merged":[[1,1,2,1],[1,2,1,4],[1,6,2,6],[1,7,2,7],[1,8,2,8],[1,5,2,5],[0,2,0,18],[0,19,0,32],[0,37,0,55],[0,33,0,36],[1,40,1,43],[1,44,1,53],[1,19,2,19],[1,20,2,20],[1,21,2,21],[1,22,2,22],[1,23,2,23],[1,24,2,24],[1,25,1,30],[1,31,1,32],[1,33,1,36],[1,37,1,39],[1,14,1,18],[1,9,2,9],[1,10,2,10],[1,11,2,11],[1,12,2,12],[1,13,2,13]]}
[null,"Be sure to complete columns AF and AG!","Instructions:  Enter all data items for every position; see Definitions of Key Terms for data elements and Position Descriptions for each position's scope.  Do not use the grey boxes. If there are multiple incumbents, you may enter an average within the row or enter individual information by copying and pasting the appropriate row to row 25 below. \nReport all data as of May 1, 2023.",null,null,null,null,null,null,null,null,null,null,null,null,null,null,null,null,"Instructions:  Enter all data items for every position; see Definitions of Key Terms for data elements and Position Descriptions for each position's scope.  Do not use the grey boxes. If there are multiple incumbents, you may enter an average within the row or enter individual information by copying and pasting the appropriate row to row 25 below. \nReport all data as of May 1, 2023.",null,null,null,null,null,null,null,null,null,null,null,null,null,"FIRST: review carefully; complete from left to right, entering data for all plans you provide; leave blanks only if you do not have that type of plan.",null,null,null,"Instructions:  Provide the dollar and/or percent of salary amounts for Qualified and Non-Qualified (or supplemental) retirement/benefits programs separately. Report all data as of May 1, 2023.  NOTE:  Non-Qualified deferred compensation plans include supplemental retirement plans, retention plans, or other types of plans; leave blank if no plan."]
[null,"Executive Director","Compared to the standard position descriptions, our job is:",null,null,"State","City","Years in Position (Enter partial year as fraction:  8 months = 8/12 = .67)","Years with Organization (Enter partial year as fration:  3 months = 3/12 = .25)","Gender (Male/Female) Please report Male and Female on separate lines.  If entering multiple incumbents indicate how many of each (e.g., Male = 1, Female = 1)","# of Direct Reports","Annual Budget Responsibility (Enter if different from the organization's total operating revenue).","Reporting Levels from CEO (CEO is Level 0)","# of Employees in position being reported","Time (must sum to 100%) Spent Working In:",null,null,null,null,"Current Annual Salary","Prior Year's Salary","Most Recent Annual Cash Incentive","Prior Year's Incentive","\"Target\" annual incentive (% of salary)","\"Maximum\" annual incentive (% of salary)","Enter the number of each facility type overseen by the Single-Site Executive Director",null,null,null,null,null,"Management Scope for EDs: Mandatory (enter the scope of operations for the ED position, or the average scope of multiple incumbents.",null,"Qualified Defined Benefits Plans\n(Do not include 403b or 401k here, please use next section)",null,null,null,"Qualified Defined Contribution Plans\n(403b or 401k)",null,null,"Non-qualified 457b type Plans",null,null,null,"Non-qualified 457f type Plans",null,null,null,null,null,null,null,null,null,"All Plans"]
[null,null,"Bigger (>115%)","Same","Smaller\n(< 85%)","State",null,null,null,null,null,null,null,null,"Home Health","Skilled Nursing","CCRCs","Housing","Other",null,null,null,null,null,null,"Health Care Services","SNF","CCRC","Managed Contracts (non-owned)","Other","Is Op VP Regional (R) or Functional (F)?","Total Annual Revenue","Total Number of FTEs Managed","Plan has a Vesting Schedule (Y/N)",null,"Final Benefit as % of final pay (assume normal retirement age) \nOR →","Annual Benefit $ in Retirement (assume normal retirement age)","Amount Contributed Annually, \nOR →","Percent of Cash Comp Matched by Employer","Of the amounts entered in column AJ or AK, enter any Employer Contribution that does not require an Employee Match","Can the employee contribute directly to this plan? (Y/N)","Is this plan used to offset ERISA contribution limits to Qualified Plans? (Y/N)","Annual Employer Contribution ($), \nOR  →","Annual Employer Contribution as % of Cash Comp","Plan is funded or unfunded (F or U)","Funds are in Annuities, Insurance, or similar financial product (Y/N)","Is payout date same as normal retirement date? (Y/N)","Is plan structured as a \"Retention Plan\"\n(Y/N)","Funds are in Held in a Trust Account (Y/N)","Does Plan provide a guaranteed final benefit? (Y/N)","Annual Employer Contribution ($),\nOR  →","Annual Employer Contribution as % of Cash Comp","Final targeted replacement ratio (% of final pay) for this plan only","Are any non-qualified contributions variable and tied to performance? (Y/N)","What is the target replacement rate of the sum of all employer funded pension benefits?"]
[null,"Please enter each executive Director Below"]
[null,null,null,null,null,null,null,null,null,null,null,"$",null,null,"%","%","%","%","%","$","$","$","$","%","%",null,null,null,null,null,null,"$","#",null,null,"%","$","$","%","$",null,null,"$","%",null,null,null,null,null,null,"$","%","%",null,"%"]
[null,null,null,null,null,null,null,null,null,null,null,"$",null,null,"%","%","%","%","%","$","$","$","$","%","%",null,null,null,null,null,null,"$","#",null,null,"%","$","$","%","$",null,null,"$","%",null,null,null,null,null,null,"$","%","%",null,"%"]
[null,null,null,null,null,null,null,null,null,null,null,"$",null,null,"%","%","%","%","%","$","$","$","$","%","%",null,null,null,null,null,null,"$","#",null,null,"%","$","$","%","$",null,null,"$","%",null,null,null,null,null,null,"$","%","%",null,"%"]
[null,null,null,null,null,null,null,null,null,null,null,"$",null,null,"%","%","%","%","%","$","$","$","$","%","%",null,null,null,null,null,null,"$","#",null,null,"%","$","$","%","$",null,null,"$","%",null,null,null,null,null,null,"$","%","%",null,"%"]
[null,null,null,null,null,null,null,null,null,null,null,"$",null,null,"%","%","%","%","%","$","$","$","$","%","%",null,null,null,null,null,null,"$","#",null,null,"%","$","$","%","$",null,null,"$","%",null,null,null,null,null,null,"$","%","%",null,"%"]
[null,null,null,null,null,null,null,null,null,null,null,"$",null,null,"%","%","%","%","%","$","$","$","$","%","%",null,null,null,null,null,null,"$","#",null,null,"%","$","$","%","$",null,null,"$","%",null,null,null,null,null,null,"$","%","%",null,"%"]
[null,null,null,null,null,null,null,null,null,null,null,"$",null,null,"%","%","%","%","%","$","$","$","$","%","%",null,null,null,null,null,null,"$","#",null,null,"%","$","$","%","$",null,null,"$","%",null,null,null,null,null,null,"$","%","%",null,"%"]
[null,null,null,null,null,null,null,null,null,null,null,"$",null,null,"%","%","%","%","%","$","$","$","$","%","%",null,null,null,null,null,null,"$","#",null,null,"%","$","$","%","$",null,null,"$","%",null,null,null,null,null,null,"$","%","%",null,"%"]
[null,null,null,null,null,null,null,null,null,null,null,"$",null,null,"%","%","%","%","%","$","$","$","$","%","%",null,null,null,null,null,null,"$","#",null,null,"%","$","$","%","$",null,null,"$","%",null,null,null,null,null,null,"$","%","%",null,"%"]
[null,null,null,null,null,null,null,null,null,null,null,"$",null,null,"%","%","%","%","%","$","$","$","$","%","%",null,null,null,null,null,null,"$","#",null,null,"%","$","$","%","$",null,null,"$","%",null,null,null,null,null,null,"$","%","%",null,"%"]
[null,null,null,null,null,null,null,null,null,null,null,"$",null,null,"%","%","%","%","%","$","$","$","$","%","%",null,null,null,null,null,null,"$","#",null,null,"%","$","$","%","$",null,null,"$","%",null,null,null,null,null,null,"$","%","%",null,"%"]
[null,null,null,null,null,null,null,null,null,null,null,"$",null,null,"%","%","%","%","%","$","$","$","$","%","%",null,null,null,null,null,null,"$","#",null,null,"%","$","$","%","$",null,null,"$","%",null,null,null,null,null,null,"$","%","%",null,"%"]
[null,null,null,null,null,null,null,null,null,null,null,"$",null,null,"%","%","%","%","%","$","$","$","$","%","%",null,null,null,null,null,null,"$","#",null,null,"%","$","$","%","$",null,null,"$","%",null,null,null,null,null,null,"$","%","%",null,"%"]
[null,null,null,null,null,null,null,null,null,null,null,"$",null,null,"%","%","%","%","%","$","$","$","$","%","%",null,null,null,null,null,null,"$","#",null,null,"%","$","$","%","$",null,null,"$","%",null,null,null,null,null,null,"$","%","%",null,"%"]
[null,null,null,null,null,null,null,null,null,null,null,"$",null,null,"%","%","%","%","%","$","$","$","$","%","%",null,null,null,null,null,null,"$","#",null,null,"%","$","$","%","$",null,null,"$","%",null,null,null,null,null,null,"$","%","%",null,"%"]
[null,null,null,null,null,null,null,null,null,null,null,"$",null,null,"%","%","%","%","%","$","$","$","$","%","%",null,null,null,null,null,null,"$","#",null,null,"%","$","$","%","$",null,null,"$","%",null,null,null,null,null,null,"$","%","%",null,"%"]
[null,null,null,null,null,null,null,null,null,null,null,"$",null,null,"%","%","%","%","%","$","$","$","$","%","%",null,null,null,null,null,null,"$","#",null,null,"%","$","$","%","$",null,null,"$","%",null,null,null,null,null,null,"$","%","%",null,"%"]
[null,null,null,null,null,null,null,null,null,null,null,"$",null,null,"%","%","%","%","%","$","$","$","$","%","%",null,null,null,null,null,null,"$","#",null,null,"%","$","$","%","$",null,null,"$","%",null,null,null,null,null,null,"$","%","%",null,"%"]
[null,null,null,null,null,null,null,null,null,null,null,"$",null,null,"%","%","%","%","%","$","$","$","$","%","%",null,null,null,null,null,null,"$","#",null,null,"%","$","$","%","$",null,null,"$","%",null,null,null,null,null,null,"$","%","%",null,"%"]
[null,null,null,null,null,null,null,null,null,null,null,"$",null,null,"%","%","%","%","%","$","$","$","$","%","%",null,null,null,null,null,null,"$","#",null,null,"%","$","$","%","$",null,null,"$","%",null,null,null,null,null,null,"$","%","%",null,"%"]
[null,null,null,null,null,null,null,null,null,null,null,"$",null,null,"%","%","%","%","%","$","$","$","$","%","%",null,null,null,null,null,null,"$","#",null,null,"%","$","$","%","$",null,null,"$","%",null,null,null,null,null,null,"$","%","%",null,"%"]
[null,null,null,null,null,null,null,null,null,null,null,"$",null,null,"%","%","%","%","%","$","$","$","$","%","%",null,null,null,null,null,null,"$","#",null,null,"%","$","$","%","$",null,null,"$","%",null,null,null,null,null,null,"$","%","%",null,"%"]
[null,null,null,null,null,null,null,null,null,null,null,"$",null,null,"%","%","%","%","%","$","$","$","$","%","%",null,null,null,null,null,null,"$","#",null,null,"%","$","$","%","$",null,null,"$","%",null,null,null,null,null,null,"$","%","%",null,"%"]
[null,null,null,null,null,null,null,null,null,null,null,"$",null,null,"%","%","%","%","%","$","$","$","$","%","%",null,null,null,null,null,null,"$","#",null,null,"%","$","$","%","$",null,null,"$","%",null,null,null,null,null,null,"$","%","%",null,"%"]
[null,null,null,null,null,null,null,null,null,null,null,"$",null,null,"%","%","%","%","%","$","$","$","$","%","%",null,null,null,null,null,null,"$","#",null,null,"%","$","$","%","$",null,null,"$","%",null,null,null,null,null,null,"$","%","%",null,"%"]
[null,null,null,null,null,null,null,null,null,null,null,"$",null,null,"%","%","%","%","%","$","$","$","$","%","%",null,null,null,null,null,null,"$","#",null,null,"%","$","$","%","$",null,null,"$","%",null,null,null,null,null,null,"$","%","%",null,"%"]
[null,null,null,null,null,null,null,null,null,null,null,"$",null,null,"%","%","%","%","%","$","$","$","$","%","%",null,null,null,null,null,null,"$","#",null,null,"%","$","$","%","$",null,null,"$","%",null,null,null,null,null,null,"$","%","%",null,"%"]
[null,null,null,null,null,null,null,null,null,null,null,"$",null,null,"%","%","%","%","%","$","$","$","$","%","%",null,null,null,null,null,null,"$","#",null,null,"%","$","$","%","$",null,null,"$","%",null,null,null,null,null,null,"$","%","%",null,"%"]
[null,null,null,null,null,null,null,null,null,null,null,"$",null,null,"%","%","%","%","%","$","$","$","$","%","%",null,null,null,null,null,null,"$","#",null,null,"%","$","$","%","$",null,null,"$","%",null,null,null,null,null,null,"$","%","%",null,"%"]
[null,null,null,null,null,null,null,null,null,null,null,"$",null,null,"%","%","%","%","%","$","$","$","$","%","%",null,null,null,null,null,null,"$","#",null,null,"%","$","$","%","$",null,null,"$","%",null,null,null,null,null,null,"$","%","%",null,"%"]
[null,null,null,null,null,null,null,null,null,null,null,"$",null,null,"%","%","%","%","%","$","$","$","$","%","%",null,null,null,null,null,null,"$","#",null,null,"%","$","$","%","$",null,null,"$","%",null,null,null,null,null,null,"$","%","%",null,"%"]
[null,null,null,null,null,null,null,null,null,null,null,"$",null,null,"%","%","%","%","%","$","$","$","$","%","%",null,null,null,null,null,null,"$","#",null,null,"%","$","$","%","$",null,null,"$","%",null,null,null,null,null,null,"$","%","%",null,"%"]
[null,null,null,null,null,null,null,null,null,null,null,"$",null,null,"%","%","%","%","%","$","$","$","$","%","%",null,null,null,null,null,null,"$","#",null,null,"%","$","$","%","$",null,null,"$","%",null,null,null,null,null,null,"$","%","%",null,"%"]
[null,null,null,null,null,null,null,null,null,null,null,"$",null,null,"%","%","%","%","%","$","$","$","$","%","%",null,null,null,null,null,null,"$","#",null,null,"%","$","$","%","$",null,null,"$","%",null,null,null,null,null,null,"$","%","%",null,"%"]
[null,null,null,null,null,null,null,null,null,null,null,"$",null,null,"%","%","%","%","%","$","$","$","$","%","%",null,null,null,null,null,null,"$","#",null,null,"%","$","$","%","$",null,null,"$","%",null,null,null,null,null,null,"$","%","%",null,"%"]
[null,null,null,null,null,null,null,null,null,null,null,"$",null,null,"%","%","%","%","%","$","$","$","$","%","%",null,null,null,null,null,null,"$","#",null,null,"%","$","$","%","$",null,null,"$","%",null,null,null,null,null,null,"$","%","%",null,"%"]
[null,null,null,null,null,null,null,null,null,null,null,"$",null,null,"%","%","%","%","%","$","$","$","$","%","%",null,null,null,null,null,null,"$","#",null,null,"%","$","$","%","$",null,null,"$","%",null,null,null,null,null,null,"$","%","%",null,"%"]
[null,null,null,null,null,null,null,null,null,null,null,"$",null,null,"%","%","%","%","%","$","$","$","$","%","%",null,null,null,null,null,null,"$","#",null,null,"%","$","$","%","$",null,null,"$","%",null,null,null,null,null,null,"$","%","%",null,"%"]
[null,null,null,null,null,null,null,null,null,null,null,"$",null,null,"%","%","%","%","%","$","$","$","$","%","%",null,null,null,null,null,null,"$","#",null,null,"%","$","$","%","$",null,null,"$","%",null,null,null,null,null,null,"$","%","%",null,"%"]
[null,null,null,null,null,null,null,null,null,null,null,"$",null,null,"%","%","%","%","%","$","$","$","$","%","%",null,null,null,null,null,null,"$","#",null,null,"%","$","$","%","$",null,null,"$","%",null,null,null,null,null,null,"$","%","%",null,"%"]
[null,null,null,null,null,null,null,null,null,null,null,"$",null,null,"%","%","%","%","%","$","$","$","$","%","%",null,null,null,null,null,null,"$","#",null,null,"%","$","$","%","$",null,null,"$","%",null,null,null,null,null,null,"$","%","%",null,"%"]
[null,null,null,null,null,null,null,null,null,null,null,"$",null,null,"%","%","%","%","%","$","$","$","$","%","%",null,null,null,null,null,null,"$","#",null,null,"%","$","$","%","$",null,null,"$","%",null,null,null,null,null,null,"$","%","%",null,"%"]
[null,null,null,null,null,null,null,null,null,null,null,"$",null,null,"%","%","%","%","%","$","$","$","$","%","%",null,null,null,null,null,null,"$","#",null,null,"%","$","$","%","$",null,null,"$","%",null,null,null,null,null,null,"$","%","%",null,"%"]
[null,null,null,null,null,null,null,null,null,null,null,"$",null,null,"%","%","%","%","%","$","$","$","$","%","%",null,null,null,null,null,null,"$","#",null,null,"%","$","$","%","$",null,null,"$","%",null,null,null,null,null,null,"$","%","%",null,"%"]
[null,null,null,null,null,null,null,null,null,null,null,"$",null,null,"%","%","%","%","%","$","$","$","$","%","%",null,null,null,null,null,null,"$","#",null,null,"%","$","$","%","$",null,null,"$","%",null,null,null,null,null,null,"$","%","%",null,"%"]
[null,"CTRL Q",null,null,null,null,null,null,null,null,null,"$",null,null,"%","%","%","%","%","$","$","$","$","%","%",null,null,null,null,null,null,"$","#",null,null,"%","$","$","%","$",null,null,"$","%",null,null,null,null,null,null,"$","%","%",null,"%"]

{"sheet":"Benefits & Pension Plans","index":13,"n_rows":63,"n_cols":7,"rows_kept":63,"cut":false,"hidden":false,"merged":[[10,0,10,6],[18,0,18,6],[26,1,26,2],[26,3,26,4],[26,5,26,6],[20,0,21,0],[23,0,24,0],[0,0,0,6],[1,1,1,2],[1,3,1,4],[1,5,1,6],[3,0,3,6],[34,0,34,6],[49,0,49,6],[35,1,35,2],[35,3,35,4],[35,5,35,6]]}
["Benefits & Perquisites Instructions:  Indicate which benefits are offered (Yes/No) to your executives and the percentage of the premium (for insurances) paid by the employer.  Enter the value of short-term and long-term disability benefits as a percentage of salary or as a MONTHLY amount.  For other benefits with specific value (ex. car allowances), enter the ANNUAL dollar cost or limit for those items with “$”. All blanks will be considered missing data."]
[null,"CEO",null,"Other Executives\n(VPs, ..)",null,"EDs @ Facilities"]
[null,"Offered (Y/N)","Percent of Costs Paid by Company (%), or Actual Benefit Value ($)","Offered (Y/N)","Percent of Costs Paid by Company (%), or Actual Benefit Value ($)","Offered \n(Y/N)","Percent of Costs Paid by Company (%), or Actual Benefit Value ($)"]
["Survivor Benefits:"]
["Basic Group Life Insurance",null,"%",null,"%",null,"%"]
["Company-paid life benefit as % of salary",null,"%",null,"%",null,"%"]
["Supplemental Group Life",null,"%",null,"%",null,"%"]
["Basic Accidental Death",null,"%",null,"%",null,"%"]
["Supplemental Accidental Death",null,"%",null,"%",null,"%"]
["Dependent Group Life Insurance",null,"%",null,"%",null,"%"]
["Health Care Benefits:"]
["Medical Plan",null,"%",null,"%",null,"%"]
["Dependent Medical Coverage",null,"%",null,"%",null,"%"]
["Dental Plan",null,"%",null,"%",null,"%"]
["Vision Care Plan",null,"%",null,"%",null,"%"]
["Dependent Dental & Vision ",null,"%",null,"%",null,"%"]
["Long-term Care Insurance",null,"%",null,"%",null,"%"]
["Retiree Health Insurance Coverage",null,"%",null,"%",null,"%"]
["Disability Benefits:"]
["Short-term Disability (Y/N)"]
["STD benefit as % of salary or monthly $$",null,"%",null,"%",null,"%"]
[null,null,"$",null,"$",null,"$"]
["Long-term Disability (Y/N)"]
["LTD benefit as % of salary or monthly $$",null,"%",null,"%",null,"%"]
[null,null,"$",null,"$",null,"$"]
["Employment Contract Provisions:"]
[null,"CEO",null,"Other Executives\n(VPs, ..)",null,"EDs @ Facilities"]
[null,"Offered (Y/N)",null,"Offered (Y/N)",null,"Offered \n(Y/N)"]
["Is an employment contract offered/used?  If yes, check the included elements below."]
["Severance Package"]
["Change of Control Provision"]
["Signing/Recruiting Bonus"]
["Specific retention provisions"]
["Relocation Allowance"]
["Other Perquisites: check all that apply and specify dollar value or cap for each benefit/perquisite provided (if organization pays in full or provides actual equipment, please type \"other\")."]
[null,"CEO",null,"Other Executives\n(VPs, ..)",null,"EDs @ Facilities"]
[null,"Offered (Y/N)","Indicate Annual Value $","Offered (Y/N)","Indicate Annual Value $","Offered \n(Y/N)","Indicate Annual Value $"]
["Housing Allowance",null,"$",null,"$",null,"$"]
["Mobile/Cell Phone",null,"$",null,"$",null,"$"]
["Car or Car Allowance",null,"$",null,"$",null,"$"]
["Professional Dues",null,"$",null,"$",null,"$"]
["Tuition Assistance",null,"$",null,"$",null,"$"]
["Flex Spending Accounts, including medical (Sec. 125)",null,"$",null,"$",null,"$"]
["Annual Physical Exam",null,"$",null,"$",null,"$"]
["Club Membership (dining, country club, health)",null,"$",null,"$",null,"$"]
["Spousal Travel",null,"$",null,"$",null,"$"]
["Financial Counseling/Assistance",null,"$",null,"$",null,"$"]
["Employee Assistance Program",null,"$",null,"$",null,"$"]
["Laptop Computer",null,"$",null,"$",null,"$"]
["Pension & Nonqualified Deferred Benefits Instructions:  Please indicate what plans your organization provides for each job/category (Y/N).  Enter all plan details on the Cash & Retirement Compensation tab in the \"Retirement & Deferred Comp\" section (columns AF - BC).  "]
[null,"CEO",null,"Other Execs\n(VPs, …)",null,"EDs @ Facilities"]
["Do you provide a 401(k) plan?"]
["Do you provide a 403(b) plan?"]
["Do you provide a 457(f) plan?"]
["Do you provide a 457(b) plan?"]
["Do you provide other/(non-457) plan(s)?"]
["Is there a fixed annual contribution to plan?"]
["Is there a variable annual contribution to plan?"]
["Are variable contributions based on performance?"]
["Does employer pay tax when funds distributed?"]
["Does participant pay all tax when funds are paid out?"]
["Is plan designed to supplement pension benefits?"]
["Does plan have a Vesting Schedule?"]

{"sheet":"Paid Time Off","index":14,"n_rows":36,"n_cols":9,"rows_kept":36,"cut":false,"hidden":false,"merged":[[28,0,28,8],[19,0,19,8],[0,0,0,8],[1,0,1,8],[10,0,10,8]]}
["Provide the average number of paid days off (per year) provided for each management category and for each employment tenure.  Enter PTO (Paid Time Off) days (column H) only if your organization provides a lump-sum number of days off to be used at the discretion of the employee in any of the categories listed below.  If your organization offers unlimited PTO, enter \"Unlimited\" in the Paid Time Off section of the Comments tab.  Complete the tenure categories if your PTO policy varies by length of employment."]
["Overall (average of all)"]
[null,"Vacation Days","Sick Days","Personal Days","Holidays Days","Education Days","Sabbatical Days","PTO Days","Total Days"]
["Chief Executive Officer"]
["Maximum DAYS \"bank\" or carry-over-CEO"]
["Other Executives (VPs, etc..)"]
["Maximum DAYS \"bank\" or carry-over-Other Exec"]
["Executive Directors @ facilities"]
["Maximum DAYS \"bank\" or carry-over-Eds"]
[]
["Employed 1-5 Years"]
[null,"Vacation Days","Sick Days","Personal Days","Holidays Days","Education Days","Sabbatical Days","PTO Days","Total Days"]
["Chief Executive Officer"]
["Maximum DAYS \"bank\" or carry-over-CEO"]
["Other Executives (VPs, etc..)"]
["Maximum DAYS \"bank\" or carry-over-Other Exec"]
["Executive Directors @ facilities"]
["Maximum DAYS \"bank\" or carry-over-Eds"]
[]
["Employed 5-10 Years"]
[null,"Vacation Days","Sick Days","Personal Days","Holidays Days","Education Days","Sabbatical Days","PTO Days","Total Days"]
["Chief Executive Officer"]
["Maximum DAYS \"bank\" or carry-over-CEO"]
["Other Executives (VPs, etc..)"]
["Maximum DAYS \"bank\" or carry-over-Other Exec"]
["Executive Directors @ facilities"]
["Maximum DAYS \"bank\" or carry-over-Eds"]
[]
["Employed Over 10 Years"]
[null,"Vacation Days","Sick Days","Personal Days","Holidays Days","Education Days","Sabbatical Days","PTO Days","Total Days"]
["Chief Executive Officer"]
["Maximum DAYS \"bank\" or carry-over-CEO"]
["Other Executives (VPs, etc..)"]
["Maximum DAYS \"bank\" or carry-over-Other Exec"]
["Executive Directors @ facilities"]
["Maximum DAYS \"bank\" or carry-over-Eds"]

{"sheet":"Comments","index":15,"n_rows":45,"n_cols":1,"rows_kept":45,"cut":false,"hidden":false,"merged":[[45,0,49,0],[3,0,7,0],[10,0,14,0],[17,0,21,0],[24,0,28,0],[31,0,35,0],[38,0,42,0]]}
[]
[]
["General Comments:   Please provide additional information regarding your responses and/or note any suggestions for improving the overall survey and collection process next year.  Further, is there other information you would like to see included?"]
[]
[]
[]
[]
[]
[]
["Organization Profile:  Please provide additional information regarding your responses and/or note any suggestions for improving the overall survey and collection process next year.  Further, is there other information you would like to see included?"]
[]
[]
[]
[]
[]
[]
["Executive Comp Governance:   Please provide additional information regarding your responses and/or note any suggestions for improving the overall survey and collection process next year.  Further, is there other information you would like to see included?"]
[]
[]
[]
[]
[]
[]
["Cash Compensation:   Please provide additional information regarding your responses and/or note any suggestions for improving the overall survey and collection process next year.  Further, is there other information you would like to see included?"]
[]
[]
[]
[]
[]
[]
["Benefits:   Please provide additional information regarding your responses and/or note any suggestions for improving the overall survey and collection process next year.  Further, is there other information you would like to see included?"]
[]
[]
[]
[]
[]
[]
["Retirement & Deferred Compensation:  Please provide additional information regarding your responses and/or note any suggestions for improving the overall survey and collection process next year.  Further, is there other information you would like to see included?"]
[]
[]
[]
[]
[]
[]
["Paid Time Off:  Please provide additional information regarding your responses and/or note any suggestions for improving the overall survey and collection process next year.  Further, is there other information you would like to see included?"]

{"sheet":"Data Checklist","index":16,"n_rows":15,"n_cols":1,"rows_kept":15,"cut":false,"hidden":true,"merged":[]}
[]
["Checklist"]
["To be sent to CliftonLarsonAllen, LLP, attention Cathy Schweiger (cathy.schweiger@claconnect.com) by July 15 via LeapFile (see Leapfile Instructions)"]
["      Completed Data Submission Kit – check all sections"]
["      Most recent year-end Financial Statement and Annual Report"]
["      Organizational Chart (senior executives)"]
["      Completed Order Form"]
["      Check or Credit Card Authorization for the total amount"]
["To be retained by Organization"]
["      Copy of Data Submission Kit"]
["      Copy of Order Form"]
[]
["Thank you for your participation"]
["Survey reports will be distributed to coincide with the annual LeadingAge meeting."]
["2023 CliftonLarsonAllen LLP.\nAll rights reserved.\nThe 2023 LeadingAge CEMO Leadership Compensation Survey report and all data herein are protected by copyright law and international treaties.  All information in this report is for the sole internal use of the participants and purchasers and may not be distributed, reproduced, or sold to other parties without the expressed written permission of CliftonLarsonAllen LLP.  Unauthorized distribution or reproduction of this information or any portion thereof may result in severe civil and criminal penalties and will be prosecuted to the maximum extent possible under the law."]